Workbook

Sheet Cost categories (hidden)
A2: A.1 Employees (or equivalent)
A3: A.2 Natural persons working under direct contract
A4: A.3 Seconded persons
A5: A.6 Personnel for providing access to research infrastructure
A6: B.1 Subcontracting
A7: D.1 Travel
A8: D.2 Equipment
A9: D.3 Other goods and services
A10: D.5 Costs for internally invoiced goods and services

Sheet _control (hidden)
A1: * | B1: Control Worksheet (NB any row with a '*' as the first character in column A is ignored)
A4: * | B4: Global Parameters
A5: * | B5: Parameter | C5: Value
A6: set | B6: client | C6: BO
A7: set | B7: language | C7: SE
A8: set | B8: datasource | C8: excelerator
A9: set | B9: RP1start | C9: ='Project Transactions RP1'!E17 -> 0
A10: set | B10: RP1end | C10: ='Project Transactions RP1'!E18 -> 0
A11: set | B11: RP2start | C11: ='Project Transactions RP2'!E17 -> 0
A12: set | B12: RP2end | C12: ='Project Transactions RP2'!E18 -> 0
A13: set | B13: RP3start | C13: ='Project Transactions RP3'!E17 -> 0
A14: set | B14: RP3end | C14: ='Project Transactions RP3'!E18 -> 0
A15: set | B15: RP4start | C15: ='Project Transactions RP4'!E17 -> 0
A16: set | B16: RP4end | C16: ='Project Transactions RP4'!E18 -> 0
A17: set | B17: RP5start | C17: ='Project Transactions RP5'!E17 -> 0
A18: set | B18: RP5end | C18: ='Project Transactions RP5'!E18 -> 0
A19: set | B19: UBBalansStart | C19: =CONCATENATE(YEAR(TODAY())&"00") -> 202100
A20: set | B20: UBBalansEnd | C20: =CONCATENATE(YEAR(TODAY())&"15") -> 202115
A21: set | B21: orgenh | C21: ='Ekonomisk projektbeskrivning'!B4 -> 0
A22: set | B22: aktproj | C22: ='Ekonomisk projektbeskrivning'!J4 -> 0

Sheet Ekonomisk projektbeskrivning
A1: Högskolan i Borås | C1: Ekonomisk projektbeskrivning H2020-projekt | I1: Nyupplägg:
C2: (Projektpärmen) Bilagor: budget, avtal etc | I2: Uppdatering:
A4: Sektion/enhet (Org. enhet): | C4: Datum: | E4: HBs dnr: | G4: Projektnr (ange 3 första siffrorna):
A5: Projektets namn: | IW5: Instruktion: Fyll i de gulmarkerade fälten och få signatur. Skanna in som PDF och spara i den elektroniska projektmappen. Vid Nyupplägg skickas signerad blankett i original till Jenny Eliasson Teesalu, Avtal och beslutshandlingar ska då finnas i den elektroniska projektmappen.
A6: Projektets namn (om det avser forskarutbildning och ska vara F-markerat):
A7: Typ (välj i listan): | B7: Projekt (budget >300 tkr) | E7: Verksamhetsgren (välj i listan): | J7: 21 Ordinarie forskning
A8: Akademins totala påslag: | C8: År 1: | D8: =G8+J8 -> 0 | E8: Högskolegemensamt påslag: | H8: Akademigemensamt påslag:
C9: År 2: | D9: =G9+J9 -> 0 | E9: Högskolegemensamt påslag: | H9: Akademigemensamt påslag:
C10: År 3: | D10: =G10+J10 -> 0 | E10: Högskolegemensamt påslag: | H10: Akademigemensamt påslag:
C11: År 4: | D11: 0 | E11: Högskolegemensamt påslag: | H11: Akademigemensamt påslag:
C12: År 5: | D12: 0 | E12: Högskolegemensamt påslag: | H12: Akademigemensamt påslag:
A14: Extern finansiering
A15: Finansiär: | C15: Fin kod | D15: GA No | E15: Beviljat bidrag fördelas på: | I15: Avtal finns från datum: till datum:
E16: Totalt enligt GA | F16: Till HB | G16: Transfereringar (Till övriga) | H16: Typ av transf | I16: Från datum | J16: Till datum
A19: Växelkurs | D19: Rapporteringsperioder
A20: Beräknad (vid start/ansökan) | E20: Från datum | F20: Till datum | G20: Antal månader i period
A21: Rapporteringsperiod 1 | D21: RP1 | G21: =IF(E21<>"",1+(DATEDIF(E21,F21,"m")),0) -> 0
A22: Rapporteringsperiod 2 | D22: RP2 | G22: =IF(E22<>"",1+(DATEDIF(E22,F22,"m")),"") -> 
A23: Rapporteringsperiod 3 | D23: RP3 | G23: =IF(E23<>"",1+(DATEDIF(E23,F23,"m")),"") -> 
A24: Rapporteringsperiod 4 | D24: RP4 | G24: =IF(E24<>"",1+(DATEDIF(E24,F24,"m")),"") -> 
A25: Rapporteringsperiod 5 | D25: RP5 | G25: =IF(E25<>"",1+(DATEDIF(E25,F25,"m")),"") -> 
A27: Samfinansiering
A28: Ange typ av samfinansiering (nedan angivna är exempel) | F28: Belopp | G28: Finansiären medger
A29: Påslag
A30: LKP
A31: Lokaler
A32: Parallell förbrukning enligt utlysningens villkor
A37: Summa | F37: =SUM(F29:F36) -> 0
A39: Total finansiering (exkl. transfereringar) | F39: =F17+F37 -> 0
A41: * Mellanskillnaden mellan vad HB bokför och vad finansiären medger som ska tillföras projektet i form av anslag för att erhålla full kostnadstäckning
A43: Parallell förbrukning av medel
A44: Extern finansieringsgrad | C44: =IFERROR(E17/F39,0) -> 0
A45: Intern finansieringsgrad | C45: =IFERROR(F37/F39,0) -> 0
A47: Kommentar
A50: Denna ekonomiska projektbeskrivning är upprättad av sektionsekonom i samråd med projektansvarig.
A51: Projektansvarig (underskrift) | E51: Sektionsekonom (underskrift)
A53: Namn: | E53: Namn:
A55: Härmed intygas att projektet ska öppnas upp (avser nyupplägg) under angiven sektion och att projektets ekonomiska förutsättninar är enligt vad som anges i denna ekonomiska projektbeskrivning (avser nyupplägg och uppdatering).
A56: Sektionschef / motsvarande (underskrift) | E56: Akademichef / motsvarande (underskrift)
A58: Namn: | E58: Namn:

Sheet Exchange rates
V1: ECB
A39: https://www.ecb.europa.eu/stats/policy_and_exchange_rates/euro_reference_exchange_rates/html/eurofxref-graph-sek.en.html

Sheet Aktuell budget
A1: Högskolan i Borås | I1: Projektbudget
A3: Institution/enhet (Org. enhet): | C3: ='Ekonomisk projektbeskrivning'!B4 -> 0 | D3: Datum: | E3: ='Ekonomisk projektbeskrivning'!D4 -> 00:00:00 | F3: HBs dnr: | G3: ='Ekonomisk projektbeskrivning'!F4 -> 0 | H3: Projektnr: | I3: ='Ekonomisk projektbeskrivning'!J4 -> 0
A4: Projektets namn : | C4: ='Ekonomisk projektbeskrivning'!D5 -> 0 | N4: (Kopierar över allt till fliken Ursprunglig budget som fasta värden utan formler och formatering)
A6: Budget (tkr) | C6: Konto | D6: År 1 | E6: År 2 | F6: År 3 | G6: År 4 | H6: År 5 | I6: Summa
A7: Anslag styrelsen | C7: 9301 | I7: =SUM(D7:H7) -> 0 | N7: (Kopierar över allt till ny flik inkl. formler och formatering)
A8: Anslag FoU-nämnden | C8: 9302 | I8: =SUM(D8:H8) -> 0
A9: Medfinansiering | C9: 9936 | I9: 0
A10: Anslag rektor | C10: 9303 | I10: =SUM(D10:H10) -> 0
A11: Avgifter | C11: 31*, 33* | I11: =SUM(D11:H11) -> 0
A12: Bidrag | C12: 35*, 36*, 37* | I12: 0
A13: Periodisering projekt | C13: 39* | I13: 0
A14: Finansiella intäkter | I14: 0
A15: Summa intäkter (-) | D15: =SUM(D7:D14) -> 0 | E15: =SUM(E7:E14) -> 0 | F15: 0 | G15: 0 | H15: 0 | I15: 0
A16: Påslag högskolegemensamt | B16: ='Ekonomisk projektbeskrivning'!G8 -> 0 | C16: 981* | D16: =$B$16*(D20+D21+D22+D41) -> 0 | E16: =$B$16*(E20+E21+E22+E41) -> 0 | F16: 0 | G16: 0 | H16: 0 | I16: 0
A17: Påslag akademigemensamt | B17: ='Ekonomisk projektbeskrivning'!J8 -> 0 | C17: 982* | D17: =$B$17*(D20+D21+D22+D41) -> 0 | E17: =$B$17*(E20+E21+E22+E41) -> 0 | F17: 0 | G17: 0 | H17: 0 | I17: =SUM(D17:H17) -> 0
A18: Finansiering av högskolegemensam stödverksamhet | C18: 983* | I18: =SUM(D18:H18) -> 0
A19: Summa pålägg (+) | D19: =SUM(D16:D18) -> 0 | E19: =SUM(E16:E18) -> 0 | F19: 0 | G19: 0 | H19: 0 | I19: =SUM(D19:H19) -> 0
A20: Lön och lönepålägg | C20: 401* | I20: 0
A21: Internt köpt personal | C21: 9411 | I21: 0
A22: Internt såld personal | C22: 9412 | I22: 0
A23: Traktamenten och bilersättningar | C23: 433* | I23: 0
A24: Utbildning av egen personal | C24: 482* | I24: 0
A25: Personalrepresentation | C25: 496* | I25: 0
A26: Övriga personalkostnader | C26: 498* | I26: 0
A27: Summa personalkostnader (+) | D27: =SUM(D20:D26) -> 0 | E27: =SUM(E20:E26) -> 0 | F27: 0 | G27: 0 | H27: 0 | I27: 0
A28: Externa hyror | C28: 5011 | I28: 0
A29: Interna hyror | C29: 9502 | I29: 0
A30: Övriga lokalkostnader | I30: =SUM(D30:H30) -> 0
A31: Summa lokalkostnader (+) | D31: =SUM(D28:D30) -> 0 | E31: =SUM(E28:E30) -> 0 | F31: 0 | G31: 0 | H31: 0 | I31: 0
A32: Studentkostnader | C32: 5111 | I32: 0
A33: Resor (exkl traktamenten och bilers) | C33: 55** | I33: 0
A34: Extern representation | C34: 552* | I34: 0
A35: Information och marknadsföring | C35: 553* | I35: 0
A36: Tryckning, publikationer & pappersvaror | C36: 562* | I36: 0
A37: Korttidsinventarier (datautrustning mm) | C37: 564* | I37: 0
A38: Kontorsmaterial | C38: 563* | I38: 0
A39: Övriga varor | C39: 569* | I39: 0
A40: Programvara, licensavgifter, datatjänster | C40: 572* | I40: 0
A41: Utbildningstjänster | C41: 573* | I41: 0
A42: Post | C42: 5741 | I42: 0
A43: Tele | C43: 5752 | I43: 0
A44: Övriga tjänster | C44: 579* | I44: 0
A45: Summa övriga kostnader (+) | D45: =SUM(D32:D44) -> 0 | E45: =SUM(E32:E44) -> 0 | F45: 0 | G45: 0 | H45: 0 | I45: 0
A46: Avskrivningar | C46: 69* | I46: 0
A47: Finansiella kostnader | I47: 0
A48: Summa kostnader (+) | D48: =SUM(D46:D47)+D45+D31+D27+D19 -> 0 | E48: =SUM(E46:E47)+E45+E31+E27+E19 -> 0 | F48: 0 | G48: 0 | H48: 0 | I48: 0
A49: Erhållna medel för transferering | C49: 73*-74* | I49: 0
A50: Periodisering erhållna medel | C50: 73*-74* | I50: 0
A51: Lämnade bidrag | C51: 77*-79* | I51: 0
A52: Summa transfereringar | D52: =SUM(D49:D51) -> 0 | E52: =SUM(E49:E51) -> 0 | F52: 0 | G52: 0 | H52: 0 | I52: 0
A54: Summa Årets kapitalförändring | D54: =D15+D48 -> 0 | E54: =E15+E48 -> 0 | F54: 0 | G54: 0 | H54: 0 | I54: 0
A55: Myndighetskapital Fritt | C55: 205* | I55: 0
A56: Myndighetskapital Bundet | C56: 207* | I56: 0
A57: Summa | D57: =SUM(D54:D56) -> 0 | E57: =SUM(E54:E56) -> 0 | F57: 0 | G57: 0 | H57: 0
A59: Upplupna bidrags- och avgiftsintäkter (+) | C59: 163*, 164*
A60: Uppl. bidrags- och avgiftsintäkter (+) transfereringar | C60: 163*
A61: Oförbrukade bidrag och förutbetalda avgifter (-) | C61: 273*, 274*
A62: Oförbr. bidrag och förutbet. avgifter (-) transfereringar | C62: 273*
A63: Summa periodisering pågående projekt | D63: =SUM(D59:D62) -> 0 | E63: =SUM(E59:E62) -> 0 | F63: 0 | G63: 0 | H63: 0
A65: Vidareförmedling av bidrag över balansen In (-) | C65: 257*, 258*, 259* | I65: =SUM(D65:H65) -> 0
A66: Vidareförmedling av bidrag över balansen Ut (+) | C66: 257*, 258*, 259* | I66: 0
A67: Summa vidareförmedling av bidrag över balansen | D67: =SUM(D65:D66) -> 0 | E67: =SUM(E65:E66) -> 0 | F67: 0 | G67: 0 | H67: 0 | I67: 0

Sheet Ursprunglig budget
A1: Högskolan i Borås | I1: Ursprunglig projektbudget
A3: Institution/enhet (Org. enhet): | C3: ='Ekonomisk projektbeskrivning'!B4 -> 0 | D3: Datum: | E3: ='Ekonomisk projektbeskrivning'!D4 -> 00:00:00 | F3: HBs dnr: | G3: ='Ekonomisk projektbeskrivning'!F4 -> 0 | H3: Projektnr: | I3: ='Ekonomisk projektbeskrivning'!J4 -> 0
A4: Projektets namn : | C4: ='Ekonomisk projektbeskrivning'!D5 -> 0
A6: Budget (tkr) | C6: Konto | D6: År 1 | E6: År 2 | F6: År 3 | G6: År 4 | H6: År 5 | I6: Summa
A7: Anslag styrelsen | C7: 9301 | I7: 0
A8: Anslag FoU-nämnden | C8: 9302 | I8: 0
A9: Medfinansiering | C9: 9936 | I9: 0
A10: Anslag rektor | C10: 9303 | I10: 0
A11: Avgifter | C11: 31*, 33* | I11: 0
A12: Bidrag | C12: 35*, 36*, 37* | I12: 0
A13: Periodisering projekt | C13: 39* | I13: 0
A14: Finansiella intäkter | I14: 0
A15: Summa intäkter (-) | D15: 0 | E15: 0 | F15: 0 | G15: 0 | H15: 0 | I15: 0
A16: Påslag högskolegemensamt | C16: 981* | D16: 0 | E16: 0 | F16: 0 | G16: 0 | H16: 0 | I16: 0
A17: Påslag akademigemensamt | B17: 0 | C17: 982* | D17: 0 | E17: 0 | F17: 0 | G17: 0 | H17: 0 | I17: 0
A18: Finansiering av högskolegemensam stödverksamhet | C18: 983* | I18: 0
A19: Summa pålägg (+) | D19: 0 | E19: 0 | F19: 0 | G19: 0 | H19: 0 | I19: 0
A20: Lön och lönepålägg | C20: 401* | I20: 0
A21: Internt köpt personal | C21: 9411 | I21: 0
A22: Internt såld personal | C22: 9412 | I22: 0
A23: Traktamenten och bilersättningar | C23: 433* | I23: 0
A24: Utbildning av egen personal | C24: 482* | I24: 0
A25: Personalrepresentation | C25: 496* | I25: 0
A26: Övriga personalkostnader | C26: 498* | I26: 0
A27: Summa personalkostnader (+) | D27: 0 | E27: 0 | F27: 0 | G27: 0 | H27: 0 | I27: 0
A28: Externa hyror | C28: 5011 | I28: 0
A29: Interna hyror | C29: 9502 | I29: 0
A30: Övriga lokalkostnader | I30: 0
A31: Summa lokalkostnader (+) | D31: 0 | E31: 0 | F31: 0 | G31: 0 | H31: 0 | I31: 0
A32: Studentkostnader | C32: 5111 | I32: 0
A33: Resor (exkl traktamenten och bilers) | C33: 55** | I33: 0
A34: Extern representation | C34: 552* | I34: 0
A35: Information och marknadsföring | C35: 553* | I35: 0
A36: Tryckning, publikationer & pappersvaror | C36: 562* | I36: 0
A37: Korttidsinventarier (datautrustning mm) | C37: 564* | I37: 0
A38: Kontorsmaterial | C38: 563* | I38: 0
A39: Övriga varor | C39: 569* | I39: 0
A40: Programvara, licensavgifter, datatjänster | C40: 572* | I40: 0
A41: Utbildningstjänster | C41: 573* | I41: 0
A42: Post | C42: 5741 | I42: 0
A43: Tele | C43: 5752 | I43: 0
A44: Övriga tjänster | C44: 579* | I44: 0
A45: Summa övriga kostnader (+) | D45: 0 | E45: 0 | F45: 0 | G45: 0 | H45: 0 | I45: 0
A46: Avskrivningar | C46: 69* | I46: 0
A47: Finansiella kostnader | I47: 0
A48: Summa kostnader (+) | D48: 0 | E48: 0 | F48: 0 | G48: 0 | H48: 0 | I48: 0
A49: Erhållna medel för transferering | C49: 73*-74* | I49: 0
A50: Periodisering erhållna medel | C50: 73*-74* | I50: 0
A51: Lämnade bidrag | C51: 77*-79* | I51: 0
A52: Summa transfereringar | D52: 0 | E52: 0 | F52: 0 | G52: 0 | H52: 0 | I52: 0
A54: Summa Årets kapitalförändring | D54: 0 | E54: 0 | F54: 0 | G54: 0 | H54: 0 | I54: 0
A55: Myndighetskapital Fritt | C55: 205* | I55: 0
A56: Myndighetskapital Bundet | C56: 207* | I56: 0
A57: Summa | D57: 0 | E57: 0 | F57: 0 | G57: 0 | H57: 0
A59: Upplupna bidrags- och avgiftsintäkter (+) | C59: 163*, 164*
A60: Uppl. bidrags- och avgiftsintäkter (+) transfereringar | C60: 163*
A61: Oförbrukade bidrag och förutbetalda avgifter (-) | C61: 273*, 274*
A62: Oförbr. bidrag och förutbet. avgifter (-) transfereringar | C62: 273*
A63: Summa periodisering pågående projekt | D63: 0 | E63: 0 | F63: 0 | G63: 0 | H63: 0
A65: Vidareförmedling av bidrag över balansen In (-) | C65: 257*, 258*, 259* | I65: 0
A66: Vidareförmedling av bidrag över balansen Ut (+) | C66: 257*, 258*, 259* | I66: 0
A67: Summa vidareförmedling av bidrag över balansen | D67: 0 | E67: 0 | F67: 0 | G67: 0 | H67: 0 | I67: 0

Sheet Efterkalkyl
A1: Högskolan i Borås | I1: Efterkalkyl
A3: Institution/enhet (Org. enhet): | C3: ='Ekonomisk projektbeskrivning'!B4 -> 0 | D3: Datum: | E3: ='Ekonomisk projektbeskrivning'!D4 -> 00:00:00 | F3: HBs dnr: | G3: ='Ekonomisk projektbeskrivning'!F4 -> 0 | H3: Projektnr: | I3: ='Ekonomisk projektbeskrivning'!J4 -> 0
A4: Projektets namn : | C4: ='Ekonomisk projektbeskrivning'!D5 -> 0
A6: Budget (tkr) | C6: Ursprunglig budget | D6: Utfall Agresso | E6: Avvikelse | F6: Kommentar till avvikelse:
A7: Anslag styrelsen | C7: ='Ursprunglig budget'!I7 -> 0 | E7: =D7-C7 -> 0
A8: Anslag FoU-nämnden | C8: ='Ursprunglig budget'!I8 -> 0 | E8: =D8-C8 -> 0 | K8: Instruktion:
A9: Medfinansiering | C9: ='Ursprunglig budget'!I9 -> 0 | E9: 0 | K9: Avvikelse kommenteras,
A10: Anslag rektor | C10: ='Ursprunglig budget'!I10 -> 0 | E10: 0 | K10: därefter skrivs efterkalkylen ut,
A11: Avgifter | C11: ='Ursprunglig budget'!I11 -> 0 | E11: 0 | K11: erhåller underskrifter och
A12: Bidrag | C12: ='Ursprunglig budget'!I12 -> 0 | E12: 0 | K12: skannas in som PDF och sparas
A13: Periodisering projekt | C13: ='Ursprunglig budget'!I13 -> 0 | E13: 0 | K13: i den elektroniska projektpärmen
A14: Finansiella intäkter | C14: ='Ursprunglig budget'!I14 -> 0 | E14: 0
A15: Summa intäkter (-) | C15: ='Ursprunglig budget'!I15 -> 0 | D15: =SUM(D7:D14) -> 0 | E15: =SUM(E7:E14) -> 0
A16: Påslag högskolegemensamt | C16: ='Ursprunglig budget'!I16 -> 0 | E16: 0
A17: Påslag institutionsgemensamt | C17: ='Ursprunglig budget'!I17 -> 0 | E17: 0
A18: Finansiering av högskolegemensam stödverksamhet | C18: ='Ursprunglig budget'!I18 -> 0 | E18: 0
A19: Summa pålägg (+) | C19: ='Ursprunglig budget'!I19 -> 0 | D19: =SUM(D16:D18) -> 0 | E19: =SUM(E16:E18) -> 0
A20: Lön och lönepålägg | C20: ='Ursprunglig budget'!I20 -> 0 | E20: 0
A21: Internt köpt personal | C21: ='Ursprunglig budget'!I21 -> 0 | E21: 0
A22: Internt såld personal | C22: ='Ursprunglig budget'!I22 -> 0 | E22: 0
A23: Traktamenten och bilersättningar | C23: ='Ursprunglig budget'!I23 -> 0 | E23: 0
A24: Utbildning av egen personal | C24: ='Ursprunglig budget'!I24 -> 0 | E24: 0
A25: Personalrepresentation | C25: ='Ursprunglig budget'!I25 -> 0 | E25: 0
A26: Övriga personalkostnader | C26: ='Ursprunglig budget'!I26 -> 0 | E26: 0
A27: Summa personalkostnader (+) | C27: ='Ursprunglig budget'!I27 -> 0 | D27: =SUM(D20:D26) -> 0 | E27: =SUM(E20:E26) -> 0
A28: Externa hyror | C28: ='Ursprunglig budget'!I28 -> 0 | E28: 0
A29: Interna hyror | C29: ='Ursprunglig budget'!I29 -> 0 | E29: 0
A30: Övriga lokalkostnader | C30: ='Ursprunglig budget'!I30 -> 0 | E30: 0
A31: Summa lokalkostnader (+) | C31: ='Ursprunglig budget'!I31 -> 0 | D31: =SUM(D28:D30) -> 0 | E31: =SUM(E28:E30) -> 0
A32: Studentkostnader | C32: ='Ursprunglig budget'!I32 -> 0 | E32: 0
A33: Resor (exkl traktamenten och bilers) | C33: ='Ursprunglig budget'!I33 -> 0 | E33: 0
A34: Extern representation | C34: ='Ursprunglig budget'!I34 -> 0 | E34: 0
A35: Information och marknadsföring | C35: ='Ursprunglig budget'!I35 -> 0 | E35: 0
A36: Tryckning, publikationer & pappersvaror | C36: ='Ursprunglig budget'!I36 -> 0 | E36: 0
A37: Korttidsinventarier (datautrustning mm) | C37: ='Ursprunglig budget'!I37 -> 0 | E37: 0
A38: Kontorsmaterial | C38: ='Ursprunglig budget'!I38 -> 0 | E38: 0
A39: Övriga varor | C39: ='Ursprunglig budget'!I39 -> 0 | E39: 0
A40: Programvara, licensavgifter, datatjänster | C40: ='Ursprunglig budget'!I40 -> 0 | E40: 0
A41: Utbildningstjänster | C41: ='Ursprunglig budget'!I41 -> 0 | E41: 0
A42: Post | C42: ='Ursprunglig budget'!I42 -> 0 | E42: 0
A43: Tele | C43: ='Ursprunglig budget'!I43 -> 0 | E43: 0
A44: Övriga tjänster | C44: ='Ursprunglig budget'!I44 -> 0 | E44: 0
A45: Summa övriga kostnader (+) | C45: ='Ursprunglig budget'!I45 -> 0 | D45: =SUM(D32:D44) -> 0 | E45: =SUM(E32:E44) -> 0
A46: Avskrivningar | C46: ='Ursprunglig budget'!I46 -> 0 | E46: 0
A47: Finansiella kostnader | C47: ='Ursprunglig budget'!I47 -> 0 | E47: 0
A48: Summa kostnader (+) | C48: ='Ursprunglig budget'!I48 -> 0 | D48: =SUM(D46:D47)+D45+D31+D27+D19 -> 0 | E48: =SUM(E46:E47)+E45+E31+E27+E19 -> 0
A49: Erhållna medel för transferering | C49: ='Ursprunglig budget'!I49 -> 0 | E49: 0
A50: Periodisering erhållna medel | C50: ='Ursprunglig budget'!I50 -> 0 | E50: 0
A51: Lämnade bidrag | C51: ='Ursprunglig budget'!I51 -> 0 | E51: 0
A52: Summa transfereringar | C52: ='Ursprunglig budget'!I52 -> 0 | D52: =SUM(D49:D51) -> 0 | E52: =SUM(E49:E51) -> 0
A54: Summa Årets kapitalförändring | C54: ='Ursprunglig budget'!I54 -> 0 | D54: =D48+D15 -> 0 | E54: =E48+E15 -> 0
A55: Myndighetskapital Fritt | C55: ='Ursprunglig budget'!I55 -> 0 | E55: =D55-C55 -> 0
A56: Myndighetskapital Bundet | C56: ='Ursprunglig budget'!I56 -> 0 | E56: =D56-C56 -> 0
A57: Summa | C57: ='Ursprunglig budget'!I57 -> 0 | D57: =SUM(D54:D56) -> 0 | E57: =SUM(E54:E56) -> 0
A59: Upplupna bidrags- och avgiftsintäkter (+) | C59: ='Ursprunglig budget'!I59 -> 0 | E59: =D59-C59 -> 0
A60: Uppl. bidrags- och avgiftsintäkter (+) transfereringar | C60: ='Ursprunglig budget'!I60 -> 0 | E60: =D60-C60 -> 0
A61: Oförbrukade bidrag och förutbetalda avgifter (-) | C61: ='Ursprunglig budget'!I61 -> 0 | E61: =D61-C61 -> 0
A62: Oförbr. bidrag och förutbet. avgifter (-) transfereringar | C62: ='Ursprunglig budget'!I62 -> 0 | E62: =D62-C62 -> 0
A63: Summa periodisering pågående projekt | C63: ='Ursprunglig budget'!I63 -> 0 | D63: =SUM(D59:D62) -> 0 | E63: =SUM(E59:E62) -> 0
A65: Vidareförmedling av bidrag över balansen In (-) | C65: ='Ursprunglig budget'!I65 -> 0 | E65: =D65-C65 -> 0
A66: Vidareförmedling av bidrag över balansen Ut (+) | C66: ='Ursprunglig budget'!I66 -> 0 | E66: =D66-C66 -> 0
A67: Summa vidareförmedling av bidrag över balansen | C67: ='Ursprunglig budget'!I67 -> 0 | D67: =SUM(D65:D66) -> 0 | E67: =SUM(E65:E66) -> 0
A69: Härmed intygas att projektet är genomfört, att samtliga intäkter och kostnader bokförts korrekt samt att eventuella avvikelser från ursprunglig budget kommenterats ovan.
A71: Projektansvarig (underskrift) | E71: Sektionsekonom (underskrift)
A73: Namn: | E73: Namn:
A76: Härmed intygas att projektet kan avslutas med ovanstående resultat.
A78: Sektionschef / motsvarande (underskrift) | E78: Akademichef / motsvarande (underskrift)
A80: Namn: | E80: Namn:

Sheet Uppföljning totalt (intern)
F3: TOTAL | M3: Reporting Period 1 | T3: Reporting Period 2 | AA3: Reporting Period 3 | AH3: Reporting Period 4 | AO3: Reporting Period 5
D5: Eligible costs | F5: Budget TOT | G5: Reported | H5: Approved | I5: Not reported | M5: Reported | N5: Adjustments | O5: Not approved | P5: Approved | T5: Reported | U5: Adjustmens | V5: Not approved | W5: Approved | AA5: Reported | AB5: Adjustments | AC5: Not approved | AD5: Approved | AH5: Reported | AI5: Adjustments | AJ5: Not approved | AK5: Approved | AO5: Reported | AP5: Adjustments | AQ5: Not approved | AR5: Approved
D6: A. Direct personnel costs | G6: =M6+N6+T6+U6+AA6+AB6+AH6+AI6+AO6+AP6 -> 0 | H6: =P6+W6+AD6+AK6+AR6 -> 0 | I6: =F6-P6-W6-AD6-AK6-AR6 -> 0 | M6: =CostCategory_A_RP1 -> 0 | N6: ='Adjustments RP1'!C74 -> 0 | O6: 0 | P6: =M6+N6-O6 -> 0 | T6: =CostCategory_A_RP2 -> 0 | U6: ='Adjustments RP2'!C74 -> 0 | V6: 0 | W6: =T6+U6-V6 -> 0 | AA6: =CostCategory_A_RP3 -> 0 | AB6: ='Adjustments RP3'!C74 -> 0 | AC6: 0 | AD6: =AA6+AB6-AC6 -> 0 | AH6: =CostCategory_A_RP4 -> 0 | AI6: ='Adjustments RP4'!C74 -> 0 | AJ6: 0 | AK6: =AH6+AI6-AJ6 -> 0 | AO6: =CostCategory_A_RP5 -> 0 | AP6: ='Adjustments RP5'!C74 -> 0 | AQ6: 0 | AR6: =AO6+AP6-AQ6 -> 0
D7: B. Direct costs of subcontracting | G7: =M7+N7+T7+U7+AA7+AB7+AH7+AI7+AO7+AP7 -> 0 | H7: =P7+W7+AD7+AK7+AR7 -> 0 | I7: 0 | M7: =CostCategory_D_RP1 -> 0 | N7: ='Adjustments RP1'!C76 -> 0 | O7: 0 | P7: 0 | T7: =CostCategory_D_RP2 -> 0 | U7: ='Adjustments RP2'!C76 -> 0 | V7: 0 | W7: 0 | AA7: =CostCategory_D_RP3 -> 0 | AB7: ='Adjustments RP3'!C76 -> 0 | AC7: 0 | AD7: 0 | AH7: =CostCategory_D_RP4 -> 0 | AI7: ='Adjustments RP4'!C76 -> 0 | AJ7: 0 | AK7: 0 | AO7: =CostCategory_D_RP5 -> 0 | AP7: ='Adjustments RP5'!C76 -> 0 | AQ7: 0 | AR7: 0
D8: [C. Direct costs of fin.Support] | G8: =M8+N8+T8+U8+AA8+AB8+AH8+AI8+AO8+AP8 -> 0 | H8: =P8+W8+AD8+AK8+AR8 -> 0 | I8: 0 | M8: =Financial_support_Third_parties_RP1 -> 0 | N8: ='Adjustments RP1'!C77 -> 0 | O8: 0 | P8: 0 | T8: =Financial_support_Third_parties_RP2 -> 0 | U8: ='Adjustments RP2'!C77 -> 0 | V8: 0 | W8: 0 | AA8: =Financial_support_Third_parties_RP3 -> 0 | AB8: ='Adjustments RP3'!C77 -> 0 | AC8: 0 | AD8: 0 | AH8: =Financial_support_Third_parties_RP4 -> 0 | AI8: ='Adjustments RP4'!C77 -> 0 | AJ8: 0 | AK8: 0 | AO8: =Financial_support_Third_parties_RP5 -> 0 | AP8: ='Adjustments RP5'!C77 -> 0 | AQ8: 0 | AR8: 0
D9: D. Other direct costs | G9: =M9+N9+T9+U9+AA9+AB9+AH9+AI9+AO9+AP9 -> 0 | H9: =P9+W9+AD9+AK9+AR9 -> 0 | I9: 0 | M9: =CostCategory_F_RP1 -> 0 | N9: ='Adjustments RP1'!C78 -> 0 | O9: 0 | P9: 0 | T9: =CostCategory_F_RP2 -> 0 | U9: ='Adjustments RP2'!C78 -> 0 | V9: 0 | W9: 0 | AA9: =CostCategory_F_RP3 -> 0 | AB9: ='Adjustments RP3'!C78 -> 0 | AC9: 0 | AD9: 0 | AH9: =CostCategory_F_RP4 -> 0 | AI9: ='Adjustments RP4'!C78 -> 0 | AJ9: 0 | AK9: 0 | AO9: =CostCategory_F_RP5 -> 0 | AP9: ='Adjustments RP5'!C78 -> 0 | AQ9: 0 | AR9: 0
D10: E. Indirect costs | G10: =M10+N10+T10+U10+AA10+AB10+AH10+AI10+AO10+AP10 -> 0 | H10: =P10+W10+AD10+AK10+AR10 -> 0 | I10: 0 | M10: =Indirect_Costs_RP1 -> 0 | N10: ='Adjustments RP1'!C79 -> 0 | O10: 0 | P10: 0 | T10: =Indirect_Costs_RP2 -> 0 | U10: ='Adjustments RP2'!C79 -> 0 | V10: 0 | W10: 0 | AA10: =Indirect_Costs_RP3 -> 0 | AB10: ='Adjustments RP3'!C79 -> 0 | AC10: 0 | AD10: 0 | AH10: =Indirect_costs_RP4 -> 0 | AI10: ='Adjustments RP4'!C79 -> 0 | AJ10: 0 | AK10: 0 | AO10: =Indirect_Costs_RP5 -> 0 | AP10: ='Adjustments RP5'!C79 -> 0 | AQ10: 0 | AR10: 0
D11: Total costs | F11: =SUM(F6:F10) -> 0 | G11: =SUM(G6:G10) -> 0 | H11: =SUM(H6:H10) -> 0 | I11: 0 | M11: =TotalCosts_RP1 -> 0 | N11: ='Adjustments RP1'!C80 -> 0 | O11: =SUM(O6:O10) -> 0 | P11: 0 | T11: =TotalCosts_RP2 -> 0 | U11: ='Adjustments RP2'!C80 -> 0 | V11: =SUM(V6:V10) -> 0 | W11: 0 | AA11: =TotalCosts_RP3 -> 0 | AB11: ='Adjustments RP3'!C80 -> 0 | AC11: =SUM(AC6:AC10) -> 0 | AD11: 0 | AH11: =TotalCosts_RP4 -> 0 | AI11: ='Adjustments RP4'!C80 -> 0 | AJ11: =SUM(AJ6:AJ10) -> 0 | AK11: 0 | AO11: =TotalCosts_RP5 -> 0 | AP11: ='Adjustments RP5'!C80 -> 0 | AQ11: =SUM(AQ6:AQ10) -> 0 | AR11: 0
D13: EU-contribution
D14: Requested EU-contribution | G14: =M14+N14+T14+U14+AA14+AB14+AH14+AI14+AO14+AP14 -> 0 | H14: =P14+W14+AD14+AK14+AR14 -> 0 | I14: =F14-G14 -> 0 | M14: =Requested_EU_Contribution_RP1 -> 0 | N14: ='Adjustments RP1'!C83 -> 0 | T14: =Requested_EU_Contribution_RP2 -> 0 | U14: ='Adjustments RP2'!C83 -> 0 | AA14: =Requested_EU_Contribution_RP3 -> 0 | AB14: ='Adjustments RP3'!C83 -> 0 | AH14: =Requested_EU_Contribution_RP4 -> 0 | AI14: ='Adjustments RP4'!C83 -> 0 | AO14: =Requested_EU_Contribution_RP5 -> 0 | AP14: ='Adjustments RP5'!C83 -> 0
A16: query balance BO2009
A17: where orgenh <orgenh>
A18: where akt/proj <aktproj>
A19: *where period <fperiod>-<tperiod>
A20: relation res2004, konto
A22: columns | B22: code res2004 | O22: Amount | V22: Amount | AC22: Amount | AJ22: Amount | AQ22: Amount
A23: crosstab orgenh | O23: <orgenh> | V23: <orgenh> | AC23: <orgenh> | AJ23: <orgenh> | AQ23: <orgenh>
A24: crosstab akt/proj | O24: <aktproj> | V24: <aktproj> | AC24: <aktproj> | AJ24: <aktproj> | AQ24: <aktproj>
A25: crosstab period | O25: <RP1start>-<RP1end> | V25: <RP2start>-<RP2end> | AC25: <RP3start>-<RP3end> | AJ25: <RP4start>-<RP4end> | AQ25: <RP5start>-<RP5end>
F27: Subcontracting | M27: Subcontracting | T27: Subcontracting | AA27: Subcontracting | AH27: Subcontracting | AO27: Subcontracting
F28: Task | G28: Kostnad | H28: Vernr | M28: Task | O28: SEK | P28: Vernr | T28: Task | V28: SEK | W28: Vernr | AA28: Task | AC28: SEK | AD28: Vernr | AH28: Task | AJ28: SEK | AK28: Vernr | AO28: Task | AQ28: SEK | AR28: Vernr
G39: =SUM(G29:G38) -> 0 | O39: =SUM(O29:O38) -> 0 | V39: =SUM(V29:V38) -> 0 | AC39: =SUM(AC29:AC38) -> 0 | AJ39: =SUM(AJ29:AJ38) -> 0 | AQ39: =SUM(AQ29:AQ38) -> 0
P40: ='Ekonomisk projektbeskrivning'!B21 -> 0 | W40: ='Ekonomisk projektbeskrivning'!B22 -> 0 | AD40: ='Ekonomisk projektbeskrivning'!B23 -> 0 | AK40: ='Ekonomisk projektbeskrivning'!B24 -> 0 | AR40: ='Ekonomisk projektbeskrivning'!B25 -> 0
D41: Kostnader | F41: Budget SEK | G41: Bokfört Agresso | H41: Approved | I41: Avvikelse | O41: Bokfört Agresso | P41: Approved | V41: Bokfört Agresso | W41: Approved | AC41: Bokfört Agresso | AD41: Approved | AJ41: Bokfört Agresso | AK41: Approved | AQ41: Bokfört Agresso | AR41: Approved
A42: summary | B42: C01;C02;C03 | C42: C01-C03 | D42: A. Direct personnel costs | F42: ='Aktuell budget'!I20+'Aktuell budget'!I21+'Aktuell budget'!I22 -> 0 | G42: =O42+V42+AC42+AJ42+AQ42 -> 0 | H42: 0 | I42: =G42-H42 -> 0 | O42: 0 | P42: =P6*$P$40 -> 0 | V42: 0 | W42: =W6*$W40 -> 0 | AC42: 0 | AD42: =AD6*$AD40 -> 0 | AJ42: 0 | AK42: =AK6*$AK40 -> 0 | AQ42: 0 | AR42: =AR6*$AR40 -> 0
D43: B. Direct costs of subcontracting | G43: 0 | H43: 0 | I43: 0 | O43: =O39 -> 0 | P43: =P7*$P$40 -> 0 | V43: =V7*$W40 -> 0 | W43: =W7*$W40 -> 0 | AC43: =AC7*$AD40 -> 0 | AD43: =AD7*$AD40 -> 0 | AJ43: =AJ7*$AK40 -> 0 | AK43: =AK7*$AK40 -> 0 | AQ43: =AQ7*$AR40 -> 0 | AR43: =AR7*$AR40 -> 0
D44: [C. Direct costs of fin.Support] | G44: 0 | H44: 0 | I44: 0 | O44: =Financial_support_Third_parties_RP1 -> 0 | P44: =P8*$P$40 -> 0 | V44: =V8*$W40 -> 0 | W44: =W8*$W40 -> 0 | AC44: =AC8*$AD40 -> 0 | AD44: =AD8*$AD40 -> 0 | AJ44: =AJ8*$AK40 -> 0 | AK44: =AK8*$AK40 -> 0 | AQ44: =AQ8*$AR40 -> 0 | AR44: =AR8*$AR40 -> 0
A45: summary | B45: C06;C07;C08;C09;D01;D02,D03;E01;E02;E03;E04;E05;E06;E07;E08;E09;E10;E11;E12;E13;E14;E15;F01;G01; | C45: C06-C09, D01-D03, E01-E15, F01, G01 | D45: D. Other direct costs (inkl. subcontracting) | F45: ='Aktuell budget'!I31+'Aktuell budget'!I45+'Aktuell budget'!I46+'Aktuell budget'!I47+'Aktuell budget'!I26+'Aktuell budget'!I25+'Aktuell budget'!I24+'Aktuell budget'!I23 -> 0 | G45: =O45+V45+AC45+AJ45+AQ45 -> 0 | H45: =P47+W47+AD47+AK47+AR47 -> 0 | I45: 0 | O45: 0 | V45: 0 | AC45: 0 | AJ45: 0 | AQ45: 0
D46: Avdrag för subcontracting | F46: =-F43 -> 0 | G46: =O46+V46+AC46+AJ46+AQ46 -> 0 | I46: 0 | O46: =-O39 -> 0
D47: D. Other direct costs (excl. subcontracting) | F47: =SUM(F45:F46) -> 0 | G47: =O47+V47+AC47+AJ47+AQ47 -> 0 | I47: 0 | O47: =SUM(O45:O46) -> 0 | P47: =P9*$P$40 -> 0 | V47: =V9*$W40 -> 0 | W47: =W9*$W40 -> 0 | AC47: =AC9*$AD40 -> 0 | AD47: =AD9*$AD40 -> 0 | AJ47: =AJ9*$AK40 -> 0 | AK47: =AK9*$AK40 -> 0 | AQ47: =AQ9*$AR40 -> 0 | AR47: =AR9*$AR40 -> 0
A48: summary | B48: B01;B02 | C48: B01-B02 | D48: E. Indirect costs | F48: ='Aktuell budget'!I19 -> 0 | G48: 0 | H48: =P48+W48+AD48+AK48+AR48 -> 0 | I48: 0 | O48: 0 | P48: =P10*$P$40 -> 0 | V48: 0 | W48: =W10*$W40 -> 0 | AC48: 0 | AD48: =AD10*$AD40 -> 0 | AJ48: 0 | AK48: =AK10*$AK40 -> 0 | AQ48: 0 | AR48: =AR10*$AR40 -> 0
D49: Summa kostnader | F49: =SUM(F42+F43+F44+F47+F48) -> 0 | G49: =O49+V49+AC49+AJ49+AQ49 -> 0 | H49: =P49+W49+AD49+AK49+AR49 -> 0 | I49: 0 | O49: =O42+O43+O44+O47+O48 -> 0 | P49: =SUM(P42:P48) -> 0 | V49: =SUM(V42:V48) -> 0 | W49: =SUM(W42:W48) -> 0 | AC49: =SUM(AC42:AC48) -> 0 | AD49: =SUM(AD42:AD48) -> 0 | AJ49: =SUM(AJ42:AJ48) -> 0 | AK49: =SUM(AK42:AK48) -> 0 | AQ49: =SUM(AQ42:AQ48) -> 0 | AR49: =SUM(AR42:AR48) -> 0
D51: Intäkter | F51: Budget SEK | G51: Bokfört Agresso | O51: Bokfört Agresso | V51: Bokfört Agresso | AC51: Bokfört Agresso | AJ51: Bokfört Agresso | AQ51: Bokfört Agresso
A52: summary | B52: A08 | C52: A08 | D52: EU-bidrag | F52: ='Aktuell budget'!I12 -> 0 | G52: =O52+V52+AC52+AJ52+AQ52 -> 0 | O52: 0 | V52: 0 | AC52: 0 | AJ52: 0 | AQ52: 0
A53: Summary | B53: A09 | C53: A09 | D53: Periodisering EU-bidrag | F53: ='Aktuell budget'!I13 -> 0 | G53: =O53+V53+AC53+AJ53+AQ53 -> 0 | O53: 0 | V53: 0 | AC53: 0 | AJ53: 0 | AQ53: 0
A54: Summary | B54: A02;A03;A04;A05 | C54: A02-A05 | D54: Samfinansiering Högskolan | F54: ='Aktuell budget'!I7+'Aktuell budget'!I8+'Aktuell budget'!I9+'Aktuell budget'!I10 -> 0 | G54: =O54+V54+AC54+AJ54+AQ54 -> 0 | O54: 0 | V54: 0 | AC54: 0 | AJ54: 0 | AQ54: 0
A55: Summary | B55: A06;A07;A10 | C55: A06-A07, A10 | D55: Övriga intäkter | F55: ='Aktuell budget'!I11+'Aktuell budget'!I14 -> 0 | G55: =O55+V55+AC55+AJ55+AQ55 -> 0 | O55: 0 | V55: 0 | AC55: 0 | AJ55: 0 | AQ55: 0
D56: Summa intäkter | F56: =SUM(F52:F55) -> 0 | G56: =SUM(G52:G55) -> 0 | O56: =SUM(O52:O55) -> 0 | V56: =SUM(V52:V55) -> 0 | AC56: =SUM(AC52:AC55) -> 0 | AJ56: =SUM(AJ52:AJ55) -> 0 | AQ56: =SUM(AQ52:AQ55) -> 0
D58: Transfereringar | F58: Budget SEK | G58: Bokfört Agresso | O58: Bokfört Agresso | V58: Bokfört Agresso | AC58: Bokfört Agresso | AJ58: Bokfört Agresso | AQ58: Bokfört Agresso
A59: summary | B59: I01 | C59: I01 | D59: Erhållna medel | F59: ='Aktuell budget'!I49 -> 0 | G59: =O59+V59+AC59+AJ59+AQ59 -> 0 | O59: 0 | V59: 0 | AC59: 0 | AJ59: 0 | AQ59: 0
A60: summary | B60: I02 | C60: I02 | D60: Periodisering erhållna medel | F60: ='Aktuell budget'!I50 -> 0 | G60: =O60+V60+AC60+AJ60+AQ60 -> 0 | O60: 0 | V60: 0 | AC60: 0 | AJ60: 0 | AQ60: 0
A61: summary | B61: I03 | C61: I03 | D61: Lämnade bidrag | F61: ='Aktuell budget'!I51 -> 0 | G61: =O61+V61+AC61+AJ61+AQ61 -> 0 | O61: 0 | V61: 0 | AC61: 0 | AJ61: 0 | AQ61: 0
D62: Summa transfereringar | F62: =SUM(F59:F61) -> 0 | G62: =SUM(G59:G61) -> 0 | O62: =SUM(O58:O61) -> 0 | V62: =SUM(V58:V61) -> 0 | AC62: =SUM(AC58:AC61) -> 0 | AJ62: =SUM(AJ58:AJ61) -> 0 | AQ62: =SUM(AQ58:AQ61) -> 0
A64: query balance BO2009
A65: where orgenh <orgenh>
A66: where akt/proj <aktproj>
A67: *where period <fperiod>-<tperiod>
A68: relation res2004, konto
A69: columns | B69: code konto | G69: Amount
A70: crosstab orgenh | G70: <orgenh>
A71: crosstab akt/proj | G71: <aktproj>
A72: *crosstab period | G72: <RP1start>-<RP5end>
D73: Övriga skulder | F73: Budget SEK | G73: Bokfört Agresso SEK
A74: sum konto | B74: 2597 | C74: 2597 | D74: Avräkning EU-medel, sv | G74: 0
A75: sum konto | B75: 2598 | C75: 2598 | D75: Avräkning, EU-medel | G75: 0
A76: sum konto | B76: 2599 | C76: 2599 | D76: Övriga skulder, utomstatliga | G76: 0
D77: Summa övriga skulder | F77: ='Aktuell budget'!I67 -> 0 | G77: =SUM(G74:G76) -> 0
D79: Balans periodiseringar | G79: Bokfört Agresso
A80: sum konto | B80: 27* | C80: 27* | D80: Oförbrukade bidrag och förutbetalda avgifter | G80: 0
A81: sum konto | B81: 16* | C81: 16* | D81: Upplupna intäkter | G81: 0
D82: Summa balans | G82: =SUM(G81:G81) -> 0
A84: query balance BO2009
A85: where orgenh <orgenh>
A86: where akt/proj <aktproj>
A87: *where period <fperiod>-<tperiod>
A88: relation res2004, konto
A89: columns | B89: code konto | G89: Amount
A90: crosstab orgenh | G90: <orgenh>
A91: crosstab akt/proj | G91: <aktproj>
A92: crosstab period | G92: <UBBalansStart>-<UBBalansEnd>
D93: Saldo Balans myndighetskapital | F93: Budget SEK | G93: Bokfört Agresso
A94: sum konto | B94: 205*; 206* | C94: 205*-206* | D94: Myndighetskapital, bundet | F94: ='Aktuell budget'!I55 -> 0 | G94: 0
A95: sum konto | B95: 207*;209* | C95: 207*;209* | D95: Myndighetskapital, fritt | F95: ='Aktuell budget'!I56 -> 0 | G95: 0
D96: Summa balans | F96: =SUM(F94:F95) -> 0 | G96: =SUM(G94:G95) -> 0

Sheet In_Ut-betalningar bidrag EURO
A1: Uppföljning in- och utbetalningar som rör projektet på Valutakontot
A3: Project: | B3: ='Ekonomisk projektbeskrivning'!D5 -> 0
A4: GA: | B4: ='Ekonomisk projektbeskrivning'!D17 -> 0
A6: Vernr | B6: Konto | C6: Belopp EUR | D6: Belopp SEK | E6: Text | F6: IN/UT | G6: Avsändare (vid IN) | H6: Mottagare (vid UT)
A37: SALDO VALUTAKONTO: | C37: =SUM(C7:C36) -> 0 | D37: =SUM(D7:D36) -> 0

Sheet In_Ut-bet på aktproj Agresso
A1: sql SELECT dim_1, dim_2, voucher_no, period, trans_date, VERIFIKATIONER.account, VERIFIKATIONER.description AS VERTEXT, amount, KONTO.description AS KONTONAMN, cur_amount, currency
A2: sql FROM agltransact AS VERIFIKATIONER
A3: sql FULL JOIN aglaccounts as KONTO
A4: sql ON VERIFIKATIONER.account = KONTO.account
A5: =C5 -> sql WHERE dim_1='' | C5: =CONCATENATE("sql WHERE dim_1='"&E15&"'") -> sql WHERE dim_1=''
A6: =C6 -> sql AND dim_2='' | C6: =CONCATENATE("sql AND dim_2='"&E16&"'") -> sql AND dim_2=''
A7: =C7 -> sql AND period >='' | C7: =CONCATENATE("sql AND period >='"&E17&"'") -> sql AND period >=''
A8: =C8 -> sql AND period <='' | C8: =CONCATENATE("sql AND period <='"&E18&"'") -> sql AND period <=''
A9: sql AND KONTO.client='BO'
A10: query
A11: sort account
A12: columns | B12: code account | C12: text dim_1 | D12: text dim_2 | E12: text voucher_no | F12: text Period | G12: trans_date | H12: text account | I12: KONTONAMN | J12: VERTEXT | K12: amount
C13: Transaktioner IN-/Utbetalningar och överföring av anslag, transfereringar mm.
C15: Orgenhet:
C16: Akt/Proj:
C17: Från period: | F17: OBS: året börjar med period 00
C18: Till period: | F18: OBS: året slutar med period 15
C22: Orgenhet | D22: Akt/proj | E22: Vernr | F22: Period | G22: Ver.datum | H22: Konto | I22: Konto(T) | J22: Verifikationstext | K22: Belopp SEK
A24: detail | B24: 2597 | G24: 00:00:00 | I24: 0 | J24: 0 | K24: 0
J25: SUMMA konto 2597 Avräkning EU-medel, svenska deltagare | K25: =SUM(K23:K24) -> 0
A27: detail | B27: 2598 | G27: 00:00:00 | I27: 0 | J27: 0 | K27: 0
J28: SUMMA konto 2598 Avräkning, EU-medel | K28: =SUM(K26:K27) -> 0
A30: detail | B30: 2599 | G30: 00:00:00 | I30: 0 | J30: 0 | K30: 0
J31: SUMMA konto 2599 Övriga skulder | K31: =SUM(K29:K30) -> 0
A33: detail | B33: 34* | G33: 00:00:00 | I33: 0 | J33: 0 | K33: 0
J34: SUMMA 34*-konton Avgiftsintäkter | K34: =SUM(K33:K33) -> 0
A36: detail | B36: 35* | G36: 00:00:00 | I36: 0 | J36: 0 | K36: 0
A37: detail | B37: 36* | G37: 00:00:00 | I37: 0 | J37: 0 | K37: 0
A38: detail | B38: 37* | G38: 00:00:00 | I38: 0 | J38: 0 | K38: 0
J39: SUMMA 35*-37*-konton Bidrag | K39: =SUM(K35:K38) -> 0
A41: detail | B41: 38* | G41: 00:00:00 | I41: 0 | J41: 0 | K41: 0
J42: SUMMA 38*-konton Finansiella intäkter | K42: =SUM(K40:K41) -> 0
A44: detail | B44: 7* | G44: 00:00:00 | I44: 0 | J44: 0 | K44: 0
J45: SUMMA 7*-konton Transfereringar | K45: =SUM(K43:K44) -> 0
A47: detail | B47: 93* | G47: 00:00:00 | I47: 0 | J47: 0 | K47: 0
J48: SUMMA 93*-konton Interna anslag | K48: =SUM(K46:K47) -> 0
A50: detail | B50: 993* | G50: 00:00:00 | I50: 0 | J50: 0 | K50: 0
J51: SUMMA 993*-konton Enhetsinterna anslag medfin påslag | K51: =SUM(K49:K50) -> 0

Sheet Personnel costs RP1
B1: PERSONNEL COSTS - RP1
B3: Project: | C3: ='Ekonomisk projektbeskrivning'!D5 -> 0 | H3: Grant Agreement No: | I3: ='Ekonomisk projektbeskrivning'!D17 -> 0
B5: Beneficiary: | C5: Hoegskolan i Boras / University of Borås
B7: Reporting period 1: | C7: =IF('Ekonomisk projektbeskrivning'!E21<>"",'Ekonomisk projektbeskrivning'!E21,"") ->  | D7: -- | E7: =IF('Ekonomisk projektbeskrivning'!F21<>"",'Ekonomisk projektbeskrivning'!F21,"") -> 
B9: Exchange rate SEK-EUR: | C9: ='Ekonomisk projektbeskrivning'!B21 -> 0
B11: Option for calculating Hourly rate: | D11: Option 3: Standard annual productive hours (1700, 1732, 1756)
B14: Name | C14: WP | D14: Calender year | F14: Fiscal year | G14: Total salary cost in payroll (SEK) | H14: Salary costs for Additional remunerations that is not related to the project (SEK) | I14: Annual personnel costs (SEK) | K14: Employment months (according to time sheet summary) | L14: Annual productive hours | M14: Employment level (according to time sheet summary) | N14: Annual productive hours Pro-Rata | P14: Hourly/daily rate (SEK) | Q14: Worked hours/days in the project | R14: PMs | S14: Calculated eligible personnel cost for the project (SEK) | T14: Total salary cost in payroll for the person (SEK) | U14: Difference (SEK) | V14: Personnel cost to claim in form C (SEK) | W14: Personnel cost to claim in form C (€)
B15: Person 1
D16: =$D$140 -> Year 1: | E16: =$E$140 -> 1900 | F16: =$I$140 ->  | H16: 0 | I16: =SUM(G16:H16) -> 0 | N16: =L16/12*K16*M16 -> 0 | P16: =(IFERROR(I16/L16,0)) -> 0 | R16: =(IFERROR((Q16/L16)*12,0)) -> 0 | S16: =P16*Q16 -> 0 | T16: 26000 | U16: =S16-T16 -> -26000 | V16: =IF(T16<=S16,T16,S16) -> 0 | W16: =S16/$C$9 -> 
D17: =$D$141 -> Year 2: | E17: =$E$141 -> 0 | F17: =$I$141 ->  | H17: 0 | I17: =SUM(G17:H17) -> 0 | N17: =L17/12*K17*M17 -> 0 | P17: =(IFERROR(I17/L17,0)) -> 0 | R17: =(IFERROR((Q17/L17)*12,0)) -> 0 | S17: =P17*Q17 -> 0 | T17: 40000 | U17: =S17-T17 -> -40000 | V17: =IF(T17<=S17,T17,S17) -> 0 | W17: =S17/$C$9 -> 
D18: =$D$142 -> Year 3: | E18: =$E$142 -> 0 | F18: =$I$142 ->  | I18: =SUM(G18:H18) -> 0 | N18: =L18/12*K18*M18 -> 0 | P18: 0 | R18: 0 | S18: =P18*Q18 -> 0 | U18: =S18-T18 -> 0 | V18: =IF(T18<=S18,T18,S18) -> 0
B19: Person 2
D20: =$D$140 -> Year 1: | E20: =$E$140 -> 1900 | F20: =$I$140 ->  | H20: 0 | I20: =SUM(G20:H20) -> 0 | N20: =L20/12*K20*M20 -> 0 | P20: =(IFERROR(I20/L20,0)) -> 0 | R20: =(IFERROR((Q20/L20)*12,0)) -> 0 | S20: =P20*Q20 -> 0 | U20: =S20-T20 -> 0 | V20: =IF(T20<=S20,T20,S20) -> 0 | W20: =S20/$C$9 -> 
D21: =$D$141 -> Year 2: | E21: =$E$141 -> 0 | F21: =$I$141 ->  | H21: 0 | I21: =SUM(G21:H21) -> 0 | N21: =L21/12*K21*M21 -> 0 | P21: 0 | R21: 0 | S21: =P21*Q21 -> 0 | U21: =S21-T21 -> 0 | V21: =IF(T21<=S21,T21,S21) -> 0
D22: =$D$142 -> Year 3: | E22: =$E$142 -> 0 | F22: =$I$142 ->  | H22: 0 | I22: =SUM(G22:H22) -> 0 | N22: =L22/12*K22*M22 -> 0 | P22: 0 | R22: 0 | S22: =P22*Q22 -> 0 | U22: =S22-T22 -> 0 | V22: =IF(T22<=S22,T22,S22) -> 0
B23: Person 3
D24: =$D$140 -> Year 1: | E24: =$E$140 -> 1900 | F24: =$I$140 ->  | H24: 0 | I24: =SUM(G24:H24) -> 0 | N24: =L24/12*K24*M24 -> 0 | P24: =(IFERROR(I24/L24,0)) -> 0 | R24: =(IFERROR((Q24/L24)*12,0)) -> 0 | S24: =P24*Q24 -> 0 | U24: =S24-T24 -> 0 | V24: =IF(T24<=S24,T24,S24) -> 0 | W24: =S24/$C$9 -> 
D25: =$D$141 -> Year 2: | E25: =$E$141 -> 0 | F25: =$I$141 ->  | H25: 0 | I25: =SUM(G25:H25) -> 0 | N25: =L25/12*K25*M25 -> 0 | P25: 0 | R25: 0 | S25: =P25*Q25 -> 0 | U25: =S25-T25 -> 0 | V25: =IF(T25<=S25,T25,S25) -> 0
D26: =$D$142 -> Year 3: | E26: =$E$142 -> 0 | F26: =$I$142 ->  | H26: 0 | I26: =SUM(G26:H26) -> 0 | N26: =L26/12*K26*M26 -> 0 | P26: 0 | R26: 0 | S26: =P26*Q26 -> 0 | U26: =S26-T26 -> 0 | V26: =IF(T26<=S26,T26,S26) -> 0
B27: Person 4
D28: =$D$140 -> Year 1: | E28: =$E$140 -> 1900 | F28: =$I$140 ->  | I28: =SUM(G28:H28) -> 0 | N28: =L28/12*K28*M28 -> 0 | P28: =(IFERROR(I28/L28,0)) -> 0 | R28: =(IFERROR((Q28/L28)*12,0)) -> 0 | S28: =P28*Q28 -> 0 | U28: =S28-T28 -> 0 | V28: =IF(T28<=S28,T28,S28) -> 0
D29: =$D$141 -> Year 2: | E29: =$E$141 -> 0 | F29: =$I$141 ->  | I29: =SUM(G29:H29) -> 0 | N29: =L29/12*K29*M29 -> 0 | P29: =(IFERROR(I29/L29,0)) -> 0 | R29: 0 | S29: =P29*Q29 -> 0 | U29: =S29-T29 -> 0 | V29: =IF(T29<=S29,T29,S29) -> 0
D30: =$D$142 -> Year 3: | E30: =$E$142 -> 0 | F30: =$I$142 ->  | I30: =SUM(G30:H30) -> 0 | N30: =L30/12*K30*M30 -> 0 | P30: 0 | R30: 0 | S30: =P30*Q30 -> 0 | U30: =S30-T30 -> 0 | V30: =IF(T30<=S30,T30,S30) -> 0
B31: Person 5
D32: =$D$140 -> Year 1: | E32: =$E$140 -> 1900 | F32: =$I$140 ->  | I32: =SUM(G32:H32) -> 0 | N32: =L32/12*K32*M32 -> 0 | P32: =(IFERROR(I32/L32,0)) -> 0 | R32: =(IFERROR((Q32/L32)*12,0)) -> 0 | S32: =P32*Q32 -> 0 | U32: =S32-T32 -> 0 | V32: =IF(T32<=S32,T32,S32) -> 0
D33: =$D$141 -> Year 2: | E33: =$E$141 -> 0 | F33: =$I$141 ->  | I33: =SUM(G33:H33) -> 0 | N33: =L33/12*K33*M33 -> 0 | P33: 0 | R33: 0 | S33: =P33*Q33 -> 0 | U33: =S33-T33 -> 0 | V33: =IF(T33<=S33,T33,S33) -> 0
D34: =$D$142 -> Year 3: | E34: =$E$142 -> 0 | F34: =$I$142 ->  | I34: =SUM(G34:H34) -> 0 | N34: =L34/12*K34*M34 -> 0 | P34: 0 | R34: 0 | S34: =P34*Q34 -> 0 | U34: =S34-T34 -> 0 | V34: =IF(T34<=S34,T34,S34) -> 0
B35: Person 6
D36: =$D$140 -> Year 1: | E36: =$E$140 -> 1900 | F36: =$I$140 ->  | I36: =SUM(G36:H36) -> 0 | N36: =L36/12*K36*M36 -> 0 | P36: =(IFERROR(I36/L36,0)) -> 0 | R36: =(IFERROR((Q36/L36)*12,0)) -> 0 | S36: =P36*Q36 -> 0 | U36: =S36-T36 -> 0 | V36: =IF(T36<=S36,T36,S36) -> 0
D37: =$D$141 -> Year 2: | E37: =$E$141 -> 0 | F37: =$I$141 ->  | I37: =SUM(G37:H37) -> 0 | N37: =L37/12*K37*M37 -> 0 | P37: 0 | R37: 0 | S37: =P37*Q37 -> 0 | U37: =S37-T37 -> 0 | V37: =IF(T37<=S37,T37,S37) -> 0
D38: =$D$142 -> Year 3: | E38: =$E$142 -> 0 | F38: =$I$142 ->  | I38: =SUM(G38:H38) -> 0 | N38: =L38/12*K38*M38 -> 0 | P38: 0 | R38: 0 | S38: =P38*Q38 -> 0 | U38: =S38-T38 -> 0 | V38: =IF(T38<=S38,T38,S38) -> 0
B39: Person 7
D40: =$D$140 -> Year 1: | E40: =$E$140 -> 1900 | F40: =$I$140 ->  | I40: =SUM(G40:H40) -> 0 | N40: =L40/12*K40*M40 -> 0 | P40: =(IFERROR(I40/L40,0)) -> 0 | R40: =(IFERROR((Q40/L40)*12,0)) -> 0 | S40: =P40*Q40 -> 0 | U40: =S40-T40 -> 0 | V40: =IF(T40<=S40,T40,S40) -> 0
D41: =$D$141 -> Year 2: | E41: =$E$141 -> 0 | F41: =$I$141 ->  | I41: =SUM(G41:H41) -> 0 | N41: =L41/12*K41*M41 -> 0 | P41: 0 | R41: 0 | S41: =P41*Q41 -> 0 | U41: =S41-T41 -> 0 | V41: =IF(T41<=S41,T41,S41) -> 0
D42: =$D$142 -> Year 3: | E42: =$E$142 -> 0 | F42: =$I$142 ->  | I42: =SUM(G42:H42) -> 0 | N42: =L42/12*K42*M42 -> 0 | P42: 0 | R42: 0 | S42: =P42*Q42 -> 0 | U42: =S42-T42 -> 0 | V42: =IF(T42<=S42,T42,S42) -> 0
B43: Person 8
D44: =$D$140 -> Year 1: | E44: =$E$140 -> 1900 | F44: =$I$140 ->  | I44: =SUM(G44:H44) -> 0 | N44: =L44/12*K44*M44 -> 0 | P44: =(IFERROR(I44/L44,0)) -> 0 | R44: =(IFERROR((Q44/L44)*12,0)) -> 0 | S44: =P44*Q44 -> 0 | U44: =S44-T44 -> 0 | V44: =IF(T44<=S44,T44,S44) -> 0
D45: =$D$141 -> Year 2: | E45: =$E$141 -> 0 | F45: =$I$141 ->  | I45: =SUM(G45:H45) -> 0 | N45: =L45/12*K45*M45 -> 0 | P45: 0 | R45: 0 | S45: =P45*Q45 -> 0 | U45: =S45-T45 -> 0 | V45: =IF(T45<=S45,T45,S45) -> 0
D46: =$D$142 -> Year 3: | E46: =$E$142 -> 0 | F46: =$I$142 ->  | I46: =SUM(G46:H46) -> 0 | N46: =L46/12*K46*M46 -> 0 | P46: 0 | R46: 0 | S46: =P46*Q46 -> 0 | U46: =S46-T46 -> 0 | V46: =IF(T46<=S46,T46,S46) -> 0
B47: Person 9
D48: =$D$140 -> Year 1: | E48: =$E$140 -> 1900 | F48: =$I$140 ->  | I48: =SUM(G48:H48) -> 0 | N48: =L48/12*K48*M48 -> 0 | P48: =(IFERROR(I48/L48,0)) -> 0 | R48: =(IFERROR((Q48/L48)*12,0)) -> 0 | S48: =P48*Q48 -> 0 | U48: =S48-T48 -> 0 | V48: =IF(T48<=S48,T48,S48) -> 0
D49: =$D$141 -> Year 2: | E49: =$E$141 -> 0 | F49: =$I$141 ->  | I49: =SUM(G49:H49) -> 0 | N49: =L49/12*K49*M49 -> 0 | P49: 0 | R49: 0 | S49: =P49*Q49 -> 0 | U49: =S49-T49 -> 0 | V49: =IF(T49<=S49,T49,S49) -> 0
D50: =$D$142 -> Year 3: | E50: =$E$142 -> 0 | F50: =$I$142 ->  | I50: =SUM(G50:H50) -> 0 | N50: =L50/12*K50*M50 -> 0 | P50: 0 | R50: 0 | S50: =P50*Q50 -> 0 | U50: =S50-T50 -> 0 | V50: =IF(T50<=S50,T50,S50) -> 0
B51: Person 10
A52: p | D52: =$D$140 -> Year 1: | E52: =$E$140 -> 1900 | F52: =$I$140 ->  | I52: =SUM(G52:H52) -> 0 | N52: =L52/12*K52*M52 -> 0 | P52: =(IFERROR(I52/L52,0)) -> 0 | R52: =(IFERROR((Q52/L52)*12,0)) -> 0 | S52: =P52*Q52 -> 0 | U52: =S52-T52 -> 0 | V52: =IF(T52<=S52,T52,S52) -> 0
D53: =$D$141 -> Year 2: | E53: =$E$141 -> 0 | F53: =$I$141 ->  | I53: =SUM(G53:H53) -> 0 | N53: =L53/12*K53*M53 -> 0 | P53: 0 | R53: 0 | S53: =P53*Q53 -> 0 | U53: =S53-T53 -> 0 | V53: =IF(T53<=S53,T53,S53) -> 0
D54: =$D$142 -> Year 3: | E54: =$E$142 -> 0 | F54: =$I$142 ->  | I54: =SUM(G54:H54) -> 0 | N54: =L54/12*K54*M54 -> 0 | P54: 0 | R54: 0 | S54: =P54*Q54 -> 0 | U54: =S54-T54 -> 0 | V54: =IF(T54<=S54,T54,S54) -> 0
B55: Person 11
D56: =$D$140 -> Year 1: | E56: =$E$140 -> 1900 | F56: =$I$140 ->  | I56: =SUM(G56:H56) -> 0 | N56: =L56/12*K56*M56 -> 0 | P56: =(IFERROR(I56/L56,0)) -> 0 | R56: =(IFERROR((Q56/L56)*12,0)) -> 0 | S56: =P56*Q56 -> 0 | U56: =S56-T56 -> 0 | V56: =IF(T56<=S56,T56,S56) -> 0
D57: =$D$141 -> Year 2: | E57: =$E$141 -> 0 | F57: =$I$141 ->  | I57: =SUM(G57:H57) -> 0 | N57: =L57/12*K57*M57 -> 0 | P57: 0 | R57: 0 | S57: =P57*Q57 -> 0 | U57: =S57-T57 -> 0 | V57: =IF(T57<=S57,T57,S57) -> 0
D58: =$D$142 -> Year 3: | E58: =$E$142 -> 0 | F58: =$I$142 ->  | I58: =SUM(G58:H58) -> 0 | N58: =L58/12*K58*M58 -> 0 | P58: 0 | R58: 0 | S58: =P58*Q58 -> 0 | U58: =S58-T58 -> 0 | V58: =IF(T58<=S58,T58,S58) -> 0
B59: Person 12
D60: =$D$140 -> Year 1: | E60: =$E$140 -> 1900 | F60: =$I$140 ->  | I60: =SUM(G60:H60) -> 0 | N60: =L60/12*K60*M60 -> 0 | P60: =(IFERROR(I60/L60,0)) -> 0 | R60: =(IFERROR((Q60/L60)*12,0)) -> 0 | S60: =P60*Q60 -> 0 | U60: =S60-T60 -> 0 | V60: =IF(T60<=S60,T60,S60) -> 0
D61: =$D$141 -> Year 2: | E61: =$E$141 -> 0 | F61: =$I$141 ->  | I61: =SUM(G61:H61) -> 0 | N61: =L61/12*K61*M61 -> 0 | P61: 0 | R61: 0 | S61: =P61*Q61 -> 0 | U61: =S61-T61 -> 0 | V61: =IF(T61<=S61,T61,S61) -> 0
D62: =$D$142 -> Year 3: | E62: =$E$142 -> 0 | F62: =$I$142 ->  | I62: =SUM(G62:H62) -> 0 | N62: =L62/12*K62*M62 -> 0 | P62: 0 | R62: 0 | S62: =P62*Q62 -> 0 | U62: =S62-T62 -> 0 | V62: =IF(T62<=S62,T62,S62) -> 0
B63: Person 13
D64: =$D$140 -> Year 1: | E64: =$E$140 -> 1900 | F64: =$I$140 ->  | I64: =SUM(G64:H64) -> 0 | N64: =L64/12*K64*M64 -> 0 | P64: =(IFERROR(I64/L64,0)) -> 0 | R64: =(IFERROR((Q64/L64)*12,0)) -> 0 | S64: =P64*Q64 -> 0 | U64: =S64-T64 -> 0 | V64: =IF(T64<=S64,T64,S64) -> 0
D65: =$D$141 -> Year 2: | E65: =$E$141 -> 0 | F65: =$I$141 ->  | I65: =SUM(G65:H65) -> 0 | N65: =L65/12*K65*M65 -> 0 | P65: 0 | R65: 0 | S65: =P65*Q65 -> 0 | U65: =S65-T65 -> 0 | V65: =IF(T65<=S65,T65,S65) -> 0
D66: =$D$142 -> Year 3: | E66: =$E$142 -> 0 | F66: =$I$142 ->  | I66: =SUM(G66:H66) -> 0 | N66: =L66/12*K66*M66 -> 0 | P66: 0 | R66: 0 | S66: =P66*Q66 -> 0 | U66: =S66-T66 -> 0 | V66: =IF(T66<=S66,T66,S66) -> 0
B67: Person 14
D68: =$D$140 -> Year 1: | E68: =$E$140 -> 1900 | F68: =$I$140 ->  | I68: =SUM(G68:H68) -> 0 | N68: =L68/12*K68*M68 -> 0 | P68: =(IFERROR(I68/L68,0)) -> 0 | R68: =(IFERROR((Q68/L68)*12,0)) -> 0 | S68: =P68*Q68 -> 0 | U68: =S68-T68 -> 0 | V68: =IF(T68<=S68,T68,S68) -> 0
D69: =$D$141 -> Year 2: | E69: =$E$141 -> 0 | F69: =$I$141 ->  | I69: =SUM(G69:H69) -> 0 | N69: =L69/12*K69*M69 -> 0 | P69: 0 | R69: 0 | S69: =P69*Q69 -> 0 | U69: =S69-T69 -> 0 | V69: =IF(T69<=S69,T69,S69) -> 0
D70: =$D$142 -> Year 3: | E70: =$E$142 -> 0 | F70: =$I$142 ->  | I70: =SUM(G70:H70) -> 0 | N70: =L70/12*K70*M70 -> 0 | P70: 0 | R70: 0 | S70: =P70*Q70 -> 0 | U70: =S70-T70 -> 0 | V70: =IF(T70<=S70,T70,S70) -> 0
B71: Person 15
D72: =$D$140 -> Year 1: | E72: =$E$140 -> 1900 | F72: =$I$140 ->  | I72: =SUM(G72:H72) -> 0 | N72: =L72/12*K72*M72 -> 0 | P72: =(IFERROR(I72/L72,0)) -> 0 | R72: =(IFERROR((Q72/L72)*12,0)) -> 0 | S72: =P72*Q72 -> 0 | U72: =S72-T72 -> 0 | V72: =IF(T72<=S72,T72,S72) -> 0
D73: =$D$141 -> Year 2: | E73: =$E$141 -> 0 | F73: =$I$141 ->  | I73: =SUM(G73:H73) -> 0 | N73: =L73/12*K73*M73 -> 0 | P73: 0 | R73: 0 | S73: =P73*Q73 -> 0 | U73: =S73-T73 -> 0 | V73: =IF(T73<=S73,T73,S73) -> 0
D74: =$D$142 -> Year 3: | E74: =$E$142 -> 0 | F74: =$I$142 ->  | I74: =SUM(G74:H74) -> 0 | N74: =L74/12*K74*M74 -> 0 | P74: 0 | R74: 0 | S74: =P74*Q74 -> 0 | U74: =S74-T74 -> 0 | V74: =IF(T74<=S74,T74,S74) -> 0
B75: Person 16
D76: =$D$140 -> Year 1: | E76: =$E$140 -> 1900 | F76: =$I$140 ->  | I76: =SUM(G76:H76) -> 0 | N76: =L76/12*K76*M76 -> 0 | P76: =(IFERROR(I76/L76,0)) -> 0 | R76: =(IFERROR((Q76/L76)*12,0)) -> 0 | S76: =P76*Q76 -> 0 | U76: =S76-T76 -> 0 | V76: =IF(T76<=S76,T76,S76) -> 0
D77: =$D$141 -> Year 2: | E77: =$E$141 -> 0 | F77: =$I$141 ->  | I77: =SUM(G77:H77) -> 0 | N77: =L77/12*K77*M77 -> 0 | P77: 0 | R77: 0 | S77: =P77*Q77 -> 0 | U77: =S77-T77 -> 0 | V77: =IF(T77<=S77,T77,S77) -> 0
D78: =$D$142 -> Year 3: | E78: =$E$142 -> 0 | F78: =$I$142 ->  | I78: =SUM(G78:H78) -> 0 | N78: =L78/12*K78*M78 -> 0 | P78: 0 | R78: 0 | S78: =P78*Q78 -> 0 | U78: =S78-T78 -> 0 | V78: =IF(T78<=S78,T78,S78) -> 0
B79: Person 17
D80: =$D$140 -> Year 1: | E80: =$E$140 -> 1900 | F80: =$I$140 ->  | I80: =SUM(G80:H80) -> 0 | N80: =L80/12*K80*M80 -> 0 | P80: =(IFERROR(I80/L80,0)) -> 0 | R80: =(IFERROR((Q80/L80)*12,0)) -> 0 | S80: =P80*Q80 -> 0 | U80: =S80-T80 -> 0 | V80: =IF(T80<=S80,T80,S80) -> 0
D81: =$D$141 -> Year 2: | E81: =$E$141 -> 0 | F81: =$I$141 ->  | I81: =SUM(G81:H81) -> 0 | N81: =L81/12*K81*M81 -> 0 | P81: 0 | R81: 0 | S81: =P81*Q81 -> 0 | U81: =S81-T81 -> 0 | V81: =IF(T81<=S81,T81,S81) -> 0
D82: =$D$142 -> Year 3: | E82: =$E$142 -> 0 | F82: =$I$142 ->  | I82: =SUM(G82:H82) -> 0 | N82: =L82/12*K82*M82 -> 0 | P82: 0 | R82: 0 | S82: =P82*Q82 -> 0 | U82: =S82-T82 -> 0 | V82: =IF(T82<=S82,T82,S82) -> 0
B83: Person 18
D84: =$D$140 -> Year 1: | E84: =$E$140 -> 1900 | F84: =$I$140 ->  | I84: =SUM(G84:H84) -> 0 | N84: =L84/12*K84*M84 -> 0 | P84: =(IFERROR(I84/L84,0)) -> 0 | R84: =(IFERROR((Q84/L84)*12,0)) -> 0 | S84: =P84*Q84 -> 0 | U84: =S84-T84 -> 0 | V84: =IF(T84<=S84,T84,S84) -> 0
D85: =$D$141 -> Year 2: | E85: =$E$141 -> 0 | F85: =$I$141 ->  | I85: =SUM(G85:H85) -> 0 | N85: =L85/12*K85*M85 -> 0 | P85: 0 | R85: 0 | S85: =P85*Q85 -> 0 | U85: =S85-T85 -> 0 | V85: =IF(T85<=S85,T85,S85) -> 0
D86: =$D$142 -> Year 3: | E86: =$E$142 -> 0 | F86: =$I$142 ->  | I86: =SUM(G86:H86) -> 0 | N86: =L86/12*K86*M86 -> 0 | P86: 0 | R86: 0 | S86: =P86*Q86 -> 0 | U86: =S86-T86 -> 0 | V86: =IF(T86<=S86,T86,S86) -> 0
B87: Person 19
D88: =$D$140 -> Year 1: | E88: =$E$140 -> 1900 | F88: =$I$140 ->  | I88: =SUM(G88:H88) -> 0 | N88: =L88/12*K88*M88 -> 0 | P88: =(IFERROR(I88/L88,0)) -> 0 | R88: =(IFERROR((Q88/L88)*12,0)) -> 0 | S88: =P88*Q88 -> 0 | U88: =S88-T88 -> 0 | V88: =IF(T88<=S88,T88,S88) -> 0
D89: =$D$141 -> Year 2: | E89: =$E$141 -> 0 | F89: =$I$141 ->  | I89: =SUM(G89:H89) -> 0 | N89: =L89/12*K89*M89 -> 0 | P89: 0 | R89: 0 | S89: =P89*Q89 -> 0 | U89: =S89-T89 -> 0 | V89: =IF(T89<=S89,T89,S89) -> 0 | W89: =S89/$C$9 -> 
D90: =$D$142 -> Year 3: | E90: =$E$142 -> 0 | F90: =$I$142 ->  | I90: =SUM(G90:H90) -> 0 | N90: =L90/12*K90*M90 -> 0 | P90: 0 | R90: 0 | S90: =P90*Q90 -> 0 | U90: =S90-T90 -> 0 | V90: =IF(T90<=S90,T90,S90) -> 0
B91: Person 20
D92: =$D$140 -> Year 1: | E92: =$E$140 -> 1900 | F92: =$I$140 ->  | I92: =SUM(G92:H92) -> 0 | N92: =L92/12*K92*M92 -> 0 | P92: =(IFERROR(I92/L92,0)) -> 0 | R92: =(IFERROR((Q92/L92)*12,0)) -> 0 | S92: =P92*Q92 -> 0 | U92: =S92-T92 -> 0 | V92: =IF(T92<=S92,T92,S92) -> 0 | W92: =S92/$C$9 -> 
D93: =$D$141 -> Year 2: | E93: =$E$141 -> 0 | F93: =$I$141 ->  | I93: 0 | N93: 0 | P93: 0 | R93: 0 | S93: 0 | U93: 0 | V93: 0
D94: =$D$142 -> Year 3: | E94: =$E$142 -> 0 | F94: =$I$142 ->  | I94: 0 | N94: 0 | P94: 0 | R94: 0 | S94: 0 | U94: 0 | V94: 0
B95: Person 21
D96: =$D$140 -> Year 1: | E96: =$E$140 -> 1900 | F96: =$I$140 ->  | I96: =SUM(G96:H96) -> 0 | N96: =L96/12*K96*M96 -> 0 | P96: =(IFERROR(I96/L96,0)) -> 0 | R96: =(IFERROR((Q96/L96)*12,0)) -> 0 | S96: =P96*Q96 -> 0 | U96: =S96-T96 -> 0 | V96: =IF(T96<=S96,T96,S96) -> 0 | W96: =S96/$C$9 -> 
D97: =$D$141 -> Year 2: | E97: =$E$141 -> 0 | F97: =$I$141 ->  | I97: 0 | N97: 0 | P97: 0 | R97: 0 | S97: 0 | U97: 0 | V97: 0
D98: =$D$142 -> Year 3: | E98: =$E$142 -> 0 | F98: =$I$142 ->  | I98: 0 | N98: 0 | P98: 0 | R98: 0 | S98: 0 | U98: 0 | V98: 0
B99: Person 22
D100: =$D$140 -> Year 1: | E100: =$E$140 -> 1900 | F100: =$I$140 ->  | I100: =SUM(G100:H100) -> 0 | N100: =L100/12*K100*M100 -> 0 | P100: =(IFERROR(I100/L100,0)) -> 0 | R100: =(IFERROR((Q100/L100)*12,0)) -> 0 | S100: =P100*Q100 -> 0 | U100: =S100-T100 -> 0 | V100: =IF(T100<=S100,T100,S100) -> 0 | W100: =S100/$C$9 -> 
D101: =$D$141 -> Year 2: | E101: =$E$141 -> 0 | F101: =$I$141 ->  | I101: 0 | N101: 0 | P101: 0 | R101: 0 | S101: 0 | U101: 0 | V101: 0
D102: =$D$142 -> Year 3: | E102: =$E$142 -> 0 | F102: =$I$142 ->  | I102: 0 | N102: 0 | P102: 0 | R102: 0 | S102: 0 | U102: 0 | V102: 0
B103: Person 23
D104: =$D$140 -> Year 1: | E104: =$E$140 -> 1900 | F104: =$I$140 ->  | I104: =SUM(G104:H104) -> 0 | N104: =L104/12*K104*M104 -> 0 | P104: =(IFERROR(I104/L104,0)) -> 0 | R104: =(IFERROR((Q104/L104)*12,0)) -> 0 | S104: =P104*Q104 -> 0 | U104: =S104-T104 -> 0 | V104: =IF(T104<=S104,T104,S104) -> 0 | W104: =S104/$C$9 -> 
D105: =$D$141 -> Year 2: | E105: =$E$141 -> 0 | F105: =$I$141 ->  | I105: =SUM(G105:H105) -> 0 | N105: =L105/12*K105*M105 -> 0 | P105: 0 | R105: 0 | S105: =P105*Q105 -> 0 | U105: =S105-T105 -> 0 | V105: =IF(T105<=S105,T105,S105) -> 0
D106: =$D$142 -> Year 3: | E106: =$E$142 -> 0 | F106: =$I$142 ->  | I106: =SUM(G106:H106) -> 0 | N106: =L106/12*K106*M106 -> 0 | P106: 0 | R106: 0 | S106: =P106*Q106 -> 0 | U106: =S106-T106 -> 0 | V106: =IF(T106<=S106,T106,S106) -> 0
B107: Person 24
D108: =$D$140 -> Year 1: | E108: =$E$140 -> 1900 | F108: =$I$140 ->  | I108: =SUM(G108:H108) -> 0 | N108: =L108/12*K108*M108 -> 0 | P108: =(IFERROR(I108/L108,0)) -> 0 | R108: =(IFERROR((Q108/L108)*12,0)) -> 0 | S108: =P108*Q108 -> 0 | U108: =S108-T108 -> 0 | V108: =IF(T108<=S108,T108,S108) -> 0 | W108: =S108/$C$9 -> 
D109: =$D$141 -> Year 2: | E109: =$E$141 -> 0 | F109: =$I$141 ->  | I109: =SUM(G109:H109) -> 0 | N109: =L109/12*K109*M109 -> 0 | P109: 0 | R109: 0 | S109: =P109*Q109 -> 0 | U109: =S109-T109 -> 0 | V109: =IF(T109<=S109,T109,S109) -> 0
D110: =$D$142 -> Year 3: | E110: =$E$142 -> 0 | F110: =$I$142 ->  | I110: =SUM(G110:H110) -> 0 | N110: =L110/12*K110*M110 -> 0 | P110: 0 | R110: 0 | S110: =P110*Q110 -> 0 | U110: =S110-T110 -> 0 | V110: =IF(T110<=S110,T110,S110) -> 0
B111: Person 25
D112: =$D$140 -> Year 1: | E112: =$E$140 -> 1900 | F112: =$I$140 ->  | I112: =SUM(G112:H112) -> 0 | N112: =L112/12*K112*M112 -> 0 | P112: =(IFERROR(I112/L112,0)) -> 0 | R112: =(IFERROR((Q112/L112)*12,0)) -> 0 | S112: =P112*Q112 -> 0 | U112: =S112-T112 -> 0 | V112: =IF(T112<=S112,T112,S112) -> 0 | W112: =S112/$C$9 -> 
D113: =$D$141 -> Year 2: | E113: =$E$141 -> 0 | F113: =$I$141 ->  | I113: =SUM(G113:H113) -> 0 | N113: =L113/12*K113*M113 -> 0 | P113: 0 | R113: 0 | S113: =P113*Q113 -> 0 | U113: =S113-T113 -> 0 | V113: =IF(T113<=S113,T113,S113) -> 0
D114: =$D$142 -> Year 3: | E114: =$E$142 -> 0 | F114: =$I$142 ->  | I114: =SUM(G114:H114) -> 0 | N114: =L114/12*K114*M114 -> 0 | P114: 0 | R114: 0 | S114: =P114*Q114 -> 0 | U114: =S114-T114 -> 0 | V114: =IF(T114<=S114,T114,S114) -> 0
B115: Person 26
D116: =$D$140 -> Year 1: | E116: =$E$140 -> 1900 | F116: =$I$140 ->  | I116: =SUM(G116:H116) -> 0 | N116: =L116/12*K116*M116 -> 0 | P116: =(IFERROR(I116/L116,0)) -> 0 | R116: =(IFERROR((Q116/L116)*12,0)) -> 0 | S116: =P116*Q116 -> 0 | U116: =S116-T116 -> 0 | V116: =IF(T116<=S116,T116,S116) -> 0 | W116: =S116/$C$9 -> 
D117: =$D$141 -> Year 2: | E117: =$E$141 -> 0 | F117: =$I$141 ->  | I117: =SUM(G117:H117) -> 0 | N117: =L117/12*K117*M117 -> 0 | P117: 0 | R117: 0 | S117: =P117*Q117 -> 0 | U117: =S117-T117 -> 0 | V117: =IF(T117<=S117,T117,S117) -> 0
D118: =$D$142 -> Year 3: | E118: =$E$142 -> 0 | F118: =$I$142 ->  | I118: =SUM(G118:H118) -> 0 | N118: =L118/12*K118*M118 -> 0 | P118: 0 | R118: 0 | S118: =P118*Q118 -> 0 | U118: =S118-T118 -> 0 | V118: =IF(T118<=S118,T118,S118) -> 0
B119: Person 27
D120: =$D$140 -> Year 1: | E120: =$E$140 -> 1900 | F120: =$I$140 ->  | I120: =SUM(G120:H120) -> 0 | N120: =L120/12*K120*M120 -> 0 | P120: =(IFERROR(I120/L120,0)) -> 0 | R120: =(IFERROR((Q120/L120)*12,0)) -> 0 | S120: =P120*Q120 -> 0 | U120: =S120-T120 -> 0 | V120: =IF(T120<=S120,T120,S120) -> 0 | W120: =S120/$C$9 -> 
D121: =$D$141 -> Year 2: | E121: =$E$141 -> 0 | F121: =$I$141 ->  | I121: =SUM(G121:H121) -> 0 | N121: =L121/12*K121*M121 -> 0 | P121: 0 | R121: 0 | S121: =P121*Q121 -> 0 | U121: =S121-T121 -> 0 | V121: =IF(T121<=S121,T121,S121) -> 0
D122: =$D$142 -> Year 3: | E122: =$E$142 -> 0 | F122: =$I$142 ->  | I122: =SUM(G122:H122) -> 0 | N122: =L122/12*K122*M122 -> 0 | P122: 0 | R122: 0 | S122: =P122*Q122 -> 0 | U122: =S122-T122 -> 0 | V122: =IF(T122<=S122,T122,S122) -> 0
B123: Person 28
D124: =$D$140 -> Year 1: | E124: =$E$140 -> 1900 | F124: =$I$140 ->  | I124: =SUM(G124:H124) -> 0 | N124: =L124/12*K124*M124 -> 0 | P124: =(IFERROR(I124/L124,0)) -> 0 | R124: =(IFERROR((Q124/L124)*12,0)) -> 0 | S124: =P124*Q124 -> 0 | U124: =S124-T124 -> 0 | V124: =IF(T124<=S124,T124,S124) -> 0 | W124: =S124/$C$9 -> 
D125: =$D$141 -> Year 2: | E125: =$E$141 -> 0 | F125: =$I$141 ->  | I125: =SUM(G125:H125) -> 0 | N125: =L125/12*K125*M125 -> 0 | P125: 0 | R125: 0 | S125: =P125*Q125 -> 0 | U125: =S125-T125 -> 0 | V125: =IF(T125<=S125,T125,S125) -> 0
D126: =$D$142 -> Year 3: | E126: =$E$142 -> 0 | F126: =$I$142 ->  | I126: =SUM(G126:H126) -> 0 | N126: =L126/12*K126*M126 -> 0 | P126: 0 | R126: 0 | S126: =P126*Q126 -> 0 | U126: =S126-T126 -> 0 | V126: =IF(T126<=S126,T126,S126) -> 0
B127: Person 29
D128: =$D$140 -> Year 1: | E128: =$E$140 -> 1900 | F128: =$I$140 ->  | I128: =SUM(G128:H128) -> 0 | N128: =L128/12*K128*M128 -> 0 | P128: =(IFERROR(I128/L128,0)) -> 0 | R128: =(IFERROR((Q128/L128)*12,0)) -> 0 | S128: =P128*Q128 -> 0 | U128: =S128-T128 -> 0 | V128: =IF(T128<=S128,T128,S128) -> 0 | W128: =S128/$C$9 -> 
D129: =$D$141 -> Year 2: | E129: =$E$141 -> 0 | F129: =$I$141 ->  | I129: =SUM(G129:H129) -> 0 | N129: =L129/12*K129*M129 -> 0 | P129: 0 | R129: 0 | S129: =P129*Q129 -> 0 | U129: =S129-T129 -> 0 | V129: =IF(T129<=S129,T129,S129) -> 0
D130: =$D$142 -> Year 3: | E130: =$E$142 -> 0 | F130: =$I$142 ->  | I130: =SUM(G130:H130) -> 0 | N130: =L130/12*K130*M130 -> 0 | P130: 0 | R130: 0 | S130: =P130*Q130 -> 0 | U130: =S130-T130 -> 0 | V130: =IF(T130<=S130,T130,S130) -> 0
B131: Person 30
D132: =$D$140 -> Year 1: | E132: =$E$140 -> 1900 | F132: =$I$140 ->  | I132: =SUM(G132:H132) -> 0 | N132: =L132/12*K132*M132 -> 0 | P132: =(IFERROR(I132/L132,0)) -> 0 | R132: =(IFERROR((Q132/L132)*12,0)) -> 0 | S132: =P132*Q132 -> 0 | U132: =S132-T132 -> 0 | V132: =IF(T132<=S132,T132,S132) -> 0 | W132: =S132/$C$9 -> 
D133: =$D$141 -> Year 2: | E133: =$E$141 -> 0 | F133: =$I$141 ->  | I133: =SUM(G133:H133) -> 0 | N133: =L133/12*K133*M133 -> 0 | P133: 0 | R133: 0 | S133: =P133*Q133 -> 0 | U133: =S133-T133 -> 0 | V133: =IF(T133<=S133,T133,S133) -> 0
D134: =$D$142 -> Year 3: | E134: =$E$142 -> 0 | F134: =$I$142 ->  | I134: =SUM(G134:H134) -> 0 | N134: =L134/12*K134*M134 -> 0 | P134: 0 | R134: 0 | S134: =P134*Q134 -> 0 | U134: =S134-T134 -> 0 | V134: =IF(T134<=S134,T134,S134) -> 0
W135: =SUM(W15:W134) -> 
D139: Number of reporting months per year this reporting period
D140: Year 1: | E140: =YEAR('Ekonomisk projektbeskrivning'!E21) -> 1900 | F140: =IF(MONTH(H140)-MONTH(G140)=0,0,MONTH(H140)-MONTH(G140)+1) -> 0 | G140: ='Ekonomisk projektbeskrivning'!E21 -> 00:00:00 | H140: =IF(YEAR('Ekonomisk projektbeskrivning'!F21)='Personnel costs RP1'!E140,'Ekonomisk projektbeskrivning'!F21,CONCATENATE(E140&"-12-31")) -> 0 | I140: =IF(F140<>0,IF(F140<12,IF(MONTH(G140)>(12-F140),E140,E140-1),E140),"") -> 
D141: Year 2: | E141: =IF(YEAR('Ekonomisk projektbeskrivning'!F21)>=('Personnel costs RP1'!E140+1),('Personnel costs RP1'!E140+1),0) -> 0 | F141: =IF(E141=0,0,IF(MONTH(G141)=1,IF(MONTH(H141)=1,1,(MONTH(H141)-MONTH(G141)+1)))) -> 0 | G141: =IF(E140=YEAR('Ekonomisk projektbeskrivning'!F21),0,CONCATENATE(E141&"-01-01")) -> 0 | H141: =IF(E140+1=YEAR('Ekonomisk projektbeskrivning'!F21),'Ekonomisk projektbeskrivning'!F21,IF(E140+1>YEAR('Ekonomisk projektbeskrivning'!F21),0,CONCATENATE(E141&"-12-31"))) -> 0 | I141: =IF(F141<>0,IF(F141<12,IF(MONTH(G141)>(12-F141),E141,E141-1),E141),"") -> 
D142: Year 3: | E142: =IF(YEAR('Ekonomisk projektbeskrivning'!F21)>=('Personnel costs RP1'!E140+2),('Personnel costs RP1'!E141+1),0) -> 0 | F142: =IF(E142=0,0,IF(MONTH(G142)=1,IF(MONTH(H142)=1,1,(MONTH(H142)-MONTH(G142)+1)))) -> 0 | G142: =IF(E140+1>=YEAR('Ekonomisk projektbeskrivning'!F21),0,CONCATENATE(E140+2&"-01-01")) -> 0 | H142: =IF(E140+2=YEAR('Ekonomisk projektbeskrivning'!F21),'Ekonomisk projektbeskrivning'!F21,IF(E140+2>YEAR('Ekonomisk projektbeskrivning'!F21),0,CONCATENATE(E142&"-12-31"))) -> 0

Sheet Personnel costs RP1 (2)
B1: PERSONNEL COSTS - RP1
B3: Project:
B5: Beneficiary: | D5: Hoegskolan i Boras / University of Borås
B7: Reporting period 1: | D7: =IF('Ekonomisk projektbeskrivning'!E21<>"",'Ekonomisk projektbeskrivning'!E21,"") ->  | E7: -- | F7: =IF('Ekonomisk projektbeskrivning'!F21<>"",'Ekonomisk projektbeskrivning'!F21,"") -> 
B9: Exchange rate SEK-EUR: | D9: ='Ekonomisk projektbeskrivning'!B21 -> 0
B11: Option for calculating Hourly rate: | D11: Option 1: 1 720 Fixed hours
B14: Name | D14: Calender year | F14: Fiscal year | G14: WP | M14: Annual productive hours/days | O14: Annual productive hours/days Pro-Rata if applied | P14: Hourly/daily rate (SEK) | Q14: Worked hours/days in the project | R14: PMs | S14: Calculated eligible personnel cost for the project (SEK) | W14: Personnel cost to claim in form C (EUR)
B15: Person 1 | D15: =$D$326 -> Year 1: | E15: =$E$326 -> 1900 | F15: =$J$326 -> 0 | G15: 1 | P15: 500 | R15: =(IFERROR((Q15/M15)*12,0)) -> 0 | S15: =P15*Q15 -> 0 | W15: =IFERROR(S15/D$9,) -> 0
G16: 2 | P16: 100 | R16: =(IFERROR((Q16/M16)*12,0)) -> 0 | S16: =P16*Q16 -> 0 | W16: =IFERROR(S16/D$9,) -> 0
G17: 3 | R17: =(IFERROR((Q17/M17)*12,0)) -> 0 | S17: 0 | W17: 0
G18: 4 | R18: 0 | S18: 0 | W18: 0
G19: 5 | R19: 0 | S19: 0 | W19: 0
G20: 6 | R20: 0 | S20: 0 | W20: 0
G21: 7 | R21: 0 | S21: 0 | W21: 0
G22: 8 | R22: 0 | S22: 0 | W22: 0
G23: 9 | R23: 0 | S23: 0 | W23: 0
G24: 10 | R24: 0 | S24: 0 | W24: 0
D25: =$D$327 -> Year 2: | E25: =$E$327 -> 0 | F25: =$J$327 -> 0 | G25: 1 | R25: 0 | S25: 0 | W25: 0
G26: 2 | R26: 0 | S26: 0 | W26: 0
G27: 3 | R27: 0 | S27: 0 | W27: 0
G28: 4 | R28: 0 | S28: 0 | W28: 0
G29: 5 | R29: 0 | S29: 0 | W29: 0
G30: 6 | R30: 0 | S30: 0 | W30: 0
G31: 7 | R31: 0 | S31: 0 | W31: 0
G32: 8 | R32: 0 | S32: 0 | W32: 0
G33: 9 | R33: 0 | S33: 0 | W33: 0
G34: 10 | R34: 0 | S34: 0 | W34: 0
D35: =$D$328 -> Year 3: | E35: =$E$328 -> 0 | F35: =$J$328 -> 0 | G35: 1 | R35: 0 | S35: 0 | W35: 0
G36: 2 | R36: 0 | S36: 0 | W36: 0
G37: 3 | R37: 0 | S37: 0 | W37: 0
G38: 4 | R38: 0 | S38: 0 | W38: 0
G39: 5 | R39: 0 | S39: 0 | W39: 0
G40: 6 | R40: 0 | S40: 0 | W40: 0
G41: 7 | R41: 0 | S41: 0 | W41: 0
G42: 8 | R42: 0 | S42: 0 | W42: 0
G43: 9 | R43: 0 | S43: 0 | W43: 0
G44: 10 | R44: 0 | S44: 0 | W44: 0
B45: =CONCATENATE("SUM "&B15) -> SUM Person 1 | Q45: =SUM(Q15:Q44) -> 0 | R45: =SUM(R15:R44) -> 0 | S45: =SUM(S15:S44) -> 0 | W45: =SUM(W15:W44) -> 0
B46: Person 2 | D46: =$D$326 -> Year 1: | E46: =$E$326 -> 1900 | F46: =$J$326 -> 0 | G46: 1 | R46: 0 | S46: 0 | W46: 0
G47: 2 | R47: 0 | S47: 0 | W47: 0
G48: 3 | R48: 0 | S48: 0 | W48: 0
G49: 4 | R49: 0 | S49: 0 | W49: 0
G50: 5 | R50: 0 | S50: 0 | W50: 0
G51: 6 | R51: 0 | S51: 0 | W51: 0
G52: 7 | R52: 0 | S52: 0 | W52: 0
G53: 8 | R53: 0 | S53: 0 | W53: 0
G54: 9 | R54: 0 | S54: 0 | W54: 0
G55: 10 | R55: 0 | S55: 0 | W55: 0
D56: =$D$327 -> Year 2: | E56: =$E$327 -> 0 | F56: =$J$327 -> 0 | G56: 1 | R56: 0 | S56: 0 | W56: 0
G57: 2 | R57: 0 | S57: 0 | W57: 0
G58: 3 | R58: 0 | S58: 0 | W58: 0
G59: 4 | R59: 0 | S59: 0 | W59: 0
G60: 5 | R60: 0 | S60: 0 | W60: 0
G61: 6 | R61: 0 | S61: 0 | W61: 0
G62: 7 | R62: 0 | S62: 0 | W62: 0
G63: 8 | R63: 0 | S63: 0 | W63: 0
G64: 9 | R64: 0 | S64: 0 | W64: 0
G65: 10 | R65: 0 | S65: 0 | W65: 0
D66: =$D$328 -> Year 3: | E66: =$E$328 -> 0 | F66: =$J$328 -> 0 | G66: 1 | R66: 0 | S66: 0 | W66: 0
G67: 2 | R67: 0 | S67: 0 | W67: 0
G68: 3 | R68: 0 | S68: 0 | W68: 0
G69: 4 | R69: 0 | S69: 0 | W69: 0
G70: 5 | R70: 0 | S70: 0 | W70: 0
G71: 6 | R71: 0 | S71: 0 | W71: 0
G72: 7 | R72: 0 | S72: 0 | W72: 0
G73: 8 | R73: 0 | S73: 0 | W73: 0
G74: 9 | R74: 0 | S74: 0 | W74: 0
G75: 10 | R75: 0 | S75: 0 | W75: 0
B76: =CONCATENATE("SUM "&B46) -> SUM Person 2 | Q76: =SUM(Q46:Q75) -> 0 | R76: =SUM(R46:R75) -> 0 | S76: =SUM(S46:S75) -> 0 | W76: =SUM(W46:W75) -> 0
B77: Person 3 | D77: =$D$326 -> Year 1: | E77: =$E$326 -> 1900 | F77: =$J$326 -> 0 | G77: 1 | R77: 0 | S77: 0 | W77: 0
G78: 2 | R78: 0 | S78: 0 | W78: 0
A79: p | G79: 3 | R79: 0 | S79: 0 | W79: 0
G80: 4 | R80: 0 | S80: 0 | W80: 0
G81: 5 | R81: 0 | S81: 0 | W81: 0
G82: 6 | R82: =(IFERROR((Q82/M82)*12,0)) -> 0 | S82: =P82*Q82 -> 0 | W82: =IFERROR(S82/D$9,) -> 0
G83: 7 | R83: 0 | S83: 0 | W83: 0
G84: 8 | R84: 0 | S84: 0 | W84: 0
G85: 9 | R85: 0 | S85: 0 | W85: 0
G86: 10 | R86: 0 | S86: 0 | W86: 0
D87: =$D$327 -> Year 2: | E87: =$E$327 -> 0 | F87: =$J$327 -> 0 | G87: 1 | R87: 0 | S87: 0 | W87: 0
G88: 2 | R88: 0 | S88: 0 | W88: 0
G89: 3 | R89: 0 | S89: 0 | W89: 0
G90: 4 | R90: 0 | S90: 0 | W90: 0
G91: 5 | R91: 0 | S91: 0 | W91: 0
G92: 6 | R92: 0 | S92: 0 | W92: 0
G93: 7 | R93: 0 | S93: 0 | W93: 0
G94: 8 | R94: 0 | S94: 0 | W94: 0
G95: 9 | R95: 0 | S95: 0 | W95: 0
G96: 10 | R96: 0 | S96: 0 | W96: 0
D97: =$D$328 -> Year 3: | E97: =$E$328 -> 0 | F97: =$J$328 -> 0 | G97: 1 | R97: 0 | S97: 0 | W97: 0
G98: 2 | R98: 0 | S98: 0 | W98: 0
G99: 3 | R99: 0 | S99: 0 | W99: 0
G100: 4 | R100: 0 | S100: 0 | W100: 0
G101: 5 | R101: 0 | S101: 0 | W101: 0
G102: 6 | R102: 0 | S102: 0 | W102: 0
G103: 7 | R103: 0 | S103: 0 | W103: 0
G104: 8 | R104: 0 | S104: 0 | W104: 0
G105: 9 | R105: 0 | S105: 0 | W105: 0
G106: 10 | R106: 0 | S106: 0 | W106: 0
B107: =CONCATENATE("SUM "&B77) -> SUM Person 3 | Q107: =SUM(Q77:Q106) -> 0 | R107: =SUM(R77:R106) -> 0 | S107: =SUM(S77:S106) -> 0 | W107: =SUM(W77:W106) -> 0
B108: Person 4 | D108: =$D$326 -> Year 1: | E108: =$E$326 -> 1900 | F108: =$J$326 -> 0 | G108: 1 | R108: 0 | S108: 0 | W108: 0
G109: 2 | R109: 0 | S109: 0 | W109: 0
G110: 3 | R110: 0 | S110: 0 | W110: 0
G111: 4 | R111: 0 | S111: 0 | W111: 0
G112: 5 | R112: 0 | S112: 0 | W112: 0
G113: 6 | R113: 0 | S113: 0 | W113: 0
G114: 7 | R114: 0 | S114: 0 | W114: 0
G115: 8 | R115: 0 | S115: 0 | W115: 0
G116: 9 | R116: 0 | S116: 0 | W116: 0
G117: 10 | R117: 0 | S117: 0 | W117: 0
D118: =$D$327 -> Year 2: | E118: =$E$327 -> 0 | F118: =$J$327 -> 0 | G118: 1 | R118: 0 | S118: 0 | W118: 0
G119: 2 | R119: 0 | S119: 0 | W119: 0
G120: 3 | R120: 0 | S120: 0 | W120: 0
G121: 4 | R121: 0 | S121: 0 | W121: 0
G122: 5 | R122: 0 | S122: 0 | W122: 0
G123: 6 | R123: 0 | S123: 0 | W123: 0
G124: 7 | R124: 0 | S124: 0 | W124: 0
G125: 8 | R125: 0 | S125: 0 | W125: 0
G126: 9 | R126: 0 | S126: 0 | W126: 0
G127: 10 | R127: 0 | S127: 0 | W127: 0
D128: =$D$328 -> Year 3: | E128: =$E$328 -> 0 | F128: =$J$328 -> 0 | G128: 1 | R128: 0 | S128: 0 | W128: 0
G129: 2 | R129: 0 | S129: 0 | W129: 0
G130: 3 | R130: 0 | S130: 0 | W130: 0
G131: 4 | R131: 0 | S131: 0 | W131: 0
G132: 5 | R132: 0 | S132: 0 | W132: 0
G133: 6 | R133: 0 | S133: 0 | W133: 0
G134: 7 | R134: 0 | S134: 0 | W134: 0
G135: 8 | R135: 0 | S135: 0 | W135: 0
G136: 9 | R136: 0 | S136: 0 | W136: 0
G137: 10 | R137: 0 | S137: 0 | W137: 0
B138: =CONCATENATE("SUM "&B108) -> SUM Person 4 | Q138: =SUM(Q108:Q137) -> 0 | R138: =SUM(R108:R137) -> 0 | S138: =SUM(S108:S137) -> 0 | W138: =SUM(W108:W137) -> 0
B139: Person 5 | D139: =$D$326 -> Year 1: | E139: =$E$326 -> 1900 | F139: =$J$326 -> 0 | G139: 1 | R139: 0 | S139: 0 | W139: 0
G140: 2 | R140: 0 | S140: 0 | W140: 0
G141: 3 | R141: 0 | S141: 0 | W141: 0
G142: 4 | R142: 0 | S142: 0 | W142: 0
G143: 5 | R143: 0 | S143: 0 | W143: 0
G144: 6 | R144: 0 | S144: 0 | W144: 0
G145: 7 | R145: 0 | S145: 0 | W145: 0
G146: 8 | R146: 0 | S146: 0 | W146: 0
G147: 9 | R147: 0 | S147: 0 | W147: 0
G148: 10 | R148: =(IFERROR((Q148/M148)*12,0)) -> 0 | S148: =P148*Q148 -> 0 | W148: =IFERROR(S148/D$9,) -> 0
D149: =$D$327 -> Year 2: | E149: =$E$327 -> 0 | F149: =$J$327 -> 0 | G149: 1 | R149: 0 | S149: 0 | W149: 0
G150: 2 | R150: 0 | S150: 0 | W150: 0
G151: 3 | R151: 0 | S151: 0 | W151: 0
G152: 4 | R152: 0 | S152: 0 | W152: 0
G153: 5 | R153: 0 | S153: 0 | W153: 0
G154: 6 | R154: 0 | S154: 0 | W154: 0
G155: 7 | R155: 0 | S155: 0 | W155: 0
G156: 8 | R156: 0 | S156: 0 | W156: 0
G157: 9 | R157: 0 | S157: 0 | W157: 0
G158: 10 | R158: 0 | S158: 0 | W158: 0
D159: =$D$328 -> Year 3: | E159: =$E$328 -> 0 | F159: =$J$328 -> 0 | G159: 1 | R159: 0 | S159: 0 | W159: 0
G160: 2 | R160: 0 | S160: 0 | W160: 0
G161: 3 | R161: 0 | S161: 0 | W161: 0
G162: 4 | R162: 0 | S162: 0 | W162: 0
G163: 5 | R163: 0 | S163: 0 | W163: 0
G164: 6 | R164: 0 | S164: 0 | W164: 0
G165: 7 | R165: 0 | S165: 0 | W165: 0
G166: 8 | R166: 0 | S166: 0 | W166: 0
G167: 9 | R167: 0 | S167: 0 | W167: 0
G168: 10 | R168: 0 | S168: 0 | W168: 0
B169: =CONCATENATE("SUM "&B139) -> SUM Person 5 | Q169: =SUM(Q139:Q168) -> 0 | R169: =SUM(R139:R168) -> 0 | S169: =SUM(S139:S168) -> 0 | W169: =SUM(W139:W168) -> 0
B170: Person 6 | D170: =$D$326 -> Year 1: | E170: =$E$326 -> 1900 | F170: =$J$326 -> 0 | G170: 1 | R170: 0 | S170: 0 | W170: 0
G171: 2 | R171: 0 | S171: 0 | W171: 0
G172: 3 | R172: 0 | S172: 0 | W172: 0
G173: 4 | R173: 0 | S173: 0 | W173: 0
G174: 5 | R174: 0 | S174: 0 | W174: 0
G175: 6 | R175: 0 | S175: 0 | W175: 0
G176: 7 | R176: 0 | S176: 0 | W176: 0
G177: 8 | R177: 0 | S177: 0 | W177: 0
G178: 9 | R178: 0 | S178: 0 | W178: 0
G179: 10 | R179: 0 | S179: 0 | W179: 0
D180: =$D$327 -> Year 2: | E180: =$E$327 -> 0 | F180: =$J$327 -> 0 | G180: 1 | R180: 0 | S180: 0 | W180: 0
G181: 2 | R181: 0 | S181: 0 | W181: 0
G182: 3 | R182: 0 | S182: 0 | W182: 0
G183: 4 | R183: 0 | S183: 0 | W183: 0
G184: 5 | R184: 0 | S184: 0 | W184: 0
G185: 6 | R185: 0 | S185: 0 | W185: 0
G186: 7 | R186: 0 | S186: 0 | W186: 0
G187: 8 | R187: 0 | S187: 0 | W187: 0
G188: 9 | R188: 0 | S188: 0 | W188: 0
G189: 10 | R189: 0 | S189: 0 | W189: 0
D190: =$D$328 -> Year 3: | E190: =$E$328 -> 0 | F190: =$J$328 -> 0 | G190: 1 | R190: 0 | S190: 0 | W190: 0
G191: 2 | R191: 0 | S191: 0 | W191: 0
G192: 3 | R192: 0 | S192: 0 | W192: 0
G193: 4 | R193: 0 | S193: 0 | W193: 0
G194: 5 | R194: 0 | S194: 0 | W194: 0
G195: 6 | R195: 0 | S195: 0 | W195: 0
G196: 7 | R196: 0 | S196: 0 | W196: 0
G197: 8 | R197: 0 | S197: 0 | W197: 0
G198: 9 | R198: 0 | S198: 0 | W198: 0
G199: 10 | R199: 0 | S199: 0 | W199: 0
B200: =CONCATENATE("SUM "&B170) -> SUM Person 6 | Q200: =SUM(Q170:Q199) -> 0 | R200: =SUM(R170:R199) -> 0 | S200: =SUM(S170:S199) -> 0 | W200: =SUM(W170:W199) -> 0
B201: Person 7 | D201: =$D$326 -> Year 1: | E201: =$E$326 -> 1900 | F201: =$J$326 -> 0 | G201: 1 | R201: 0 | S201: 0 | W201: 0
G202: 2 | R202: 0 | S202: 0 | W202: 0
G203: 3 | R203: 0 | S203: 0 | W203: 0
G204: 4 | R204: 0 | S204: 0 | W204: 0
G205: 5 | R205: 0 | S205: 0 | W205: 0
G206: 6 | R206: 0 | S206: 0 | W206: 0
G207: 7 | R207: 0 | S207: 0 | W207: 0
... 120 more rows

Sheet Project Transactions RP1
A1: sql SELECT dim_1, dim_2, voucher_no, period, trans_date, VERIFIKATIONER.account, VERIFIKATIONER.description AS VERTEXT, amount, KONTO.description AS KONTONAMN
A2: sql FROM agltransact AS VERIFIKATIONER
A3: sql FULL JOIN aglaccounts as KONTO
A4: sql ON VERIFIKATIONER.account = KONTO.account
A5: =C5 -> sql WHERE dim_1='' | C5: =CONCATENATE("sql WHERE dim_1='"&E15&"'") -> sql WHERE dim_1=''
A6: =C6 -> sql AND dim_2 LIKE '%' | C6: =CONCATENATE("sql AND dim_2 LIKE '"&E16&"%'") -> sql AND dim_2 LIKE '%'
A7: =C7 -> sql AND period >='' | C7: =CONCATENATE("sql AND period >='"&E17&"'") -> sql AND period >=''
A8: =C8 -> sql AND period <='' | C8: =CONCATENATE("sql AND period <='"&E18&"'") -> sql AND period <=''
A9: sql AND KONTO.client='BO'
A10: query
A11: sort account
A12: columns | B12: code account | C12: text dim_1 | D12: text dim_2 | E12: text voucher_no | F12: text Period | G12: trans_date | H12: text account | I12: KONTONAMN | J12: VERTEXT | K12: amount
C13: VERIFIKATIONSLISTA - RP1
C15: Orgenhet:
C16: Akt/Proj: | F16: Rapporten söker automatiskt ut med * utan att detta anges.
C17: Från period: | F17: OBS: året börjar med period 00
C18: Till period: | F18: OBS: året slutar med period 15
C19: Reporting period: | E19: 1
C21: Orgenhet | D21: Akt/proj | E21: Vernr | F21: Period | G21: Ver.datum | H21: Konto | I21: Konto(T) | J21: Verifikationstext | K21: Belopp | L21: Korrigering belopp (-) | M21: Beskrivning | N21: RR (Om reseräkning) | P21: Kostnadsslag i Financial statement (välj i listan)
A22: detail | B22: 4* | G22: 00:00:00 | I22: 0 | J22: 0 | K22: 0 | N22: =IF(MID($J22,42,6)="RESEID",MID($J22,49,11),"") -> 
A23: detail | B23: 51* | G23: 00:00:00 | I23: 0 | J23: 0 | K23: 0
A24: detail | B24: 52* | G24: 00:00:00 | I24: 0 | J24: 0 | K24: 0
A25: detail | B25: 53* | G25: 00:00:00 | I25: 0 | J25: 0 | K25: 0
A26: detail | B26: 54* | G26: 00:00:00 | I26: 0 | J26: 0 | K26: 0
A27: detail | B27: 69* | G27: 00:00:00 | I27: 0 | J27: 0 | K27: 0
A28: detail | B28: 95* | G28: 00:00:00 | I28: 0 | J28: 0 | K28: 0
A29: detail | B29: 96* | G29: 00:00:00 | I29: 0 | J29: 0 | K29: 0
A30: detail | B30: 97* | G30: 00:00:00 | I30: 0 | J30: 0 | K30: 0
A31: detail | B31: 94* | G31: 00:00:00 | I31: 0 | J31: 0 | K31: 0
A32: detail | B32: 57* | G32: 00:00:00 | I32: 0 | J32: 0 | K32: 0
A33: detail | B33: 56* | G33: 00:00:00 | I33: 0 | J33: 0 | K33: 0
A34: detail | B34: 55* | G34: 00:00:00 | I34: 0 | J34: 0 | K34: 0
A35: detail | B35: 9941 | G35: 00:00:00 | I35: 0 | J35: 0 | K35: 0 | N35: =IF(MID($J35,42,6)="RESEID",MID($J35,49,11),"") -> 

Sheet Direct costs RP1
A1: DIRECT COSTS - RP1
C2: Project: | D2: ='Ekonomisk projektbeskrivning'!D5 -> 0
C3: GA: | D3: ='Ekonomisk projektbeskrivning'!D17 -> 0
C4: Exchange rate: | D4: ='Ekonomisk projektbeskrivning'!B21 -> 0 | I4: Reporting period: 1
A6: A.1 Employees (or equivalent) | B6: Beskrivning | C6: RR-nr | D6: Bokfört belopp (SEK) | E6: Korrigering bokfört belopp (SEK) | F6: Belopp att redovisa (SEK) | G6: Belopp att redovisa (EUR) | H6: Vernr | I6: WP | J6: Kommentar
A11: A.2 Natural persons working under direct contract | B11: Beskrivning | C11: RR-nr | D11: Bokfört belopp (SEK) | E11: Korrigering bokfört belopp (SEK) | F11: Belopp att redovisa (SEK) | G11: Belopp att redovisa (EUR) | H11: Vernr | I11: WP | J11: Kommentar
A16: A.3 Seconded persons | B16: Beskrivning | C16: RR-nr | D16: Bokfört belopp (SEK) | E16: Korrigering bokfört belopp (SEK) | F16: Belopp att redovisa (SEK) | G16: Belopp att redovisa (EUR) | H16: Vernr | I16: WP | J16: Kommentar
A21: A.6 Personnel for providing access to research infrastructure | B21: Beskrivning | C21: RR-nr | D21: Bokfört belopp (SEK) | E21: Korrigering bokfört belopp (SEK) | F21: Belopp att redovisa (SEK) | G21: Belopp att redovisa (EUR) | H21: Vernr | I21: WP | J21: Kommentar
A26: B.1 Subcontracting | B26: Beskrivning | C26: RR-nr | D26: Bokfört belopp (SEK) | E26: Korrigering bokfört belopp (SEK) | F26: Belopp att redovisa (SEK) | G26: Belopp att redovisa (EUR) | H26: Vernr | I26: WP | J26: Kommentar
A31: D.1 Travel | B31: Beskrivning | C31: RR-nr | D31: Bokfört belopp (SEK) | E31: Korrigering bokfört belopp (SEK) | F31: Belopp att redovisa (SEK) | G31: Belopp att redovisa (EUR) | H31: Vernr | I31: WP | J31: Kommentar
A36: D.2 Equipment | B36: Beskrivning | C36: RR-nr | D36: Bokfört belopp (SEK) | E36: Korrigering bokfört belopp (SEK) | F36: Belopp att redovisa (SEK) | G36: Belopp att redovisa (EUR) | H36: Vernr | I36: WP | J36: Kommentar
A41: D.3 Other goods and services | B41: Beskrivning | C41: RR-nr | D41: Bokfört belopp (SEK) | E41: Korrigering bokfört belopp (SEK) | F41: Belopp att redovisa (SEK) | G41: Belopp att redovisa (EUR) | H41: Vernr | I41: WP | J41: Kommentar
A46: D.5 Costs for internally invoiced goods and services | B46: Beskrivning | C46: RR-nr | D46: Bokfört belopp (SEK) | E46: Korrigering bokfört belopp (SEK) | F46: Belopp att redovisa (SEK) | G46: Belopp att redovisa (EUR) | H46: Vernr | I46: WP | J46: Kommentar

Sheet Financial Statement RP1
A1: FINANCIAL STATEMENT - RP1
A3: Project: | B3: ='Ekonomisk projektbeskrivning'!D5 -> 0
A4: GA: | B4: ='Ekonomisk projektbeskrivning'!D17 -> 0
A5: Reporting period: | B5: 1
A8: Cost Category | C8: Total EUR
A9: a) Direct personnel costs declared as actual costs | C9: 0
A10: b) Direct personnel costs declared as unit costs (average costs)
A11: d) Direct costs of subcontracting | C11: 0
A12: e) Direct costs of providing financial support to third parties
A13: f) Other direct costs | C13: 0
A14: h) Indirect costs (= 0.25 * (a + b + f - o)) | C14: =0.25*(SUM(CostCategory_A_RP1 + CostCategory_D_RP1 + CostCategory_F_RP1 - CostsInKindNotUsedInPremises_RP1)) -> 0
A15: j) Total costs (= a + b + d + e + f + h) | C15: =SUM(C9:C14) -> 0
A16: k) Receipts
A17: m) Maximum EU-contribution (100%) | C17: =((C15-C16)*100%) -> 0
A18: n) Requested EU-contribution
A21: o) Use of 'costs of in-kind contributions not used on premises'?

Sheet Adjustments RP1
A1: ADJUSTMENTS OF DIRECT COSTS
B2: Project: | C2: ='Ekonomisk projektbeskrivning'!D5 -> 0
B3: GA: | C3: ='Ekonomisk projektbeskrivning'!D17 -> 0
B4: Exchange rate: | C4: ='Ekonomisk projektbeskrivning'!B21 -> 0 | G4: Reporting period: 1
A6: A.1 Employees (or equivalent) | B6: Beskrivning | C6: RR (Om reseräkning) | D6: Belopp | E6: EUR | F6: Vernr | G6: WP | H6: Kommentar
E7: =(IFERROR(D7/$C$4,0)) -> 0
E8: =(IFERROR(D8/$C$4,0)) -> 0
E9: =(IFERROR(D9/$C$4,0)) -> 0
E10: =(IFERROR(D10/$C$4,0)) -> 0 | J10: Inserted row
D11: =SUM(D7:D10) -> 0 | E11: =SUM(E7:E10) -> 0
A13: A.2 Natural persons working under direct contract | B13: Beskrivning | C13: RR (Om reseräkning) | D13: Belopp | E13: EUR | F13: Vernr | G13: WP | H13: Kommentar
E14: =(IFERROR(D14/$C$4,0)) -> 0
E15: =(IFERROR(D15/$C$4,0)) -> 0
E16: 0
E17: =(IFERROR(D17/$C$4,0)) -> 0 | J17: Inserted row
D18: =SUM(D14:D17) -> 0 | E18: =SUM(E14:E17) -> 0
A20: A.3 Seconded persons | B20: Beskrivning | C20: RR (Om reseräkning) | D20: Belopp | E20: EUR | F20: Vernr | G20: WP | H20: Kommentar
E21: =(IFERROR(D21/$C$4,0)) -> 0
E22: 0
E23: 0
E24: 0
D25: =SUM(D21:D24) -> 0 | E25: =SUM(E21:E24) -> 0
A27: A.6 Personnel for providing access to research infrastructure | B27: Beskrivning | C27: RR (Om reseräkning) | D27: Belopp | E27: EUR | F27: Vernr | G27: WP | H27: Kommentar
E28: =(IFERROR(D28/$C$4,0)) -> 0
E29: 0
E30: 0
E31: 0 | J31: Inserted row
D32: =SUM(D28:D31) -> 0 | E32: =SUM(E28:E31) -> 0
A34: B.1 Subcontracting | B34: Beskrivning | C34: RR (Om reseräkning) | D34: Belopp | E34: EUR | F34: Vernr | G34: WP | H34: Kommentar
E35: =(IFERROR(D35/$C$4,0)) -> 0
E36: 0
E37: 0
E38: 0 | J38: Inserted row
D39: =SUM(D35:D38) -> 0 | E39: =SUM(E35:E38) -> 0
A41: D.1 Travel | B41: Beskrivning | C41: RR (Om reseräkning) | D41: Belopp | E41: EUR | F41: Vernr | G41: WP | H41: Kommentar
E42: =(IFERROR(D42/$C$4,0)) -> 0
E43: 0
E44: 0
E45: 0 | J45: Inserted row
D46: =SUM(D42:D45) -> 0 | E46: =SUM(E42:E45) -> 0
A48: D.2 Equipment | B48: Beskrivning | C48: RR (Om reseräkning) | D48: Belopp | E48: EUR | F48: Vernr | G48: WP | H48: Kommentar
E49: =(IFERROR(D49/$C$4,0)) -> 0
E50: 0
E51: 0
E52: 0 | J52: Inserted row
D53: =SUM(D49:D52) -> 0 | E53: =SUM(E49:E52) -> 0
A55: D.3 Other goods and services | B55: Beskrivning | C55: RR (Om reseräkning) | D55: Belopp | E55: EUR | F55: Vernr | G55: WP | H55: Kommentar
E56: =(IFERROR(D56/$C$4,0)) -> 0
E57: 0
E58: 0
E59: 0 | J59: Inserted row
D60: =SUM(D56:D59) -> 0 | E60: =SUM(E56:E59) -> 0
A62: D.5 Costs for internally invoiced goods and services | B62: Beskrivning | C62: RR (Om reseräkning) | D62: Belopp | E62: EUR | F62: Vernr | G62: WP | H62: Kommentar
E63: =(IFERROR(D63/$C$4,0)) -> 0
E64: =(IFERROR(D64/$C$4,0)) -> 0
E65: 0
E66: 0 | J66: Inserted row
D67: =SUM(D63:D66) -> 0 | E67: =SUM(E63:E66) -> 0
A71: FINANCIAL STATEMENT (ADJUSTMENTS) - RP1
A73: Cost Category | C73: Total EUR
A74: a) Direct personnel costs declared as actual costs | C74: =E11+E18+E25+E32 -> 0
A75: b) Direct personnel costs declared as unit costs (average costs)
A76: d) Direct costs od subcontracting | C76: =E39 -> 0
A77: e) Direct costs of providing financial support to third parties
A78: f) Other direct costs | C78: =E46+E53+E60+E67 -> 0
A79: h) Indirect costs (= 0.25 * (a + b + f - o)) | C79: =(C74+C75+C78-C86)*0.25 -> 0
A80: j) Total costs (= a + b + d + e + f + h) | C80: =SUM(C74:C79) -> 0
A81: k) Receipts
A82: m) Maximum EU-contribution (100%) | C82: =((C80-C81)*100%) -> 0
A83: n) Requested EU-contribution
A86: o) Use of 'costs of in-kind contributions not used on premises'?

Sheet Personnel costs RP2
B1: PERSONNEL COSTS - RP2
B3: Project: | C3: ='Ekonomisk projektbeskrivning'!D5 -> 0 | H3: Grant Agreement No: | I3: ='Ekonomisk projektbeskrivning'!D17 -> 0
B5: Beneficiary: | C5: Hoegskolan i Boras / University of Borås
B7: Reporting period 2: | C7: =IF('Ekonomisk projektbeskrivning'!E22<>"",'Ekonomisk projektbeskrivning'!E22,"") ->  | D7: -- | E7: =IF('Ekonomisk projektbeskrivning'!F22<>"",'Ekonomisk projektbeskrivning'!F22,"") -> 
B9: Exchange rate SEK-EUR: | C9: ='Ekonomisk projektbeskrivning'!B22 -> 0
B11: Option for calculating Hourly rate: | D11: Option 3: Standard annual productive hours (1700, 1732, 1756)
B14: Name | C14: WP | D14: Calender year | F14: Fiscal year | G14: Total salary cost in payroll (SEK) | H14: Salary costs for Additional remunerations that is not related to the project (SEK) | I14: Annual personnel costs (SEK) | K14: Employment months (according to time sheet summary) | L14: Annual productive hours | M14: Employment level (according to time sheet summary) | N14: Annual productive hours Pro-Rata | P14: Hourly rate (SEK) | Q14: Productive hours in the project | R14: PMs | S14: Calculated eligible personnel cost for the project (SEK) | T14: Total salary cost in payroll for the project (SEK) | U14: Difference (SEK) | V14: Personnel cost to claim in form C (SEK) | W14: Personnel cost to claim in form C (€)
B15: Lena-Marie Jensen
D16: =$D$140 -> Year 1: | E16: =$E$140 -> 1900 | F16: =$I$140 ->  | G16: =190039.68*4 -> 760158.72 | I16: =SUM(G16:H16) -> 760158.72 | K16: 12 | L16: 1688 | M16: 1 | N16: =L16/12*K16*M16 -> 1688 | P16: =(IFERROR(I16/L16,0)) -> 450.3309953 | Q16: 97.75 | R16: =(IFERROR((Q16/L16)*12,0)) -> 0.6949052133 | S16: =P16*Q16 -> 44019.85479 | T16: 44019.85 | U16: =S16-T16 -> 0.004786729856 | V16: =IF(T16<=S16,T16,S16) -> 44019.85 | W16: =V16/$C$9 -> 
D17: =$D$141 -> Year 2: | E17: =$E$141 -> 0 | F17: =$I$141 ->  | I17: =SUM(G17:H17) -> 0 | N17: =L17/12*K17*M17 -> 0 | P17: 0 | R17: =(IFERROR((Q17/L17)*12,0)) -> 0 | S17: =P17*Q17 -> 0 | U17: =S17-T17 -> 0 | V17: =IF(T17<=S17,T17,S17) -> 0 | W17: =V17/$C$9 -> 
D18: =$D$142 -> Year 3: | E18: =$E$142 -> 0 | F18: =$I$142 ->  | I18: =SUM(G18:H18) -> 0 | N18: =L18/12*K18*M18 -> 0 | P18: 0 | R18: 0 | S18: =P18*Q18 -> 0 | U18: =S18-T18 -> 0 | V18: =IF(T18<=S18,T18,S18) -> 0 | W18: =V18/$C$9 -> 
B19: Person 2
D20: =$D$140 -> Year 1: | E20: =$E$140 -> 1900 | F20: =$I$140 ->  | I20: =SUM(G20:H20) -> 0 | N20: =L20/12*K20*M20 -> 0 | P20: =(IFERROR(I20/L20,0)) -> 0 | R20: =(IFERROR((Q20/L20)*12,0)) -> 0 | S20: =P20*Q20 -> 0 | U20: =S20-T20 -> 0 | V20: =IF(T20<=S20,T20,S20) -> 0 | W20: =V20/$C$9 -> 
D21: =$D$141 -> Year 2: | E21: =$E$141 -> 0 | F21: =$I$141 ->  | I21: 0 | N21: 0 | P21: 0 | R21: 0 | S21: 0 | U21: 0 | V21: 0
D22: =$D$142 -> Year 3: | E22: =$E$142 -> 0 | F22: =$I$142 ->  | I22: 0 | N22: 0 | P22: 0 | R22: 0 | S22: 0 | U22: 0 | V22: 0
B23: Person 3
D24: =$D$140 -> Year 1: | E24: =$E$140 -> 1900 | F24: =$I$140 ->  | I24: =SUM(G24:H24) -> 0 | N24: =L24/12*K24*M24 -> 0 | P24: =(IFERROR(I24/L24,0)) -> 0 | R24: =(IFERROR((Q24/L24)*12,0)) -> 0 | S24: =P24*Q24 -> 0 | U24: =S24-T24 -> 0 | V24: =IF(T24<=S24,T24,S24) -> 0 | W24: =V24/$C$9 -> 
D25: =$D$141 -> Year 2: | E25: =$E$141 -> 0 | F25: =$I$141 ->  | I25: 0 | N25: 0 | P25: 0 | R25: 0 | S25: 0 | U25: 0 | V25: 0
D26: =$D$142 -> Year 3: | E26: =$E$142 -> 0 | F26: =$I$142 ->  | I26: 0 | N26: 0 | P26: 0 | R26: 0 | S26: 0 | U26: 0 | V26: 0
B27: Person 4
D28: =$D$140 -> Year 1: | E28: =$E$140 -> 1900 | F28: =$I$140 ->  | I28: =SUM(G28:H28) -> 0 | N28: =L28/12*K28*M28 -> 0 | P28: =(IFERROR(I28/L28,0)) -> 0 | R28: =(IFERROR((Q28/L28)*12,0)) -> 0 | S28: =P28*Q28 -> 0 | U28: =S28-T28 -> 0 | V28: =IF(T28<=S28,T28,S28) -> 0 | W28: =V28/$C$9 -> 
D29: =$D$141 -> Year 2: | E29: =$E$141 -> 0 | F29: =$I$141 ->  | I29: 0 | N29: 0 | P29: 0 | R29: 0 | S29: 0 | U29: 0 | V29: 0
D30: =$D$142 -> Year 3: | E30: =$E$142 -> 0 | F30: =$I$142 ->  | I30: 0 | N30: 0 | P30: 0 | R30: 0 | S30: 0 | U30: 0 | V30: 0
B31: Person 5
D32: =$D$140 -> Year 1: | E32: =$E$140 -> 1900 | F32: =$I$140 ->  | I32: =SUM(G32:H32) -> 0 | N32: =L32/12*K32*M32 -> 0 | P32: =(IFERROR(I32/L32,0)) -> 0 | R32: =(IFERROR((Q32/L32)*12,0)) -> 0 | S32: =P32*Q32 -> 0 | U32: =S32-T32 -> 0 | V32: =IF(T32<=S32,T32,S32) -> 0 | W32: =V32/$C$9 -> 
D33: =$D$141 -> Year 2: | E33: =$E$141 -> 0 | F33: =$I$141 ->  | I33: 0 | N33: 0 | P33: 0 | R33: 0 | S33: 0 | U33: 0 | V33: 0
D34: =$D$142 -> Year 3: | E34: =$E$142 -> 0 | F34: =$I$142 ->  | I34: 0 | N34: 0 | P34: 0 | R34: 0 | S34: 0 | U34: 0 | V34: 0
B35: Person 6
D36: =$D$140 -> Year 1: | E36: =$E$140 -> 1900 | F36: =$I$140 ->  | I36: =SUM(G36:H36) -> 0 | N36: =L36/12*K36*M36 -> 0 | P36: =(IFERROR(I36/L36,0)) -> 0 | R36: =(IFERROR((Q36/L36)*12,0)) -> 0 | S36: =P36*Q36 -> 0 | U36: =S36-T36 -> 0 | V36: =IF(T36<=S36,T36,S36) -> 0 | W36: =V36/$C$9 -> 
D37: =$D$141 -> Year 2: | E37: =$E$141 -> 0 | F37: =$I$141 ->  | I37: 0 | N37: 0 | P37: 0 | R37: 0 | S37: 0 | U37: 0 | V37: 0
D38: =$D$142 -> Year 3: | E38: =$E$142 -> 0 | F38: =$I$142 ->  | I38: 0 | N38: 0 | P38: 0 | R38: 0 | S38: 0 | U38: 0 | V38: 0
B39: Person 7
D40: =$D$140 -> Year 1: | E40: =$E$140 -> 1900 | F40: =$I$140 ->  | I40: =SUM(G40:H40) -> 0 | N40: =L40/12*K40*M40 -> 0 | P40: =(IFERROR(I40/L40,0)) -> 0 | R40: =(IFERROR((Q40/L40)*12,0)) -> 0 | S40: =P40*Q40 -> 0 | U40: =S40-T40 -> 0 | V40: =IF(T40<=S40,T40,S40) -> 0 | W40: =V40/$C$9 -> 
D41: =$D$141 -> Year 2: | E41: =$E$141 -> 0 | F41: =$I$141 ->  | I41: 0 | N41: 0 | P41: 0 | R41: 0 | S41: 0 | U41: 0 | V41: 0
D42: =$D$142 -> Year 3: | E42: =$E$142 -> 0 | F42: =$I$142 ->  | I42: 0 | N42: 0 | P42: 0 | R42: 0 | S42: 0 | U42: 0 | V42: 0
B43: Person 8
D44: =$D$140 -> Year 1: | E44: =$E$140 -> 1900 | F44: =$I$140 ->  | I44: =SUM(G44:H44) -> 0 | N44: =L44/12*K44*M44 -> 0 | P44: =(IFERROR(I44/L44,0)) -> 0 | R44: =(IFERROR((Q44/L44)*12,0)) -> 0 | S44: =P44*Q44 -> 0 | U44: =S44-T44 -> 0 | V44: =IF(T44<=S44,T44,S44) -> 0 | W44: =V44/$C$9 -> 
D45: =$D$141 -> Year 2: | E45: =$E$141 -> 0 | F45: =$I$141 ->  | I45: 0 | N45: 0 | P45: 0 | R45: 0 | S45: 0 | U45: 0 | V45: 0
D46: =$D$142 -> Year 3: | E46: =$E$142 -> 0 | F46: =$I$142 ->  | I46: 0 | N46: 0 | P46: 0 | R46: 0 | S46: 0 | U46: 0 | V46: 0
B47: Person 9
D48: =$D$140 -> Year 1: | E48: =$E$140 -> 1900 | F48: =$I$140 ->  | I48: =SUM(G48:H48) -> 0 | N48: =L48/12*K48*M48 -> 0 | P48: =(IFERROR(I48/L48,0)) -> 0 | R48: =(IFERROR((Q48/L48)*12,0)) -> 0 | S48: =P48*Q48 -> 0 | U48: =S48-T48 -> 0 | V48: =IF(T48<=S48,T48,S48) -> 0 | W48: =V48/$C$9 -> 
D49: =$D$141 -> Year 2: | E49: =$E$141 -> 0 | F49: =$I$141 ->  | I49: 0 | N49: 0 | P49: 0 | R49: 0 | S49: 0 | U49: 0 | V49: 0
D50: =$D$142 -> Year 3: | E50: =$E$142 -> 0 | F50: =$I$142 ->  | I50: 0 | N50: 0 | P50: 0 | R50: 0 | S50: 0 | U50: 0 | V50: 0
B51: Person 10
D52: =$D$140 -> Year 1: | E52: =$E$140 -> 1900 | F52: =$I$140 ->  | I52: =SUM(G52:H52) -> 0 | N52: =L52/12*K52*M52 -> 0 | P52: =(IFERROR(I52/L52,0)) -> 0 | R52: =(IFERROR((Q52/L52)*12,0)) -> 0 | S52: =P52*Q52 -> 0 | U52: =S52-T52 -> 0 | V52: =IF(T52<=S52,T52,S52) -> 0 | W52: =V52/$C$9 -> 
D53: =$D$141 -> Year 2: | E53: =$E$141 -> 0 | F53: =$I$141 ->  | I53: 0 | N53: 0 | P53: 0 | R53: 0 | S53: 0 | U53: 0 | V53: 0
D54: =$D$142 -> Year 3: | E54: =$E$142 -> 0 | F54: =$I$142 ->  | I54: 0 | N54: 0 | P54: 0 | R54: 0 | S54: 0 | U54: 0 | V54: 0
B55: Person 11
D56: =$D$140 -> Year 1: | E56: =$E$140 -> 1900 | F56: =$I$140 ->  | I56: =SUM(G56:H56) -> 0 | N56: =L56/12*K56*M56 -> 0 | P56: =(IFERROR(I56/L56,0)) -> 0 | R56: =(IFERROR((Q56/L56)*12,0)) -> 0 | S56: =P56*Q56 -> 0 | U56: =S56-T56 -> 0 | V56: =IF(T56<=S56,T56,S56) -> 0 | W56: =V56/$C$9 -> 
D57: =$D$141 -> Year 2: | E57: =$E$141 -> 0 | F57: =$I$141 ->  | I57: 0 | N57: 0 | P57: 0 | R57: 0 | S57: 0 | U57: 0 | V57: 0
D58: =$D$142 -> Year 3: | E58: =$E$142 -> 0 | F58: =$I$142 ->  | I58: 0 | N58: 0 | P58: 0 | R58: 0 | S58: 0 | U58: 0 | V58: 0
B59: Person 12
D60: =$D$140 -> Year 1: | E60: =$E$140 -> 1900 | F60: =$I$140 ->  | I60: =SUM(G60:H60) -> 0 | N60: =L60/12*K60*M60 -> 0 | P60: =(IFERROR(I60/L60,0)) -> 0 | R60: =(IFERROR((Q60/L60)*12,0)) -> 0 | S60: =P60*Q60 -> 0 | U60: =S60-T60 -> 0 | V60: =IF(T60<=S60,T60,S60) -> 0 | W60: =V60/$C$9 -> 
D61: =$D$141 -> Year 2: | E61: =$E$141 -> 0 | F61: =$I$141 ->  | I61: 0 | N61: 0 | P61: 0 | R61: 0 | S61: 0 | U61: 0 | V61: 0
D62: =$D$142 -> Year 3: | E62: =$E$142 -> 0 | F62: =$I$142 ->  | I62: 0 | N62: 0 | P62: 0 | R62: 0 | S62: 0 | U62: 0 | V62: 0
B63: Person 13
D64: =$D$140 -> Year 1: | E64: =$E$140 -> 1900 | F64: =$I$140 ->  | I64: =SUM(G64:H64) -> 0 | N64: =L64/12*K64*M64 -> 0 | P64: =(IFERROR(I64/L64,0)) -> 0 | R64: =(IFERROR((Q64/L64)*12,0)) -> 0 | S64: =P64*Q64 -> 0 | U64: =S64-T64 -> 0 | V64: =IF(T64<=S64,T64,S64) -> 0 | W64: =V64/$C$9 -> 
D65: =$D$141 -> Year 2: | E65: =$E$141 -> 0 | F65: =$I$141 ->  | I65: 0 | N65: 0 | P65: 0 | R65: 0 | S65: 0 | U65: 0 | V65: 0
D66: =$D$142 -> Year 3: | E66: =$E$142 -> 0 | F66: =$I$142 ->  | I66: 0 | N66: 0 | P66: 0 | R66: 0 | S66: 0 | U66: 0 | V66: 0
B67: Person 14
D68: =$D$140 -> Year 1: | E68: =$E$140 -> 1900 | F68: =$I$140 ->  | I68: =SUM(G68:H68) -> 0 | N68: =L68/12*K68*M68 -> 0 | P68: =(IFERROR(I68/L68,0)) -> 0 | R68: =(IFERROR((Q68/L68)*12,0)) -> 0 | S68: =P68*Q68 -> 0 | U68: =S68-T68 -> 0 | V68: =IF(T68<=S68,T68,S68) -> 0 | W68: =V68/$C$9 -> 
D69: =$D$141 -> Year 2: | E69: =$E$141 -> 0 | F69: =$I$141 ->  | I69: 0 | N69: 0 | P69: 0 | R69: 0 | S69: 0 | U69: 0 | V69: 0
D70: =$D$142 -> Year 3: | E70: =$E$142 -> 0 | F70: =$I$142 ->  | I70: 0 | N70: 0 | P70: 0 | R70: 0 | S70: 0 | U70: 0 | V70: 0
B71: Person 15
D72: =$D$140 -> Year 1: | E72: =$E$140 -> 1900 | F72: =$I$140 ->  | I72: =SUM(G72:H72) -> 0 | N72: =L72/12*K72*M72 -> 0 | P72: =(IFERROR(I72/L72,0)) -> 0 | R72: =(IFERROR((Q72/L72)*12,0)) -> 0 | S72: =P72*Q72 -> 0 | U72: =S72-T72 -> 0 | V72: =IF(T72<=S72,T72,S72) -> 0 | W72: =V72/$C$9 -> 
D73: =$D$141 -> Year 2: | E73: =$E$141 -> 0 | F73: =$I$141 ->  | I73: 0 | N73: 0 | P73: 0 | R73: 0 | S73: 0 | U73: 0 | V73: 0
D74: =$D$142 -> Year 3: | E74: =$E$142 -> 0 | F74: =$I$142 ->  | I74: 0 | N74: 0 | P74: 0 | R74: 0 | S74: 0 | U74: 0 | V74: 0
B75: Person 16
D76: =$D$140 -> Year 1: | E76: =$E$140 -> 1900 | F76: =$I$140 ->  | I76: =SUM(G76:H76) -> 0 | N76: =L76/12*K76*M76 -> 0 | P76: =(IFERROR(I76/L76,0)) -> 0 | R76: =(IFERROR((Q76/L76)*12,0)) -> 0 | S76: =P76*Q76 -> 0 | U76: =S76-T76 -> 0 | V76: =IF(T76<=S76,T76,S76) -> 0 | W76: =V76/$C$9 -> 
D77: =$D$141 -> Year 2: | E77: =$E$141 -> 0 | F77: =$I$141 ->  | I77: 0 | N77: 0 | P77: 0 | R77: 0 | S77: 0 | U77: 0 | V77: 0
D78: =$D$142 -> Year 3: | E78: =$E$142 -> 0 | F78: =$I$142 ->  | I78: 0 | N78: 0 | P78: 0 | R78: 0 | S78: 0 | U78: 0 | V78: 0
B79: Person 17
D80: =$D$140 -> Year 1: | E80: =$E$140 -> 1900 | F80: =$I$140 ->  | I80: =SUM(G80:H80) -> 0 | N80: =L80/12*K80*M80 -> 0 | P80: =(IFERROR(I80/L80,0)) -> 0 | R80: =(IFERROR((Q80/L80)*12,0)) -> 0 | S80: =P80*Q80 -> 0 | U80: =S80-T80 -> 0 | V80: =IF(T80<=S80,T80,S80) -> 0 | W80: =V80/$C$9 -> 
D81: =$D$141 -> Year 2: | E81: =$E$141 -> 0 | F81: =$I$141 ->  | I81: 0 | N81: 0 | P81: 0 | R81: 0 | S81: 0 | U81: 0 | V81: 0
D82: =$D$142 -> Year 3: | E82: =$E$142 -> 0 | F82: =$I$142 ->  | I82: 0 | N82: 0 | P82: 0 | R82: 0 | S82: 0 | U82: 0 | V82: 0
B83: Person 18
D84: =$D$140 -> Year 1: | E84: =$E$140 -> 1900 | F84: =$I$140 ->  | I84: =SUM(G84:H84) -> 0 | N84: =L84/12*K84*M84 -> 0 | P84: =(IFERROR(I84/L84,0)) -> 0 | R84: =(IFERROR((Q84/L84)*12,0)) -> 0 | S84: =P84*Q84 -> 0 | U84: =S84-T84 -> 0 | V84: =IF(T84<=S84,T84,S84) -> 0 | W84: =V84/$C$9 -> 
D85: =$D$141 -> Year 2: | E85: =$E$141 -> 0 | F85: =$I$141 ->  | I85: 0 | N85: 0 | P85: 0 | R85: 0 | S85: 0 | U85: 0 | V85: 0
D86: =$D$142 -> Year 3: | E86: =$E$142 -> 0 | F86: =$I$142 ->  | I86: 0 | N86: 0 | P86: 0 | R86: 0 | S86: 0 | U86: 0 | V86: 0
B87: Person 19
D88: =$D$140 -> Year 1: | E88: =$E$140 -> 1900 | F88: =$I$140 ->  | I88: =SUM(G88:H88) -> 0 | N88: =L88/12*K88*M88 -> 0 | P88: =(IFERROR(I88/L88,0)) -> 0 | R88: =(IFERROR((Q88/L88)*12,0)) -> 0 | S88: =P88*Q88 -> 0 | U88: =S88-T88 -> 0 | V88: =IF(T88<=S88,T88,S88) -> 0 | W88: =V88/$C$9 -> 
D89: =$D$141 -> Year 2: | E89: =$E$141 -> 0 | F89: =$I$141 ->  | I89: 0 | N89: 0 | P89: 0 | R89: 0 | S89: 0 | U89: 0 | V89: 0
D90: =$D$142 -> Year 3: | E90: =$E$142 -> 0 | F90: =$I$142 ->  | I90: 0 | N90: 0 | P90: 0 | R90: 0 | S90: 0 | U90: 0 | V90: 0
B91: Person 20
D92: =$D$140 -> Year 1: | E92: =$E$140 -> 1900 | F92: =$I$140 ->  | I92: =SUM(G92:H92) -> 0 | N92: =L92/12*K92*M92 -> 0 | P92: =(IFERROR(I92/L92,0)) -> 0 | R92: =(IFERROR((Q92/L92)*12,0)) -> 0 | S92: =P92*Q92 -> 0 | U92: =S92-T92 -> 0 | V92: =IF(T92<=S92,T92,S92) -> 0 | W92: =V92/$C$9 -> 
D93: =$D$141 -> Year 2: | E93: =$E$141 -> 0 | F93: =$I$141 ->  | I93: 0 | N93: 0 | P93: 0 | R93: 0 | S93: 0 | U93: 0 | V93: 0
D94: =$D$142 -> Year 3: | E94: =$E$142 -> 0 | F94: =$I$142 ->  | I94: 0 | N94: 0 | P94: 0 | R94: 0 | S94: 0 | U94: 0 | V94: 0
B95: Person 21
D96: =$D$140 -> Year 1: | E96: =$E$140 -> 1900 | F96: =$I$140 ->  | I96: =SUM(G96:H96) -> 0 | N96: =L96/12*K96*M96 -> 0 | P96: =(IFERROR(I96/L96,0)) -> 0 | R96: =(IFERROR((Q96/L96)*12,0)) -> 0 | S96: =P96*Q96 -> 0 | U96: =S96-T96 -> 0 | V96: =IF(T96<=S96,T96,S96) -> 0 | W96: =V96/$C$9 -> 
D97: =$D$141 -> Year 2: | E97: =$E$141 -> 0 | F97: =$I$141 ->  | I97: 0 | N97: 0 | P97: 0 | R97: 0 | S97: 0 | U97: 0 | V97: 0
D98: =$D$142 -> Year 3: | E98: =$E$142 -> 0 | F98: =$I$142 ->  | I98: 0 | N98: 0 | P98: 0 | R98: 0 | S98: 0 | U98: 0 | V98: 0
B99: Person 22
D100: =$D$140 -> Year 1: | E100: =$E$140 -> 1900 | F100: =$I$140 ->  | I100: =SUM(G100:H100) -> 0 | N100: =L100/12*K100*M100 -> 0 | P100: =(IFERROR(I100/L100,0)) -> 0 | R100: =(IFERROR((Q100/L100)*12,0)) -> 0 | S100: =P100*Q100 -> 0 | U100: =S100-T100 -> 0 | V100: =IF(T100<=S100,T100,S100) -> 0 | W100: =V100/$C$9 -> 
D101: =$D$141 -> Year 2: | E101: =$E$141 -> 0 | F101: =$I$141 ->  | I101: =SUM(G101:H101) -> 0 | N101: =L101/12*K101*M101 -> 0 | P101: 0 | R101: 0 | S101: =P101*Q101 -> 0 | U101: =S101-T101 -> 0 | V101: =IF(T101<=S101,T101,S101) -> 0 | W101: =V101/$C$9 -> 
D102: =$D$142 -> Year 3: | E102: =$E$142 -> 0 | F102: =$I$142 ->  | I102: =SUM(G102:H102) -> 0 | N102: =L102/12*K102*M102 -> 0 | P102: 0 | R102: 0 | S102: =P102*Q102 -> 0 | U102: =S102-T102 -> 0 | V102: =IF(T102<=S102,T102,S102) -> 0 | W102: =V102/$C$9 -> 
B103: Person 23
D104: =$D$140 -> Year 1: | E104: =$E$140 -> 1900 | F104: =$I$140 ->  | I104: =SUM(G104:H104) -> 0 | N104: =L104/12*K104*M104 -> 0 | P104: =(IFERROR(I104/L104,0)) -> 0 | R104: =(IFERROR((Q104/L104)*12,0)) -> 0 | S104: =P104*Q104 -> 0 | U104: =S104-T104 -> 0 | V104: =IF(T104<=S104,T104,S104) -> 0 | W104: =V104/$C$9 -> 
D105: =$D$141 -> Year 2: | E105: =$E$141 -> 0 | F105: =$I$141 ->  | I105: =SUM(G105:H105) -> 0 | N105: =L105/12*K105*M105 -> 0 | P105: 0 | R105: 0 | S105: =P105*Q105 -> 0 | U105: =S105-T105 -> 0 | V105: =IF(T105<=S105,T105,S105) -> 0 | W105: =V105/$C$9 -> 
D106: =$D$142 -> Year 3: | E106: =$E$142 -> 0 | F106: =$I$142 ->  | I106: =SUM(G106:H106) -> 0 | N106: =L106/12*K106*M106 -> 0 | P106: 0 | R106: 0 | S106: =P106*Q106 -> 0 | U106: =S106-T106 -> 0 | V106: =IF(T106<=S106,T106,S106) -> 0 | W106: =V106/$C$9 -> 
B107: Person 24
D108: =$D$140 -> Year 1: | E108: =$E$140 -> 1900 | F108: =$I$140 ->  | I108: =SUM(G108:H108) -> 0 | N108: =L108/12*K108*M108 -> 0 | P108: =(IFERROR(I108/L108,0)) -> 0 | R108: =(IFERROR((Q108/L108)*12,0)) -> 0 | S108: =P108*Q108 -> 0 | U108: =S108-T108 -> 0 | V108: =IF(T108<=S108,T108,S108) -> 0 | W108: =V108/$C$9 -> 
D109: =$D$141 -> Year 2: | E109: =$E$141 -> 0 | F109: =$I$141 ->  | I109: =SUM(G109:H109) -> 0 | N109: =L109/12*K109*M109 -> 0 | P109: =(IFERROR(I109/L109,0)) -> 0 | R109: 0 | S109: =P109*Q109 -> 0 | U109: =S109-T109 -> 0 | V109: =IF(T109<=S109,T109,S109) -> 0 | W109: =V109/$C$9 -> 
D110: =$D$142 -> Year 3: | E110: =$E$142 -> 0 | F110: =$I$142 ->  | I110: =SUM(G110:H110) -> 0 | N110: =L110/12*K110*M110 -> 0 | P110: 0 | R110: 0 | S110: =P110*Q110 -> 0 | U110: =S110-T110 -> 0 | V110: =IF(T110<=S110,T110,S110) -> 0 | W110: =V110/$C$9 -> 
B111: Person 25
D112: =$D$140 -> Year 1: | E112: =$E$140 -> 1900 | F112: =$I$140 ->  | I112: =SUM(G112:H112) -> 0 | N112: =L112/12*K112*M112 -> 0 | P112: =(IFERROR(I112/L112,0)) -> 0 | R112: =(IFERROR((Q112/L112)*12,0)) -> 0 | S112: =P112*Q112 -> 0 | U112: =S112-T112 -> 0 | V112: =IF(T112<=S112,T112,S112) -> 0 | W112: =V112/$C$9 -> 
D113: =$D$141 -> Year 2: | E113: =$E$141 -> 0 | F113: =$I$141 ->  | I113: =SUM(G113:H113) -> 0 | N113: =L113/12*K113*M113 -> 0 | P113: 0 | R113: 0 | S113: =P113*Q113 -> 0 | U113: =S113-T113 -> 0 | V113: =IF(T113<=S113,T113,S113) -> 0 | W113: =V113/$C$9 -> 
D114: =$D$142 -> Year 3: | E114: =$E$142 -> 0 | F114: =$I$142 ->  | I114: =SUM(G114:H114) -> 0 | N114: =L114/12*K114*M114 -> 0 | P114: 0 | R114: 0 | S114: =P114*Q114 -> 0 | U114: =S114-T114 -> 0 | V114: =IF(T114<=S114,T114,S114) -> 0 | W114: =V114/$C$9 -> 
B115: Person 26
D116: =$D$140 -> Year 1: | E116: =$E$140 -> 1900 | F116: =$I$140 ->  | I116: =SUM(G116:H116) -> 0 | N116: =L116/12*K116*M116 -> 0 | P116: =(IFERROR(I116/L116,0)) -> 0 | R116: =(IFERROR((Q116/L116)*12,0)) -> 0 | S116: =P116*Q116 -> 0 | U116: =S116-T116 -> 0 | V116: =IF(T116<=S116,T116,S116) -> 0 | W116: =V116/$C$9 -> 
D117: =$D$141 -> Year 2: | E117: =$E$141 -> 0 | F117: =$I$141 ->  | I117: =SUM(G117:H117) -> 0 | N117: =L117/12*K117*M117 -> 0 | P117: 0 | R117: 0 | S117: =P117*Q117 -> 0 | U117: =S117-T117 -> 0 | V117: =IF(T117<=S117,T117,S117) -> 0 | W117: =V117/$C$9 -> 
D118: =$D$142 -> Year 3: | E118: =$E$142 -> 0 | F118: =$I$142 ->  | I118: =SUM(G118:H118) -> 0 | N118: =L118/12*K118*M118 -> 0 | P118: 0 | R118: 0 | S118: =P118*Q118 -> 0 | U118: =S118-T118 -> 0 | V118: =IF(T118<=S118,T118,S118) -> 0 | W118: =V118/$C$9 -> 
B119: Person 27
D120: =$D$140 -> Year 1: | E120: =$E$140 -> 1900 | F120: =$I$140 ->  | I120: =SUM(G120:H120) -> 0 | N120: =L120/12*K120*M120 -> 0 | P120: =(IFERROR(I120/L120,0)) -> 0 | R120: =(IFERROR((Q120/L120)*12,0)) -> 0 | S120: =P120*Q120 -> 0 | U120: =S120-T120 -> 0 | V120: =IF(T120<=S120,T120,S120) -> 0 | W120: =V120/$C$9 -> 
D121: =$D$141 -> Year 2: | E121: =$E$141 -> 0 | F121: =$I$141 ->  | I121: =SUM(G121:H121) -> 0 | N121: =L121/12*K121*M121 -> 0 | P121: 0 | R121: 0 | S121: =P121*Q121 -> 0 | U121: =S121-T121 -> 0 | V121: =IF(T121<=S121,T121,S121) -> 0 | W121: =V121/$C$9 -> 
D122: =$D$142 -> Year 3: | E122: =$E$142 -> 0 | F122: =$I$142 ->  | I122: =SUM(G122:H122) -> 0 | N122: =L122/12*K122*M122 -> 0 | P122: 0 | R122: 0 | S122: =P122*Q122 -> 0 | U122: =S122-T122 -> 0 | V122: =IF(T122<=S122,T122,S122) -> 0 | W122: =V122/$C$9 -> 
B123: Person 28
D124: =$D$140 -> Year 1: | E124: =$E$140 -> 1900 | F124: =$I$140 ->  | I124: =SUM(G124:H124) -> 0 | N124: =L124/12*K124*M124 -> 0 | P124: =(IFERROR(I124/L124,0)) -> 0 | R124: =(IFERROR((Q124/L124)*12,0)) -> 0 | S124: =P124*Q124 -> 0 | U124: =S124-T124 -> 0 | V124: =IF(T124<=S124,T124,S124) -> 0 | W124: =V124/$C$9 -> 
D125: =$D$141 -> Year 2: | E125: =$E$141 -> 0 | F125: =$I$141 ->  | I125: =SUM(G125:H125) -> 0 | N125: =L125/12*K125*M125 -> 0 | P125: 0 | R125: 0 | S125: =P125*Q125 -> 0 | U125: =S125-T125 -> 0 | V125: =IF(T125<=S125,T125,S125) -> 0 | W125: =V125/$C$9 -> 
D126: =$D$142 -> Year 3: | E126: =$E$142 -> 0 | F126: =$I$142 ->  | I126: =SUM(G126:H126) -> 0 | N126: =L126/12*K126*M126 -> 0 | P126: 0 | R126: 0 | S126: =P126*Q126 -> 0 | U126: =S126-T126 -> 0 | V126: =IF(T126<=S126,T126,S126) -> 0 | W126: =V126/$C$9 -> 
B127: Person 29
D128: =$D$140 -> Year 1: | E128: =$E$140 -> 1900 | F128: =$I$140 ->  | I128: =SUM(G128:H128) -> 0 | N128: =L128/12*K128*M128 -> 0 | P128: =(IFERROR(I128/L128,0)) -> 0 | R128: =(IFERROR((Q128/L128)*12,0)) -> 0 | S128: =P128*Q128 -> 0 | U128: =S128-T128 -> 0 | V128: =IF(T128<=S128,T128,S128) -> 0 | W128: =V128/$C$9 -> 
D129: =$D$141 -> Year 2: | E129: =$E$141 -> 0 | F129: =$I$141 ->  | I129: =SUM(G129:H129) -> 0 | N129: =L129/12*K129*M129 -> 0 | P129: 0 | R129: 0 | S129: =P129*Q129 -> 0 | U129: =S129-T129 -> 0 | V129: =IF(T129<=S129,T129,S129) -> 0 | W129: =V129/$C$9 -> 
D130: =$D$142 -> Year 3: | E130: =$E$142 -> 0 | F130: =$I$142 ->  | I130: =SUM(G130:H130) -> 0 | N130: =L130/12*K130*M130 -> 0 | P130: 0 | R130: 0 | S130: =P130*Q130 -> 0 | U130: =S130-T130 -> 0 | V130: =IF(T130<=S130,T130,S130) -> 0 | W130: =V130/$C$9 -> 
B131: Person 30
D132: =$D$140 -> Year 1: | E132: =$E$140 -> 1900 | F132: =$I$140 ->  | I132: =SUM(G132:H132) -> 0 | N132: =L132/12*K132*M132 -> 0 | P132: =(IFERROR(I132/L132,0)) -> 0 | R132: =(IFERROR((Q132/L132)*12,0)) -> 0 | S132: =P132*Q132 -> 0 | U132: =S132-T132 -> 0 | V132: =IF(T132<=S132,T132,S132) -> 0 | W132: =V132/$C$9 -> 
D133: =$D$141 -> Year 2: | E133: =$E$141 -> 0 | F133: =$I$141 ->  | I133: =SUM(G133:H133) -> 0 | N133: =L133/12*K133*M133 -> 0 | P133: 0 | R133: 0 | S133: =P133*Q133 -> 0 | U133: =S133-T133 -> 0 | V133: =IF(T133<=S133,T133,S133) -> 0 | W133: =V133/$C$9 -> 
D134: =$D$142 -> Year 3: | E134: =$E$142 -> 0 | F134: =$I$142 ->  | I134: =SUM(G134:H134) -> 0 | N134: =L134/12*K134*M134 -> 0 | P134: 0 | R134: 0 | S134: =P134*Q134 -> 0 | U134: =S134-T134 -> 0 | V134: =IF(T134<=S134,T134,S134) -> 0 | W134: =V134/$C$9 -> 
W135: =SUM(W15:W134) -> 
D139: Number of reporting months per year this reporting period
D140: Year 1: | E140: =YEAR('Ekonomisk projektbeskrivning'!E22) -> 1900 | F140: =IF(MONTH(H140)-MONTH(G140)=0,0,MONTH(H140)-MONTH(G140)+1) -> 0 | G140: ='Ekonomisk projektbeskrivning'!E22 -> 00:00:00 | H140: =IF(YEAR('Ekonomisk projektbeskrivning'!F22)='Personnel costs RP2'!E140,'Ekonomisk projektbeskrivning'!F22,CONCATENATE(E140&"-12-31")) -> 0 | I140: =IF(F140<>0,IF(F140<12,IF(MONTH(G140)>(12-F140),E140,E140-1),E140),"") -> 
D141: Year 2: | E141: =IF(YEAR('Ekonomisk projektbeskrivning'!F22)>=('Personnel costs RP2'!E140+1),('Personnel costs RP2'!E140+1),0) -> 0 | F141: =IF(E141=0,0,IF(MONTH(G141)=1,IF(MONTH(H141)=1,1,(MONTH(H141)-MONTH(G141)+1)))) -> 0 | G141: =IF(E140=YEAR('Ekonomisk projektbeskrivning'!F22),0,CONCATENATE(E141&"-01-01")) -> 0 | H141: =IF(E140+1=YEAR('Ekonomisk projektbeskrivning'!F22),'Ekonomisk projektbeskrivning'!F22,IF(E140+1>YEAR('Ekonomisk projektbeskrivning'!F22),0,CONCATENATE(E141&"-12-31"))) -> 0 | I141: =IF(F141<>0,IF(F141<12,IF(MONTH(G141)>(12-F141),E141,E141-1),E141),"") -> 
D142: Year 3: | E142: =IF(YEAR('Ekonomisk projektbeskrivning'!F22)>=('Personnel costs RP2'!E140+2),('Personnel costs RP2'!E141+1),0) -> 0 | F142: =IF(E142=0,0,IF(MONTH(G142)=1,IF(MONTH(H142)=1,1,(MONTH(H142)-MONTH(G142)+1)))) -> 0 | G142: =IF(E140+1>=YEAR('Ekonomisk projektbeskrivning'!F22),0,CONCATENATE(E140+2&"-01-01")) -> 0 | H142: =IF(E140+2=YEAR('Ekonomisk projektbeskrivning'!F22),'Ekonomisk projektbeskrivning'!F22,IF(E140+2>YEAR('Ekonomisk projektbeskrivning'!F22),0,CONCATENATE(E142&"-12-31"))) -> 0

Sheet Project Transactions RP2
A1: sql SELECT dim_1, dim_2, voucher_no, period, trans_date, VERIFIKATIONER.account, VERIFIKATIONER.description AS VERTEXT, amount, KONTO.description AS KONTONAMN
A2: sql FROM agltransact AS VERIFIKATIONER
A3: sql FULL JOIN aglaccounts as KONTO
A4: sql ON VERIFIKATIONER.account = KONTO.account
A5: =C5 -> sql WHERE dim_1='0' | C5: =CONCATENATE("sql WHERE dim_1='"&E15&"'") -> sql WHERE dim_1='0'
A6: =C6 -> sql AND dim_2 LIKE '0%' | C6: =CONCATENATE("sql AND dim_2 LIKE '"&E16&"%'") -> sql AND dim_2 LIKE '0%'
A7: =C7 -> sql AND period >='' | C7: =CONCATENATE("sql AND period >='"&E17&"'") -> sql AND period >=''
A8: =C8 -> sql AND period <='' | C8: =CONCATENATE("sql AND period <='"&E18&"'") -> sql AND period <=''
A9: sql AND KONTO.client='BO'
A10: query
A11: sort account
A12: columns | B12: code account | C12: text dim_1 | D12: text dim_2 | E12: text voucher_no | F12: text Period | G12: trans_date | H12: text account | I12: KONTONAMN | J12: VERTEXT | K12: amount
C13: VERIFIKATIONSLISTA - RP2
C15: Orgenhet: | E15: ='Project Transactions RP1'!E15 -> 0
C16: Akt/Proj: | E16: ='Project Transactions RP1'!E16 -> 0 | F16: Rapporten söker automatiskt ut med * utan att detta anges.
C17: Från period: | F17: OBS: året börjar med period 00
C18: Till period: | F18: OBS: året slutar med period 15
C19: Reporting period: | E19: 2
C21: Orgenhet | D21: Akt/proj | E21: Vernr | F21: Period | G21: Ver.datum | H21: Konto | I21: Konto(T) | J21: Verifikationstext | K21: Belopp | L21: Korrigering belopp (-) | M21: Beskrivning | N21: RR (Om reseräkning) | P21: Kostnadsslag i Financial statement (välj i listan)
A22: detail | B22: 4* | G22: 00:00:00 | I22: 0 | J22: 0 | K22: 0
A23: detail | B23: 51* | G23: 00:00:00 | I23: 0 | J23: 0 | K23: 0
A24: detail | B24: 52* | G24: 00:00:00 | I24: 0 | J24: 0 | K24: 0
A25: detail | B25: 53* | G25: 00:00:00 | I25: 0 | J25: 0 | K25: 0
A26: detail | B26: 54* | G26: 00:00:00 | I26: 0 | J26: 0 | K26: 0
A27: detail | B27: 55* | G27: 00:00:00 | I27: 0 | J27: 0 | K27: 0
A28: detail | B28: 56* | G28: 00:00:00 | I28: 0 | J28: 0 | K28: 0
A29: detail | B29: 57*
A30: detail | B30: 69* | G30: 00:00:00 | I30: 0 | J30: 0 | K30: 0
A31: detail | B31: 94* | G31: 00:00:00 | I31: 0 | J31: 0 | K31: 0
A32: detail | B32: 95*
A33: detail | B33: 96* | G33: 00:00:00 | I33: 0 | J33: 0 | K33: 0
A34: detail | B34: 97* | G34: 00:00:00 | I34: 0 | J34: 0 | K34: 0
A35: detail | B35: 9941

Sheet Direct costs RP2
A1: DIRECT COSTS - RP2
C2: Project: | D2: ='Ekonomisk projektbeskrivning'!D5 -> 0
C3: GA: | D3: ='Ekonomisk projektbeskrivning'!D17 -> 0
C4: Exchange rate: | D4: ='Ekonomisk projektbeskrivning'!B22 -> 0 | I4: Reporting period: 2
A6: A.1 Employees (or equivalent) | B6: Beskrivning | C6: RR-nr | D6: Bokfört belopp (SEK) | E6: Korrigering bokfört belopp (SEK) | F6: Belopp att redovisa (SEK) | G6: Belopp att redovisa (EUR) | H6: Vernr | I6: WP | J6: Kommentar
A11: A.2 Natural persons working under direct contract | B11: Beskrivning | C11: RR-nr | D11: Bokfört belopp (SEK) | E11: Korrigering bokfört belopp (SEK) | F11: Belopp att redovisa (SEK) | G11: Belopp att redovisa (EUR) | H11: Vernr | I11: WP | J11: Kommentar
A16: A.3 Seconded persons | B16: Beskrivning | C16: RR-nr | D16: Bokfört belopp (SEK) | E16: Korrigering bokfört belopp (SEK) | F16: Belopp att redovisa (SEK) | G16: Belopp att redovisa (EUR) | H16: Vernr | I16: WP | J16: Kommentar
A21: A.6 Personnel for providing access to research infrastructure | B21: Beskrivning | C21: RR-nr | D21: Bokfört belopp (SEK) | E21: Korrigering bokfört belopp (SEK) | F21: Belopp att redovisa (SEK) | G21: Belopp att redovisa (EUR) | H21: Vernr | I21: WP | J21: Kommentar
A26: B.1 Subcontracting | B26: Beskrivning | C26: RR-nr | D26: Bokfört belopp (SEK) | E26: Korrigering bokfört belopp (SEK) | F26: Belopp att redovisa (SEK) | G26: Belopp att redovisa (EUR) | H26: Vernr | I26: WP | J26: Kommentar
A31: D.1 Travel | B31: Beskrivning | C31: RR-nr | D31: Bokfört belopp (SEK) | E31: Korrigering bokfört belopp (SEK) | F31: Belopp att redovisa (SEK) | G31: Belopp att redovisa (EUR) | H31: Vernr | I31: WP | J31: Kommentar
A36: D.2 Equipment | B36: Beskrivning | C36: RR-nr | D36: Bokfört belopp (SEK) | E36: Korrigering bokfört belopp (SEK) | F36: Belopp att redovisa (SEK) | G36: Belopp att redovisa (EUR) | H36: Vernr | I36: WP | J36: Kommentar
A41: D.3 Other goods and services | B41: Beskrivning | C41: RR-nr | D41: Bokfört belopp (SEK) | E41: Korrigering bokfört belopp (SEK) | F41: Belopp att redovisa (SEK) | G41: Belopp att redovisa (EUR) | H41: Vernr | I41: WP | J41: Kommentar
A46: D.5 Costs for internally invoiced goods and services | B46: Beskrivning | C46: RR-nr | D46: Bokfört belopp (SEK) | E46: Korrigering bokfört belopp (SEK) | F46: Belopp att redovisa (SEK) | G46: Belopp att redovisa (EUR) | H46: Vernr | I46: WP | J46: Kommentar

Sheet Financial Statement RP2
A1: FINANCIAL STATEMENT - RP2
A3: Project: | B3: ='Ekonomisk projektbeskrivning'!D5 -> 0
A4: GA: | B4: ='Ekonomisk projektbeskrivning'!D17 -> 0
A5: Reporting period: | B5: 2
A8: Cost Category | C8: Total EUR
A9: a) Direct personnel costs declared as actual costs | C9: 0
A10: b) Direct personnel costs declared as unit costs (average costs)
A11: d) Direct costs of subcontracting | C11: 0
A12: e) Direct costs of providing financial support to third parties
A13: f) Other direct costs | C13: 0
A14: h) Indirect costs (= 0.25 * (a + b + f - o)) | C14: =0.25*(SUM(CostCategory_A_RP2 + CostCategory_D_RP2 + CostCategory_F_RP2 - CostsInKindNotUsedInPremises_RP2)) -> 0
A15: j) Total costs (= a + b + d + e + f + h) | C15: =SUM(C9:C14) -> 0
A16: k) Receipts
A17: m) Maximum EU-contribution (100%) | C17: =((C15-C16)*100%) -> 0
A18: n) Requested EU-contribution
A21: o) Use of 'costs of in-kind contributions not used on premises'?

Sheet Adjustments RP2
A1: ADJUSTMENTS OF DIRECT COSTS
B2: Project: | C2: ='Ekonomisk projektbeskrivning'!D5 -> 0
B3: GA: | C3: ='Ekonomisk projektbeskrivning'!D17 -> 0
B4: Exchange rate: | C4: ='Ekonomisk projektbeskrivning'!B22 -> 0 | G4: Reporting period: 2
A6: A.1 Employees (or equivalent) | B6: Beskrivning | C6: RR (Om reseräkning) | D6: Belopp | E6: EUR | F6: Vernr | G6: WP | H6: Kommentar
E7: =IFERROR(D7/$C$4,"") -> 
E8: =IFERROR(D8/$C$4,"") -> 
J10: Inserted row
D11: =SUM(D7:D10) -> 0 | E11: =SUM(E7:E10) -> 0
A13: A.2 Natural persons working under direct contract | B13: Beskrivning | C13: RR (Om reseräkning) | D13: Belopp | E13: EUR | F13: Vernr | G13: WP | H13: Kommentar
E14: =IFERROR(D14/$C$4,"") -> 
J17: Inserted row
D18: =SUM(D14:D17) -> 0 | E18: =SUM(E14:E17) -> 0
A20: A.3 Seconded persons | B20: Beskrivning | C20: RR (Om reseräkning) | D20: Belopp | E20: EUR | F20: Vernr | G20: WP | H20: Kommentar
E21: =IFERROR(D21/$C$4,"") -> 
D25: =SUM(D21:D24) -> 0 | E25: =SUM(E21:E24) -> 0
A27: A.6 Personnel for providing access to research infrastructure | B27: Beskrivning | C27: RR (Om reseräkning) | D27: Belopp | E27: EUR | F27: Vernr | G27: WP | H27: Kommentar
E28: =IFERROR(D28/$C$4,"") -> 
J31: Inserted row
D32: =SUM(D28:D31) -> 0 | E32: =SUM(E28:E31) -> 0
A34: B.1 Subcontracting | B34: Beskrivning | C34: RR (Om reseräkning) | D34: Belopp | E34: EUR | F34: Vernr | G34: WP | H34: Kommentar
E35: =IFERROR(D35/$C$4,"") -> 
J38: Inserted row
D39: =SUM(D35:D38) -> 0 | E39: =SUM(E35:E38) -> 0
A41: D.1 Travel | B41: Beskrivning | C41: RR (Om reseräkning) | D41: Belopp | E41: EUR | F41: Vernr | G41: WP | H41: Kommentar
E42: =IFERROR(D42/$C$4,"") -> 
J45: Inserted row
D46: =SUM(D42:D45) -> 0 | E46: =SUM(E42:E45) -> 0
A48: D.2 Equipment | B48: Beskrivning | C48: RR (Om reseräkning) | D48: Belopp | E48: EUR | F48: Vernr | G48: WP | H48: Kommentar
E49: =IFERROR(D49/$C$4,"") -> 
J52: Inserted row
D53: =SUM(D49:D52) -> 0 | E53: =SUM(E49:E52) -> 0
A55: D.3 Other goods and services | B55: Beskrivning | C55: RR (Om reseräkning) | D55: Belopp | E55: EUR | F55: Vernr | G55: WP | H55: Kommentar
E56: =IFERROR(D56/$C$4,"") -> 
J59: Inserted row
D60: =SUM(D56:D59) -> 0 | E60: =SUM(E56:E59) -> 0
A62: D.5 Costs for internally invoiced goods and services | B62: Beskrivning | C62: RR (Om reseräkning) | D62: Belopp | E62: EUR | F62: Vernr | G62: WP | H62: Kommentar
E63: =IFERROR(D63/$C$4,"") -> 
J66: Inserted row
D67: =SUM(D63:D66) -> 0 | E67: =SUM(E63:E66) -> 0
A71: FINANCIAL STATEMENT (ADJUSTMENTS) - RP2
A73: Cost Category | C73: Total EUR
A74: a) Direct personnel costs declared as actual costs | C74: =E11+E18+E25+E32 -> 0
A75: b) Direct personnel costs declared as unit costs (average costs)
A76: d) Direct costs od subcontracting | C76: =E39 -> 0
A77: e) Direct costs of providing financial support to third parties
A78: f) Other direct costs | C78: =E46+E53+E60+E67 -> 0
A79: h) Indirect costs (= 0.25 * (a + b + f - o)) | C79: =(C74+C75+C78-C86)*0.25 -> 0
A80: j) Total costs (= a + b + d + e + f + h) | C80: =SUM(C74:C79) -> 0
A81: k) Receipts
A82: m) Maximum EU-contribution (100%) | C82: =((C80-C81)*100%) -> 0
A83: n) Requested EU-contribution
A86: o) Use of 'costs of in-kind contributions not used on premises'?

Sheet Personnel costs RP3
B1: PERSONNEL COSTS - RP3
B3: Project: | C3: ='Ekonomisk projektbeskrivning'!D5 -> 0 | G3: Grant Agreement No: | H3: ='Ekonomisk projektbeskrivning'!D17 -> 0
B5: Beneficiary: | C5: Hoegskolan i Boras / University of Borås
B7: Reporting period 3: | C7: =('Ekonomisk projektbeskrivning'!E23) -> 00:00:00 | D7: -- | E7: =('Ekonomisk projektbeskrivning'!F23) -> 00:00:00
B9: Exchange rate SEK-EUR: | C9: ='Ekonomisk projektbeskrivning'!B23 -> 0
B11: Option for calculating Hourly rate: | D11: Option 3: Standard annual productive hours (1700, 1732, 1756)
B14: Name | C14: WP | D14: Calender year | F14: Fiscal year | G14: Total salary cost in payroll (SEK) | H14: Salary costs for Additional remunerations that is not related to the project (SEK) | I14: Annual personnel costs (SEK) | K14: Employment monhts (according to time sheet summary) | L14: Annual productive hours | M14: Employment level (according to time sheet summary) | N14: Annual productive hours Pro-Rata | P14: Hourly rate (SEK) | Q14: Productive hours in the project | R14: PMs | S14: Calculated eligible personnel cost for the project (SEK) | T14: Total salary cost in payroll for the project (SEK) | U14: Difference (SEK) | V14: Personnel cost to claim in form C (SEK) | W14: Personnel cost to claim in form C (€)
B15: Lena-Marie Jensen
D16: =$D$140 -> Year 1: | E16: =$E$140 -> 1900 | F16: =$I$140 ->  | G16: 773862 | I16: =SUM(G16:H16) -> 773862 | K16: 12 | L16: 1688 | N16: =L16/12*K16*M16 -> 0 | P16: =(IFERROR(I16/L16,0)) -> 458.4490521 | Q16: 78 | R16: =(IFERROR((Q16/L16)*12,0)) -> 0.5545023697 | S16: =P16*Q16 -> 35759.02607 | T16: =(19945.58+14246.85+4558.99)/85*78 -> 35560.12659 | U16: =S16-T16 -> 198.8994781 | V16: =IF(T16<=S16,T16,S16) -> 35560.12659 | W16: =V16/$C$9 -> 
D17: =$D$141 -> Year 2: | E17: =$E$141 -> 0 | F17: =$I$141 ->  | G17: 773862 | I17: =SUM(G17:H17) -> 773862 | K17: 12 | L17: 1688 | N17: =L17/12*K17*M17 -> 0 | P17: 458.4490521 | Q17: 56.5 | R17: =(IFERROR((Q17/L17)*12,0)) -> 0.4016587678 | S17: =P17*Q17 -> 25902.37145 | T17: =11990.01+8463.53+6112.55 -> 26566.09 | U17: =S17-T17 -> -663.7185545 | V17: =IF(T17<=S17,T17,S17) -> 25902.37145 | W17: =V17/$C$9 -> 
D18: =$D$142 -> Year 3: | E18: =$E$142 -> 0 | F18: =$I$142 ->  | I18: =SUM(G18:H18) -> 0 | N18: =L18/12*K18*M18 -> 0 | P18: 0 | R18: 0 | S18: =P18*Q18 -> 0 | U18: =S18-T18 -> 0 | V18: =IF(T18<=S18,T18,S18) -> 0 | W18: =V18/$C$9 -> 
B19: Person 2
D20: =$D$140 -> Year 1: | E20: =$E$140 -> 1900 | F20: =$I$140 ->  | I20: =SUM(G20:H20) -> 0 | N20: =L20/12*K20*M20 -> 0 | P20: =(IFERROR(I20/L20,0)) -> 0 | R20: =(IFERROR((Q20/L20)*12,0)) -> 0 | S20: =P20*Q20 -> 0 | U20: =S20-T20 -> 0 | V20: =IF(T20<=S20,T20,S20) -> 0 | W20: =V20/$C$9 -> 
D21: =$D$141 -> Year 2: | E21: =$E$141 -> 0 | F21: =$I$141 ->  | I21: 0 | N21: 0 | P21: 0 | R21: 0 | S21: 0 | U21: 0 | V21: 0
D22: =$D$142 -> Year 3: | E22: =$E$142 -> 0 | F22: =$I$142 ->  | I22: 0 | N22: 0 | P22: 0 | R22: 0 | S22: 0 | U22: 0 | V22: 0
B23: Person 3
D24: =$D$140 -> Year 1: | E24: =$E$140 -> 1900 | F24: =$I$140 ->  | I24: =SUM(G24:H24) -> 0 | N24: =L24/12*K24*M24 -> 0 | P24: =(IFERROR(I24/L24,0)) -> 0 | R24: =(IFERROR((Q24/L24)*12,0)) -> 0 | S24: =P24*Q24 -> 0 | U24: =S24-T24 -> 0 | V24: =IF(T24<=S24,T24,S24) -> 0 | W24: =V24/$C$9 -> 
D25: =$D$141 -> Year 2: | E25: =$E$141 -> 0 | F25: =$I$141 ->  | I25: 0 | N25: 0 | P25: 0 | R25: 0 | S25: 0 | U25: 0 | V25: 0
D26: =$D$142 -> Year 3: | E26: =$E$142 -> 0 | F26: =$I$142 ->  | I26: 0 | N26: 0 | P26: 0 | R26: 0 | S26: 0 | U26: 0 | V26: 0
B27: Person 4
D28: =$D$140 -> Year 1: | E28: =$E$140 -> 1900 | F28: =$I$140 ->  | I28: =SUM(G28:H28) -> 0 | N28: =L28/12*K28*M28 -> 0 | P28: =(IFERROR(I28/L28,0)) -> 0 | R28: =(IFERROR((Q28/L28)*12,0)) -> 0 | S28: =P28*Q28 -> 0 | U28: =S28-T28 -> 0 | V28: =IF(T28<=S28,T28,S28) -> 0 | W28: =V28/$C$9 -> 
D29: =$D$141 -> Year 2: | E29: =$E$141 -> 0 | F29: =$I$141 ->  | I29: 0 | N29: 0 | P29: 0 | R29: 0 | S29: 0 | U29: 0 | V29: 0
D30: =$D$142 -> Year 3: | E30: =$E$142 -> 0 | F30: =$I$142 ->  | I30: 0 | N30: 0 | P30: 0 | R30: 0 | S30: 0 | U30: 0 | V30: 0
B31: Person 5
D32: =$D$140 -> Year 1: | E32: =$E$140 -> 1900 | F32: =$I$140 ->  | I32: =SUM(G32:H32) -> 0 | N32: =L32/12*K32*M32 -> 0 | P32: =(IFERROR(I32/L32,0)) -> 0 | R32: =(IFERROR((Q32/L32)*12,0)) -> 0 | S32: =P32*Q32 -> 0 | U32: =S32-T32 -> 0 | V32: =IF(T32<=S32,T32,S32) -> 0 | W32: =V32/$C$9 -> 
D33: =$D$141 -> Year 2: | E33: =$E$141 -> 0 | F33: =$I$141 ->  | I33: 0 | N33: 0 | P33: 0 | R33: 0 | S33: 0 | U33: 0 | V33: 0
D34: =$D$142 -> Year 3: | E34: =$E$142 -> 0 | F34: =$I$142 ->  | I34: 0 | N34: 0 | P34: 0 | R34: 0 | S34: 0 | U34: 0 | V34: 0
B35: Person 6
D36: =$D$140 -> Year 1: | E36: =$E$140 -> 1900 | F36: =$I$140 ->  | I36: =SUM(G36:H36) -> 0 | N36: =L36/12*K36*M36 -> 0 | P36: =(IFERROR(I36/L36,0)) -> 0 | R36: =(IFERROR((Q36/L36)*12,0)) -> 0 | S36: =P36*Q36 -> 0 | U36: =S36-T36 -> 0 | V36: =IF(T36<=S36,T36,S36) -> 0 | W36: =V36/$C$9 -> 
D37: =$D$141 -> Year 2: | E37: =$E$141 -> 0 | F37: =$I$141 ->  | I37: 0 | N37: 0 | P37: 0 | R37: 0 | S37: 0 | U37: 0 | V37: 0
D38: =$D$142 -> Year 3: | E38: =$E$142 -> 0 | F38: =$I$142 ->  | I38: 0 | N38: 0 | P38: 0 | R38: 0 | S38: 0 | U38: 0 | V38: 0
B39: Person 7
D40: =$D$140 -> Year 1: | E40: =$E$140 -> 1900 | F40: =$I$140 ->  | I40: =SUM(G40:H40) -> 0 | N40: =L40/12*K40*M40 -> 0 | P40: =(IFERROR(I40/L40,0)) -> 0 | R40: =(IFERROR((Q40/L40)*12,0)) -> 0 | S40: =P40*Q40 -> 0 | U40: =S40-T40 -> 0 | V40: =IF(T40<=S40,T40,S40) -> 0 | W40: =V40/$C$9 -> 
D41: =$D$141 -> Year 2: | E41: =$E$141 -> 0 | F41: =$I$141 ->  | I41: 0 | N41: 0 | P41: 0 | R41: 0 | S41: 0 | U41: 0 | V41: 0
D42: =$D$142 -> Year 3: | E42: =$E$142 -> 0 | F42: =$I$142 ->  | I42: 0 | N42: 0 | P42: 0 | R42: 0 | S42: 0 | U42: 0 | V42: 0
B43: Person 8
D44: =$D$140 -> Year 1: | E44: =$E$140 -> 1900 | F44: =$I$140 ->  | I44: =SUM(G44:H44) -> 0 | N44: =L44/12*K44*M44 -> 0 | P44: =(IFERROR(I44/L44,0)) -> 0 | R44: =(IFERROR((Q44/L44)*12,0)) -> 0 | S44: =P44*Q44 -> 0 | U44: =S44-T44 -> 0 | V44: =IF(T44<=S44,T44,S44) -> 0 | W44: =V44/$C$9 -> 
D45: =$D$141 -> Year 2: | E45: =$E$141 -> 0 | F45: =$I$141 ->  | I45: 0 | N45: 0 | P45: 0 | R45: 0 | S45: 0 | U45: 0 | V45: 0
D46: =$D$142 -> Year 3: | E46: =$E$142 -> 0 | F46: =$I$142 ->  | I46: 0 | N46: 0 | P46: 0 | R46: 0 | S46: 0 | U46: 0 | V46: 0
B47: Person 9
D48: =$D$140 -> Year 1: | E48: =$E$140 -> 1900 | F48: =$I$140 ->  | I48: =SUM(G48:H48) -> 0 | N48: =L48/12*K48*M48 -> 0 | P48: =(IFERROR(I48/L48,0)) -> 0 | R48: =(IFERROR((Q48/L48)*12,0)) -> 0 | S48: =P48*Q48 -> 0 | U48: =S48-T48 -> 0 | V48: =IF(T48<=S48,T48,S48) -> 0 | W48: =V48/$C$9 -> 
D49: =$D$141 -> Year 2: | E49: =$E$141 -> 0 | F49: =$I$141 ->  | I49: 0 | N49: 0 | P49: 0 | R49: 0 | S49: 0 | U49: 0 | V49: 0
D50: =$D$142 -> Year 3: | E50: =$E$142 -> 0 | F50: =$I$142 ->  | I50: 0 | N50: 0 | P50: 0 | R50: 0 | S50: 0 | U50: 0 | V50: 0
B51: Person 10
D52: =$D$140 -> Year 1: | E52: =$E$140 -> 1900 | F52: =$I$140 ->  | I52: =SUM(G52:H52) -> 0 | N52: =L52/12*K52*M52 -> 0 | P52: =(IFERROR(I52/L52,0)) -> 0 | R52: =(IFERROR((Q52/L52)*12,0)) -> 0 | S52: =P52*Q52 -> 0 | U52: =S52-T52 -> 0 | V52: =IF(T52<=S52,T52,S52) -> 0 | W52: =V52/$C$9 -> 
D53: =$D$141 -> Year 2: | E53: =$E$141 -> 0 | F53: =$I$141 ->  | I53: 0 | N53: 0 | P53: 0 | R53: 0 | S53: 0 | U53: 0 | V53: 0
D54: =$D$142 -> Year 3: | E54: =$E$142 -> 0 | F54: =$I$142 ->  | I54: 0 | N54: 0 | P54: 0 | R54: 0 | S54: 0 | U54: 0 | V54: 0
B55: Person 11
D56: =$D$140 -> Year 1: | E56: =$E$140 -> 1900 | F56: =$I$140 ->  | I56: =SUM(G56:H56) -> 0 | N56: =L56/12*K56*M56 -> 0 | P56: =(IFERROR(I56/L56,0)) -> 0 | R56: =(IFERROR((Q56/L56)*12,0)) -> 0 | S56: =P56*Q56 -> 0 | U56: =S56-T56 -> 0 | V56: =IF(T56<=S56,T56,S56) -> 0 | W56: =V56/$C$9 -> 
D57: =$D$141 -> Year 2: | E57: =$E$141 -> 0 | F57: =$I$141 ->  | I57: 0 | N57: 0 | P57: 0 | R57: 0 | S57: 0 | U57: 0 | V57: 0
D58: =$D$142 -> Year 3: | E58: =$E$142 -> 0 | F58: =$I$142 ->  | I58: 0 | N58: 0 | P58: 0 | R58: 0 | S58: 0 | U58: 0 | V58: 0
B59: Person 12
D60: =$D$140 -> Year 1: | E60: =$E$140 -> 1900 | F60: =$I$140 ->  | I60: =SUM(G60:H60) -> 0 | N60: =L60/12*K60*M60 -> 0 | P60: =(IFERROR(I60/L60,0)) -> 0 | R60: =(IFERROR((Q60/L60)*12,0)) -> 0 | S60: =P60*Q60 -> 0 | U60: =S60-T60 -> 0 | V60: =IF(T60<=S60,T60,S60) -> 0 | W60: =V60/$C$9 -> 
D61: =$D$141 -> Year 2: | E61: =$E$141 -> 0 | F61: =$I$141 ->  | I61: 0 | N61: 0 | P61: 0 | R61: 0 | S61: 0 | U61: 0 | V61: 0
D62: =$D$142 -> Year 3: | E62: =$E$142 -> 0 | F62: =$I$142 ->  | I62: 0 | N62: 0 | P62: 0 | R62: 0 | S62: 0 | U62: 0 | V62: 0
B63: Person 13
D64: =$D$140 -> Year 1: | E64: =$E$140 -> 1900 | F64: =$I$140 ->  | I64: =SUM(G64:H64) -> 0 | N64: =L64/12*K64*M64 -> 0 | P64: =(IFERROR(I64/L64,0)) -> 0 | R64: =(IFERROR((Q64/L64)*12,0)) -> 0 | S64: =P64*Q64 -> 0 | U64: =S64-T64 -> 0 | V64: =IF(T64<=S64,T64,S64) -> 0 | W64: =V64/$C$9 -> 
D65: =$D$141 -> Year 2: | E65: =$E$141 -> 0 | F65: =$I$141 ->  | I65: 0 | N65: 0 | P65: 0 | R65: 0 | S65: 0 | U65: 0 | V65: 0
D66: =$D$142 -> Year 3: | E66: =$E$142 -> 0 | F66: =$I$142 ->  | I66: 0 | N66: 0 | P66: 0 | R66: 0 | S66: 0 | U66: 0 | V66: 0
B67: Person 14
D68: =$D$140 -> Year 1: | E68: =$E$140 -> 1900 | F68: =$I$140 ->  | I68: =SUM(G68:H68) -> 0 | N68: =L68/12*K68*M68 -> 0 | P68: =(IFERROR(I68/L68,0)) -> 0 | R68: =(IFERROR((Q68/L68)*12,0)) -> 0 | S68: =P68*Q68 -> 0 | U68: =S68-T68 -> 0 | V68: =IF(T68<=S68,T68,S68) -> 0 | W68: =V68/$C$9 -> 
D69: =$D$141 -> Year 2: | E69: =$E$141 -> 0 | F69: =$I$141 ->  | I69: 0 | N69: 0 | P69: 0 | R69: 0 | S69: 0 | U69: 0 | V69: 0
D70: =$D$142 -> Year 3: | E70: =$E$142 -> 0 | F70: =$I$142 ->  | I70: 0 | N70: 0 | P70: 0 | R70: 0 | S70: 0 | U70: 0 | V70: 0
B71: Person 15
D72: =$D$140 -> Year 1: | E72: =$E$140 -> 1900 | F72: =$I$140 ->  | I72: =SUM(G72:H72) -> 0 | N72: =L72/12*K72*M72 -> 0 | P72: =(IFERROR(I72/L72,0)) -> 0 | R72: =(IFERROR((Q72/L72)*12,0)) -> 0 | S72: =P72*Q72 -> 0 | U72: =S72-T72 -> 0 | V72: =IF(T72<=S72,T72,S72) -> 0 | W72: =V72/$C$9 -> 
D73: =$D$141 -> Year 2: | E73: =$E$141 -> 0 | F73: =$I$141 ->  | I73: 0 | N73: 0 | P73: 0 | R73: 0 | S73: 0 | U73: 0 | V73: 0
D74: =$D$142 -> Year 3: | E74: =$E$142 -> 0 | F74: =$I$142 ->  | I74: 0 | N74: 0 | P74: 0 | R74: 0 | S74: 0 | U74: 0 | V74: 0
B75: Person 16
D76: =$D$140 -> Year 1: | E76: =$E$140 -> 1900 | F76: =$I$140 ->  | I76: =SUM(G76:H76) -> 0 | N76: =L76/12*K76*M76 -> 0 | P76: =(IFERROR(I76/L76,0)) -> 0 | R76: =(IFERROR((Q76/L76)*12,0)) -> 0 | S76: =P76*Q76 -> 0 | U76: =S76-T76 -> 0 | V76: =IF(T76<=S76,T76,S76) -> 0 | W76: =V76/$C$9 -> 
D77: =$D$141 -> Year 2: | E77: =$E$141 -> 0 | F77: =$I$141 ->  | I77: 0 | N77: 0 | P77: 0 | R77: 0 | S77: 0 | U77: 0 | V77: 0
D78: =$D$142 -> Year 3: | E78: =$E$142 -> 0 | F78: =$I$142 ->  | I78: 0 | N78: 0 | P78: 0 | R78: 0 | S78: 0 | U78: 0 | V78: 0
B79: Person 17
D80: =$D$140 -> Year 1: | E80: =$E$140 -> 1900 | F80: =$I$140 ->  | I80: =SUM(G80:H80) -> 0 | N80: =L80/12*K80*M80 -> 0 | P80: =(IFERROR(I80/L80,0)) -> 0 | R80: =(IFERROR((Q80/L80)*12,0)) -> 0 | S80: =P80*Q80 -> 0 | U80: =S80-T80 -> 0 | V80: =IF(T80<=S80,T80,S80) -> 0 | W80: =V80/$C$9 -> 
D81: =$D$141 -> Year 2: | E81: =$E$141 -> 0 | F81: =$I$141 ->  | I81: 0 | N81: 0 | P81: 0 | R81: 0 | S81: 0 | U81: 0 | V81: 0
D82: =$D$142 -> Year 3: | E82: =$E$142 -> 0 | F82: =$I$142 ->  | I82: 0 | N82: 0 | P82: 0 | R82: 0 | S82: 0 | U82: 0 | V82: 0
B83: Person 18
D84: =$D$140 -> Year 1: | E84: =$E$140 -> 1900 | F84: =$I$140 ->  | I84: =SUM(G84:H84) -> 0 | N84: =L84/12*K84*M84 -> 0 | P84: =(IFERROR(I84/L84,0)) -> 0 | R84: =(IFERROR((Q84/L84)*12,0)) -> 0 | S84: =P84*Q84 -> 0 | U84: =S84-T84 -> 0 | V84: =IF(T84<=S84,T84,S84) -> 0 | W84: =V84/$C$9 -> 
D85: =$D$141 -> Year 2: | E85: =$E$141 -> 0 | F85: =$I$141 ->  | I85: 0 | N85: 0 | P85: 0 | R85: 0 | S85: 0 | U85: 0 | V85: 0
D86: =$D$142 -> Year 3: | E86: =$E$142 -> 0 | F86: =$I$142 ->  | I86: 0 | N86: 0 | P86: 0 | R86: 0 | S86: 0 | U86: 0 | V86: 0
B87: Person 19
D88: =$D$140 -> Year 1: | E88: =$E$140 -> 1900 | F88: =$I$140 ->  | I88: =SUM(G88:H88) -> 0 | N88: =L88/12*K88*M88 -> 0 | P88: =(IFERROR(I88/L88,0)) -> 0 | R88: =(IFERROR((Q88/L88)*12,0)) -> 0 | S88: =P88*Q88 -> 0 | U88: =S88-T88 -> 0 | V88: =IF(T88<=S88,T88,S88) -> 0 | W88: =V88/$C$9 -> 
D89: =$D$141 -> Year 2: | E89: =$E$141 -> 0 | F89: =$I$141 ->  | I89: 0 | N89: 0 | P89: 0 | R89: 0 | S89: 0 | U89: 0 | V89: 0
D90: =$D$142 -> Year 3: | E90: =$E$142 -> 0 | F90: =$I$142 ->  | I90: 0 | N90: 0 | P90: 0 | R90: 0 | S90: 0 | U90: 0 | V90: 0
B91: Person 20
D92: =$D$140 -> Year 1: | E92: =$E$140 -> 1900 | F92: =$I$140 ->  | I92: =SUM(G92:H92) -> 0 | N92: =L92/12*K92*M92 -> 0 | P92: =(IFERROR(I92/L92,0)) -> 0 | R92: =(IFERROR((Q92/L92)*12,0)) -> 0 | S92: =P92*Q92 -> 0 | U92: =S92-T92 -> 0 | V92: =IF(T92<=S92,T92,S92) -> 0 | W92: =V92/$C$9 -> 
D93: =$D$141 -> Year 2: | E93: =$E$141 -> 0 | F93: =$I$141 ->  | I93: 0 | N93: 0 | P93: 0 | R93: 0 | S93: 0 | U93: 0 | V93: 0
D94: =$D$142 -> Year 3: | E94: =$E$142 -> 0 | F94: =$I$142 ->  | I94: 0 | N94: 0 | P94: 0 | R94: 0 | S94: 0 | U94: 0 | V94: 0
B95: Person 21
D96: =$D$140 -> Year 1: | E96: =$E$140 -> 1900 | F96: =$I$140 ->  | I96: =SUM(G96:H96) -> 0 | N96: =L96/12*K96*M96 -> 0 | P96: =(IFERROR(I96/L96,0)) -> 0 | R96: =(IFERROR((Q96/L96)*12,0)) -> 0 | S96: =P96*Q96 -> 0 | U96: =S96-T96 -> 0 | V96: =IF(T96<=S96,T96,S96) -> 0 | W96: =V96/$C$9 -> 
D97: =$D$141 -> Year 2: | E97: =$E$141 -> 0 | F97: =$I$141 ->  | I97: 0 | N97: 0 | P97: 0 | R97: 0 | S97: 0 | U97: 0 | V97: 0
D98: =$D$142 -> Year 3: | E98: =$E$142 -> 0 | F98: =$I$142 ->  | I98: 0 | N98: 0 | P98: 0 | R98: 0 | S98: 0 | U98: 0 | V98: 0
B99: Person 22
D100: =$D$140 -> Year 1: | E100: =$E$140 -> 1900 | F100: =$I$140 ->  | I100: =SUM(G100:H100) -> 0 | N100: =L100/12*K100*M100 -> 0 | P100: =(IFERROR(I100/L100,0)) -> 0 | R100: =(IFERROR((Q100/L100)*12,0)) -> 0 | S100: =P100*Q100 -> 0 | U100: =S100-T100 -> 0 | V100: =IF(T100<=S100,T100,S100) -> 0 | W100: =V100/$C$9 -> 
D101: =$D$141 -> Year 2: | E101: =$E$141 -> 0 | F101: =$I$141 ->  | I101: =SUM(G101:H101) -> 0 | N101: =L101/12*K101*M101 -> 0 | P101: 0 | R101: 0 | S101: =P101*Q101 -> 0 | U101: =S101-T101 -> 0 | V101: =IF(T101<=S101,T101,S101) -> 0 | W101: =V101/$C$9 -> 
D102: =$D$142 -> Year 3: | E102: =$E$142 -> 0 | F102: =$I$142 ->  | I102: =SUM(G102:H102) -> 0 | N102: =L102/12*K102*M102 -> 0 | P102: 0 | R102: 0 | S102: =P102*Q102 -> 0 | U102: =S102-T102 -> 0 | V102: =IF(T102<=S102,T102,S102) -> 0 | W102: =V102/$C$9 -> 
B103: Person 23
D104: =$D$140 -> Year 1: | E104: =$E$140 -> 1900 | F104: =$I$140 ->  | I104: =SUM(G104:H104) -> 0 | N104: =L104/12*K104*M104 -> 0 | P104: =(IFERROR(I104/L104,0)) -> 0 | R104: =(IFERROR((Q104/L104)*12,0)) -> 0 | S104: =P104*Q104 -> 0 | U104: =S104-T104 -> 0 | V104: =IF(T104<=S104,T104,S104) -> 0 | W104: =V104/$C$9 -> 
D105: =$D$141 -> Year 2: | E105: =$E$141 -> 0 | F105: =$I$141 ->  | I105: =SUM(G105:H105) -> 0 | N105: =L105/12*K105*M105 -> 0 | P105: 0 | R105: 0 | S105: =P105*Q105 -> 0 | U105: =S105-T105 -> 0 | V105: =IF(T105<=S105,T105,S105) -> 0 | W105: =V105/$C$9 -> 
D106: =$D$142 -> Year 3: | E106: =$E$142 -> 0 | F106: =$I$142 ->  | I106: =SUM(G106:H106) -> 0 | N106: =L106/12*K106*M106 -> 0 | P106: 0 | R106: 0 | S106: =P106*Q106 -> 0 | U106: =S106-T106 -> 0 | V106: =IF(T106<=S106,T106,S106) -> 0 | W106: =V106/$C$9 -> 
B107: Person 24
D108: =$D$140 -> Year 1: | E108: =$E$140 -> 1900 | F108: =$I$140 ->  | I108: =SUM(G108:H108) -> 0 | N108: =L108/12*K108*M108 -> 0 | P108: =(IFERROR(I108/L108,0)) -> 0 | R108: =(IFERROR((Q108/L108)*12,0)) -> 0 | S108: =P108*Q108 -> 0 | U108: =S108-T108 -> 0 | V108: =IF(T108<=S108,T108,S108) -> 0 | W108: =V108/$C$9 -> 
D109: =$D$141 -> Year 2: | E109: =$E$141 -> 0 | F109: =$I$141 ->  | I109: =SUM(G109:H109) -> 0 | N109: =L109/12*K109*M109 -> 0 | P109: =(IFERROR(I109/L109,0)) -> 0 | R109: 0 | S109: =P109*Q109 -> 0 | U109: =S109-T109 -> 0 | V109: =IF(T109<=S109,T109,S109) -> 0 | W109: =V109/$C$9 -> 
D110: =$D$142 -> Year 3: | E110: =$E$142 -> 0 | F110: =$I$142 ->  | I110: =SUM(G110:H110) -> 0 | N110: =L110/12*K110*M110 -> 0 | P110: 0 | R110: 0 | S110: =P110*Q110 -> 0 | U110: =S110-T110 -> 0 | V110: =IF(T110<=S110,T110,S110) -> 0 | W110: =V110/$C$9 -> 
B111: Person 25
D112: =$D$140 -> Year 1: | E112: =$E$140 -> 1900 | F112: =$I$140 ->  | I112: =SUM(G112:H112) -> 0 | N112: =L112/12*K112*M112 -> 0 | P112: =(IFERROR(I112/L112,0)) -> 0 | R112: =(IFERROR((Q112/L112)*12,0)) -> 0 | S112: =P112*Q112 -> 0 | U112: =S112-T112 -> 0 | V112: =IF(T112<=S112,T112,S112) -> 0 | W112: =V112/$C$9 -> 
D113: =$D$141 -> Year 2: | E113: =$E$141 -> 0 | F113: =$I$141 ->  | I113: =SUM(G113:H113) -> 0 | N113: =L113/12*K113*M113 -> 0 | P113: 0 | R113: 0 | S113: =P113*Q113 -> 0 | U113: =S113-T113 -> 0 | V113: =IF(T113<=S113,T113,S113) -> 0 | W113: =V113/$C$9 -> 
D114: =$D$142 -> Year 3: | E114: =$E$142 -> 0 | F114: =$I$142 ->  | I114: =SUM(G114:H114) -> 0 | N114: =L114/12*K114*M114 -> 0 | P114: 0 | R114: 0 | S114: =P114*Q114 -> 0 | U114: =S114-T114 -> 0 | V114: =IF(T114<=S114,T114,S114) -> 0 | W114: =V114/$C$9 -> 
B115: Person 26
D116: =$D$140 -> Year 1: | E116: =$E$140 -> 1900 | F116: =$I$140 ->  | I116: =SUM(G116:H116) -> 0 | N116: =L116/12*K116*M116 -> 0 | P116: =(IFERROR(I116/L116,0)) -> 0 | R116: =(IFERROR((Q116/L116)*12,0)) -> 0 | S116: =P116*Q116 -> 0 | U116: =S116-T116 -> 0 | V116: =IF(T116<=S116,T116,S116) -> 0 | W116: =V116/$C$9 -> 
D117: =$D$141 -> Year 2: | E117: =$E$141 -> 0 | F117: =$I$141 ->  | I117: =SUM(G117:H117) -> 0 | N117: =L117/12*K117*M117 -> 0 | P117: 0 | R117: 0 | S117: =P117*Q117 -> 0 | U117: =S117-T117 -> 0 | V117: =IF(T117<=S117,T117,S117) -> 0 | W117: =V117/$C$9 -> 
D118: =$D$142 -> Year 3: | E118: =$E$142 -> 0 | F118: =$I$142 ->  | I118: =SUM(G118:H118) -> 0 | N118: =L118/12*K118*M118 -> 0 | P118: 0 | R118: 0 | S118: =P118*Q118 -> 0 | U118: =S118-T118 -> 0 | V118: =IF(T118<=S118,T118,S118) -> 0 | W118: =V118/$C$9 -> 
B119: Person 27
D120: =$D$140 -> Year 1: | E120: =$E$140 -> 1900 | F120: =$I$140 ->  | I120: =SUM(G120:H120) -> 0 | N120: =L120/12*K120*M120 -> 0 | P120: =(IFERROR(I120/L120,0)) -> 0 | R120: =(IFERROR((Q120/L120)*12,0)) -> 0 | S120: =P120*Q120 -> 0 | U120: =S120-T120 -> 0 | V120: =IF(T120<=S120,T120,S120) -> 0 | W120: =V120/$C$9 -> 
D121: =$D$141 -> Year 2: | E121: =$E$141 -> 0 | F121: =$I$141 ->  | I121: =SUM(G121:H121) -> 0 | N121: =L121/12*K121*M121 -> 0 | P121: 0 | R121: 0 | S121: =P121*Q121 -> 0 | U121: =S121-T121 -> 0 | V121: =IF(T121<=S121,T121,S121) -> 0 | W121: =V121/$C$9 -> 
D122: =$D$142 -> Year 3: | E122: =$E$142 -> 0 | F122: =$I$142 ->  | I122: =SUM(G122:H122) -> 0 | N122: =L122/12*K122*M122 -> 0 | P122: 0 | R122: 0 | S122: =P122*Q122 -> 0 | U122: =S122-T122 -> 0 | V122: =IF(T122<=S122,T122,S122) -> 0 | W122: =V122/$C$9 -> 
B123: Person 28
D124: =$D$140 -> Year 1: | E124: =$E$140 -> 1900 | F124: =$I$140 ->  | I124: =SUM(G124:H124) -> 0 | N124: =L124/12*K124*M124 -> 0 | P124: =(IFERROR(I124/L124,0)) -> 0 | R124: =(IFERROR((Q124/L124)*12,0)) -> 0 | S124: =P124*Q124 -> 0 | U124: =S124-T124 -> 0 | V124: =IF(T124<=S124,T124,S124) -> 0 | W124: =V124/$C$9 -> 
D125: =$D$141 -> Year 2: | E125: =$E$141 -> 0 | F125: =$I$141 ->  | I125: =SUM(G125:H125) -> 0 | N125: =L125/12*K125*M125 -> 0 | P125: 0 | R125: 0 | S125: =P125*Q125 -> 0 | U125: =S125-T125 -> 0 | V125: =IF(T125<=S125,T125,S125) -> 0 | W125: =V125/$C$9 -> 
D126: =$D$142 -> Year 3: | E126: =$E$142 -> 0 | F126: =$I$142 ->  | I126: =SUM(G126:H126) -> 0 | N126: =L126/12*K126*M126 -> 0 | P126: 0 | R126: 0 | S126: =P126*Q126 -> 0 | U126: =S126-T126 -> 0 | V126: =IF(T126<=S126,T126,S126) -> 0 | W126: =V126/$C$9 -> 
B127: Person 29
D128: =$D$140 -> Year 1: | E128: =$E$140 -> 1900 | F128: =$I$140 ->  | I128: =SUM(G128:H128) -> 0 | N128: =L128/12*K128*M128 -> 0 | P128: =(IFERROR(I128/L128,0)) -> 0 | R128: =(IFERROR((Q128/L128)*12,0)) -> 0 | S128: =P128*Q128 -> 0 | U128: =S128-T128 -> 0 | V128: =IF(T128<=S128,T128,S128) -> 0 | W128: =V128/$C$9 -> 
D129: =$D$141 -> Year 2: | E129: =$E$141 -> 0 | F129: =$I$141 ->  | I129: =SUM(G129:H129) -> 0 | N129: =L129/12*K129*M129 -> 0 | P129: 0 | R129: 0 | S129: =P129*Q129 -> 0 | U129: =S129-T129 -> 0 | V129: =IF(T129<=S129,T129,S129) -> 0 | W129: =V129/$C$9 -> 
D130: =$D$142 -> Year 3: | E130: =$E$142 -> 0 | F130: =$I$142 ->  | I130: =SUM(G130:H130) -> 0 | N130: =L130/12*K130*M130 -> 0 | P130: 0 | R130: 0 | S130: =P130*Q130 -> 0 | U130: =S130-T130 -> 0 | V130: =IF(T130<=S130,T130,S130) -> 0 | W130: =V130/$C$9 -> 
B131: Person 30
D132: =$D$140 -> Year 1: | E132: =$E$140 -> 1900 | F132: =$I$140 ->  | I132: =SUM(G132:H132) -> 0 | N132: =L132/12*K132*M132 -> 0 | P132: =(IFERROR(I132/L132,0)) -> 0 | R132: =(IFERROR((Q132/L132)*12,0)) -> 0 | S132: =P132*Q132 -> 0 | U132: =S132-T132 -> 0 | V132: =IF(T132<=S132,T132,S132) -> 0 | W132: =V132/$C$9 -> 
D133: =$D$141 -> Year 2: | E133: =$E$141 -> 0 | F133: =$I$141 ->  | I133: =SUM(G133:H133) -> 0 | N133: =L133/12*K133*M133 -> 0 | P133: 0 | R133: 0 | S133: =P133*Q133 -> 0 | U133: =S133-T133 -> 0 | V133: =IF(T133<=S133,T133,S133) -> 0 | W133: =V133/$C$9 -> 
D134: =$D$142 -> Year 3: | E134: =$E$142 -> 0 | F134: =$I$142 ->  | I134: =SUM(G134:H134) -> 0 | N134: =L134/12*K134*M134 -> 0 | P134: 0 | R134: 0 | S134: =P134*Q134 -> 0 | U134: =S134-T134 -> 0 | V134: =IF(T134<=S134,T134,S134) -> 0 | W134: =V134/$C$9 -> 
W135: =SUM(W15:W134) -> 
D139: Number of reporting months per year this reporting period
D140: Year 1: | E140: =YEAR('Ekonomisk projektbeskrivning'!E23) -> 1900 | F140: =IF(MONTH(H140)-MONTH(G140)=0,0,MONTH(H140)-MONTH(G140)+1) -> 0 | G140: ='Ekonomisk projektbeskrivning'!E23 -> 00:00:00 | H140: =IF(YEAR('Ekonomisk projektbeskrivning'!F23)='Personnel costs RP3'!E140,'Ekonomisk projektbeskrivning'!F23,CONCATENATE(E140&"-12-31")) -> 0 | I140: =IF(F140<>0,IF(F140<12,IF(MONTH(G140)>(12-F140),E140,E140-1),E140),"") -> 
D141: Year 2: | E141: =IF(YEAR('Ekonomisk projektbeskrivning'!F23)>=('Personnel costs RP3'!E140+1),('Personnel costs RP3'!E140+1),0) -> 0 | F141: =IF(E141=0,0,IF(MONTH(G141)=1,IF(MONTH(H141)=1,1,(MONTH(H141)-MONTH(G141)+1)))) -> 0 | G141: =IF(E140=YEAR('Ekonomisk projektbeskrivning'!F23),0,CONCATENATE(E141&"-01-01")) -> 0 | H141: =IF(E140+1=YEAR('Ekonomisk projektbeskrivning'!F23),'Ekonomisk projektbeskrivning'!F23,IF(E140+1>YEAR('Ekonomisk projektbeskrivning'!F23),0,CONCATENATE(E141&"-12-31"))) -> 0 | I141: =IF(F141<>0,IF(F141<12,IF(MONTH(G141)>(12-F141),E141,E141-1),E141),"") -> 
D142: Year 3: | E142: =IF(YEAR('Ekonomisk projektbeskrivning'!F23)>=('Personnel costs RP3'!E140+2),('Personnel costs RP3'!E141+1),0) -> 0 | F142: =IF(E142=0,0,IF(MONTH(G142)=1,IF(MONTH(H142)=1,1,(MONTH(H142)-MONTH(G142)+1)))) -> 0 | G142: =IF(E140+1>=YEAR('Ekonomisk projektbeskrivning'!F23),0,CONCATENATE(E140+2&"-01-01")) -> 0 | H142: =IF(E140+2=YEAR('Ekonomisk projektbeskrivning'!F23),'Ekonomisk projektbeskrivning'!F23,IF(E140+2>YEAR('Ekonomisk projektbeskrivning'!F23),0,CONCATENATE(E142&"-12-31"))) -> 0

Sheet Project Transactions RP3
A1: sql SELECT dim_1, dim_2, voucher_no, period, trans_date, VERIFIKATIONER.account, VERIFIKATIONER.description AS VERTEXT, amount, KONTO.description AS KONTONAMN
A2: sql FROM agltransact AS VERIFIKATIONER
A3: sql FULL JOIN aglaccounts as KONTO
A4: sql ON VERIFIKATIONER.account = KONTO.account
A5: =C5 -> sql WHERE dim_1='0' | C5: =CONCATENATE("sql WHERE dim_1='"&E15&"'") -> sql WHERE dim_1='0'
A6: =C6 -> sql AND dim_2 LIKE '0%' | C6: =CONCATENATE("sql AND dim_2 LIKE '"&E16&"%'") -> sql AND dim_2 LIKE '0%'
A7: =C7 -> sql AND period >='' | C7: =CONCATENATE("sql AND period >='"&E17&"'") -> sql AND period >=''
A8: =C8 -> sql AND period <='' | C8: =CONCATENATE("sql AND period <='"&E18&"'") -> sql AND period <=''
A9: sql AND KONTO.client='BO'
A10: query
A11: sort account
A12: columns | B12: code account | C12: text dim_1 | D12: text dim_2 | E12: text voucher_no | F12: text Period | G12: trans_date | H12: text account | I12: KONTONAMN | J12: VERTEXT | K12: amount
C13: VERIFIKATIONSLISTA - RP3
C15: Orgenhet: | E15: ='Project Transactions RP1'!E15 -> 0
C16: Akt/Proj: | E16: ='Project Transactions RP1'!E16 -> 0 | F16: Rapporten söker automatiskt ut med * utan att detta anges.
C17: Från period: | F17: OBS: året börjar med period 00
C18: Till period: | F18: OBS: året slutar med period 15
C19: Reporting period: | E19: 3
C21: Orgenhet | D21: Akt/proj | E21: Vernr | F21: Period | G21: Ver.datum | H21: Konto | I21: Konto(T) | J21: Verifikationstext | K21: Belopp | L21: Korrigering belopp (-) | M21: Beskrivning | N21: RR (Om reseräkning) | P21: Kostnadsslag i Financial statement (välj i listan)
A22: detail | B22: 4* | G22: 00:00:00 | I22: 0 | J22: 0 | K22: 0 | N22: =IF(MID($J22,42,6)="RESEID",MID($J22,49,11),"") -> 
A23: detail | B23: 51* | G23: 00:00:00 | I23: 0 | J23: 0 | K23: 0
A24: detail | B24: 52* | G24: 00:00:00 | I24: 0 | J24: 0 | K24: 0
A25: detail | B25: 53* | G25: 00:00:00 | I25: 0 | J25: 0 | K25: 0
A26: detail | B26: 54* | G26: 00:00:00 | I26: 0 | J26: 0 | K26: 0
A27: detail | B27: 55* | G27: 00:00:00 | I27: 0 | J27: 0 | K27: 0
A28: detail | B28: 56* | G28: 00:00:00 | I28: 0 | J28: 0 | K28: 0
A29: detail | B29: 57* | G29: 00:00:00 | I29: 0 | J29: 0 | K29: 0
A30: detail | B30: 69* | G30: 00:00:00 | I30: 0 | J30: 0 | K30: 0
A31: detail | B31: 94* | G31: 00:00:00 | I31: 0 | J31: 0 | K31: 0
A32: detail | B32: 95* | G32: 00:00:00 | I32: 0 | J32: 0 | K32: 0
A33: detail | B33: 96* | G33: 00:00:00 | I33: 0 | J33: 0 | K33: 0
A34: detail | B34: 97* | G34: 00:00:00 | I34: 0 | J34: 0 | K34: 0
A35: detail | B35: 9941 | G35: 00:00:00 | I35: 0 | J35: 0 | K35: 0

Sheet Direct costs RP3
A1: DIRECT COSTS - RP3
C2: Project: | D2: ='Ekonomisk projektbeskrivning'!D5 -> 0
C3: GA: | D3: ='Ekonomisk projektbeskrivning'!D17 -> 0
C4: Exchange rate: | D4: ='Ekonomisk projektbeskrivning'!B23 -> 0 | I4: Reporting period: 3
A6: A.1 Employees (or equivalent) | B6: Beskrivning | C6: RR-nr | D6: Bokfört belopp (SEK) | E6: Korrigering bokfört belopp (SEK) | F6: Belopp att redovisa (SEK) | G6: Belopp att redovisa (EUR) | H6: Vernr | I6: WP | J6: Kommentar
A11: A.2 Natural persons working under direct contract | B11: Beskrivning | C11: RR-nr | D11: Bokfört belopp (SEK) | E11: Korrigering bokfört belopp (SEK) | F11: Belopp att redovisa (SEK) | G11: Belopp att redovisa (EUR) | H11: Vernr | I11: WP | J11: Kommentar
A16: A.3 Seconded persons | B16: Beskrivning | C16: RR-nr | D16: Bokfört belopp (SEK) | E16: Korrigering bokfört belopp (SEK) | F16: Belopp att redovisa (SEK) | G16: Belopp att redovisa (EUR) | H16: Vernr | I16: WP | J16: Kommentar
A21: A.6 Personnel for providing access to research infrastructure | B21: Beskrivning | C21: RR-nr | D21: Bokfört belopp (SEK) | E21: Korrigering bokfört belopp (SEK) | F21: Belopp att redovisa (SEK) | G21: Belopp att redovisa (EUR) | H21: Vernr | I21: WP | J21: Kommentar
A26: B.1 Subcontracting | B26: Beskrivning | C26: RR-nr | D26: Bokfört belopp (SEK) | E26: Korrigering bokfört belopp (SEK) | F26: Belopp att redovisa (SEK) | G26: Belopp att redovisa (EUR) | H26: Vernr | I26: WP | J26: Kommentar
A31: D.1 Travel | B31: Beskrivning | C31: RR-nr | D31: Bokfört belopp (SEK) | E31: Korrigering bokfört belopp (SEK) | F31: Belopp att redovisa (SEK) | G31: Belopp att redovisa (EUR) | H31: Vernr | I31: WP | J31: Kommentar
A36: D.2 Equipment | B36: Beskrivning | C36: RR-nr | D36: Bokfört belopp (SEK) | E36: Korrigering bokfört belopp (SEK) | F36: Belopp att redovisa (SEK) | G36: Belopp att redovisa (EUR) | H36: Vernr | I36: WP | J36: Kommentar
A41: D.3 Other goods and services | B41: Beskrivning | C41: RR-nr | D41: Bokfört belopp (SEK) | E41: Korrigering bokfört belopp (SEK) | F41: Belopp att redovisa (SEK) | G41: Belopp att redovisa (EUR) | H41: Vernr | I41: WP | J41: Kommentar
A46: D.5 Costs for internally invoiced goods and services | B46: Beskrivning | C46: RR-nr | D46: Bokfört belopp (SEK) | E46: Korrigering bokfört belopp (SEK) | F46: Belopp att redovisa (SEK) | G46: Belopp att redovisa (EUR) | H46: Vernr | I46: WP | J46: Kommentar

Sheet Financial Statement RP3
A1: FINANCIAL STATEMENT - RP3
A3: Project: | B3: ='Ekonomisk projektbeskrivning'!D5 -> 0
A4: GA: | B4: ='Ekonomisk projektbeskrivning'!D17 -> 0
A5: Reporting period: | B5: 3
A8: Cost Category | C8: Total EUR
A9: a) Direct personnel costs declared as actual costs | C9: 0
A10: b) Direct personnel costs declared as unit costs (average costs)
A11: d) Direct costs of subcontracting | C11: 0
A12: e) Direct costs of providing financial support to third parties
A13: f) Other direct costs | C13: 0
A14: h) Indirect costs (= 0.25 * (a + b + f - o)) | C14: =0.25*(SUM(CostCategory_A_RP3 + CostCategory_D_RP3 + CostCategory_F_RP3 - CostsInKindNotUsedInPremises_RP3)) -> 0
A15: j) Total costs (= a + b + d + e + f + h) | C15: =SUM(C9:C14) -> 0
A16: k) Receipts
A17: m) Maximum EU-contribution (100%) | C17: =((C15-C16)*100%) -> 0
A18: n) Requested EU-contribution
A21: o) Use of 'costs of in-kind contributions not used on premises'?

Sheet Adjustments RP3
A1: ADJUSTMENTS OF DIRECT COSTS
B2: Project: | C2: ='Ekonomisk projektbeskrivning'!D5 -> 0
B3: GA: | C3: ='Ekonomisk projektbeskrivning'!D17 -> 0
B4: Exchange rate: | C4: ='Ekonomisk projektbeskrivning'!B23 -> 0 | G4: Reporting period: 3
A6: A.1 Employees (or equivalent) | B6: Beskrivning | C6: RR (Om reseräkning) | D6: Belopp | E6: EUR | F6: Vernr | G6: WP | H6: Kommentar
E7: =IFERROR(D7/$C$4,"") -> 
J10: Inserted row
D11: =SUM(D7:D10) -> 0 | E11: =SUM(E7:E10) -> 0
A13: A.2 Natural persons working under direct contract | B13: Beskrivning | C13: RR (Om reseräkning) | D13: Belopp | E13: EUR | F13: Vernr | G13: WP | H13: Kommentar
E14: =IFERROR(D14/$C$4,"") -> 
J17: Inserted row
D18: =SUM(D14:D17) -> 0 | E18: =SUM(E14:E17) -> 0
A20: A.3 Seconded persons | B20: Beskrivning | C20: RR (Om reseräkning) | D20: Belopp | E20: EUR | F20: Vernr | G20: WP | H20: Kommentar
E21: =IFERROR(D21/$C$4,"") -> 
D25: =SUM(D21:D24) -> 0 | E25: =SUM(E21:E24) -> 0
A27: A.6 Personnel for providing access to research infrastructure | B27: Beskrivning | C27: RR (Om reseräkning) | D27: Belopp | E27: EUR | F27: Vernr | G27: WP | H27: Kommentar
E28: =IFERROR(D28/$C$4,"") -> 
J31: Inserted row
D32: =SUM(D28:D31) -> 0 | E32: =SUM(E28:E31) -> 0
A34: B.1 Subcontracting | B34: Beskrivning | C34: RR (Om reseräkning) | D34: Belopp | E34: EUR | F34: Vernr | G34: WP | H34: Kommentar
E35: =IFERROR(D35/$C$4,"") -> 
J38: Inserted row
D39: =SUM(D35:D38) -> 0 | E39: =SUM(E35:E38) -> 0
A41: D.1 Travel | B41: Beskrivning | C41: RR (Om reseräkning) | D41: Belopp | E41: EUR | F41: Vernr | G41: WP | H41: Kommentar
E42: =IFERROR(D42/$C$4,"") -> 
J45: Inserted row
D46: =SUM(D42:D45) -> 0 | E46: =SUM(E42:E45) -> 0
A48: D.2 Equipment | B48: Beskrivning | C48: RR (Om reseräkning) | D48: Belopp | E48: EUR | F48: Vernr | G48: WP | H48: Kommentar
E49: =IFERROR(D49/$C$4,"") -> 
J52: Inserted row
D53: =SUM(D49:D52) -> 0 | E53: =SUM(E49:E52) -> 0
A55: D.3 Other goods and services | B55: Beskrivning | C55: RR (Om reseräkning) | D55: Belopp | E55: EUR | F55: Vernr | G55: WP | H55: Kommentar
E56: =IFERROR(D56/$C$4,"") -> 
J59: Inserted row
D60: =SUM(D56:D59) -> 0 | E60: =SUM(E56:E59) -> 0
A62: D.5 Costs for internally invoiced goods and services | B62: Beskrivning | C62: RR (Om reseräkning) | D62: Belopp | E62: EUR | F62: Vernr | G62: WP | H62: Kommentar
E63: =IFERROR(D63/$C$4,"") -> 
J66: Inserted row
D67: =SUM(D63:D66) -> 0 | E67: =SUM(E63:E66) -> 0
A71: FINANCIAL STATEMENT (ADJUSTMENTS) - RP3
A73: Cost Category | C73: Total EUR
A74: a) Direct personnel costs declared as actual costs | C74: =E11+E18+E25+E32 -> 0
A75: b) Direct personnel costs declared as unit costs (average costs)
A76: d) Direct costs od subcontracting | C76: =E39 -> 0
A77: e) Direct costs of providing financial support to third parties
A78: f) Other direct costs | C78: =E46+E53+E60+E67 -> 0
A79: h) Indirect costs (= 0.25 * (a + b + f - o)) | C79: =(C74+C75+C78-C86)*0.25 -> 0
A80: j) Total costs (= a + b + d + e + f + h) | C80: =SUM(C74:C79) -> 0
A81: k) Receipts
A82: m) Maximum EU-contribution (100%) | C82: =((C80-C81)*100%) -> 0
A83: n) Requested EU-contribution
A86: o) Use of 'costs of in-kind contributions not used on premises'?

Sheet Personnel costs RP4
B1: PERSONNEL COSTS - RP4
B3: Project: | C3: ='Ekonomisk projektbeskrivning'!D5 -> 0 | G3: Grant Agreement No: | H3: ='Ekonomisk projektbeskrivning'!D17 -> 0
B5: Beneficiary: | C5: Hoegskolan i Boras / University of Borås
B7: Reporting period 4: | C7: ='Ekonomisk projektbeskrivning'!E24 -> 00:00:00 | D7: -- | E7: ='Ekonomisk projektbeskrivning'!F24 -> 00:00:00
B9: Exchange rate SEK-EUR: | C9: ='Ekonomisk projektbeskrivning'!B24 -> 0
B11: Option for calculating Hourly rate: | D11: Option 3: Standard annual productive hours (1700, 1732, 1756)
B14: Name | C14: WP | D14: Calender year | F14: Fiscal year | G14: Total salary cost in payroll (SEK) | H14: Salary costs for Additional remunerations that is not related to the project (SEK) | I14: Annual personnel costs (SEK) | K14: Employment monhts (according to time sheet summary) | L14: Annual productive hours | M14: Employment level (according to time sheet summary) | N14: Annual productive hours Pro-Rata | P14: Hourly rate (SEK) | Q14: Productive hours in the project | R14: PMs | S14: Calculated eligible personnel cost for the project (SEK) | T14: Total salary cost in payroll for the project (SEK) | U14: Difference (SEK) | V14: Personnel cost to claim in form C (SEK) | W14: Personnel cost to claim in form C (€)
B15: Person 1
D16: =$D$140 -> Year 1: | E16: =$E$140 -> 1900 | F16: =$I$140 ->  | I16: =SUM(G16:H16) -> 0 | N16: =L16/12*K16*M16 -> 0 | P16: =(IFERROR(I16/L16,0)) -> 0 | R16: =(IFERROR((Q16/L16)*12,0)) -> 0 | S16: =P16*Q16 -> 0 | U16: =S16-T16 -> 0 | V16: =IF(T16<=S16,T16,S16) -> 0 | W16: =V16/$C$9 -> 
D17: =$D$141 -> Year 2: | E17: =$E$141 -> 0 | F17: =$I$141 ->  | I17: =SUM(G17:H17) -> 0 | N17: =L17/12*K17*M17 -> 0 | P17: 0 | R17: =(IFERROR((Q17/L17)*12,0)) -> 0 | S17: =P17*Q17 -> 0 | U17: =S17-T17 -> 0 | V17: =IF(T17<=S17,T17,S17) -> 0 | W17: =V17/$C$9 -> 
D18: =$D$142 -> Year 3: | E18: =$E$142 -> 0 | F18: =$I$142 ->  | I18: =SUM(G18:H18) -> 0 | N18: =L18/12*K18*M18 -> 0 | P18: 0 | R18: 0 | S18: =P18*Q18 -> 0 | U18: =S18-T18 -> 0 | V18: =IF(T18<=S18,T18,S18) -> 0 | W18: =V18/$C$9 -> 
B19: Person 2
D20: =$D$140 -> Year 1: | E20: =$E$140 -> 1900 | F20: =$I$140 ->  | I20: =SUM(G20:H20) -> 0 | N20: =L20/12*K20*M20 -> 0 | P20: =(IFERROR(I20/L20,0)) -> 0 | R20: =(IFERROR((Q20/L20)*12,0)) -> 0 | S20: =P20*Q20 -> 0 | U20: =S20-T20 -> 0 | V20: =IF(T20<=S20,T20,S20) -> 0 | W20: =V20/$C$9 -> 
D21: =$D$141 -> Year 2: | E21: =$E$141 -> 0 | F21: =$I$141 ->  | I21: 0 | N21: 0 | P21: 0 | R21: 0 | S21: 0 | U21: 0 | V21: 0
D22: =$D$142 -> Year 3: | E22: =$E$142 -> 0 | F22: =$I$142 ->  | I22: 0 | N22: 0 | P22: 0 | R22: 0 | S22: 0 | U22: 0 | V22: 0
B23: Person 3
D24: =$D$140 -> Year 1: | E24: =$E$140 -> 1900 | F24: =$I$140 ->  | I24: =SUM(G24:H24) -> 0 | N24: =L24/12*K24*M24 -> 0 | P24: =(IFERROR(I24/L24,0)) -> 0 | R24: =(IFERROR((Q24/L24)*12,0)) -> 0 | S24: =P24*Q24 -> 0 | U24: =S24-T24 -> 0 | V24: =IF(T24<=S24,T24,S24) -> 0 | W24: =V24/$C$9 -> 
D25: =$D$141 -> Year 2: | E25: =$E$141 -> 0 | F25: =$I$141 ->  | I25: 0 | N25: 0 | P25: 0 | R25: 0 | S25: 0 | U25: 0 | V25: 0
D26: =$D$142 -> Year 3: | E26: =$E$142 -> 0 | F26: =$I$142 ->  | I26: 0 | N26: 0 | P26: 0 | R26: 0 | S26: 0 | U26: 0 | V26: 0
B27: Person 4
D28: =$D$140 -> Year 1: | E28: =$E$140 -> 1900 | F28: =$I$140 ->  | I28: =SUM(G28:H28) -> 0 | N28: =L28/12*K28*M28 -> 0 | P28: =(IFERROR(I28/L28,0)) -> 0 | R28: =(IFERROR((Q28/L28)*12,0)) -> 0 | S28: =P28*Q28 -> 0 | U28: =S28-T28 -> 0 | V28: =IF(T28<=S28,T28,S28) -> 0 | W28: =V28/$C$9 -> 
D29: =$D$141 -> Year 2: | E29: =$E$141 -> 0 | F29: =$I$141 ->  | I29: 0 | N29: 0 | P29: 0 | R29: 0 | S29: 0 | U29: 0 | V29: 0
D30: =$D$142 -> Year 3: | E30: =$E$142 -> 0 | F30: =$I$142 ->  | I30: 0 | N30: 0 | P30: 0 | R30: 0 | S30: 0 | U30: 0 | V30: 0
B31: Person 5
D32: =$D$140 -> Year 1: | E32: =$E$140 -> 1900 | F32: =$I$140 ->  | I32: =SUM(G32:H32) -> 0 | N32: =L32/12*K32*M32 -> 0 | P32: =(IFERROR(I32/L32,0)) -> 0 | R32: =(IFERROR((Q32/L32)*12,0)) -> 0 | S32: =P32*Q32 -> 0 | U32: =S32-T32 -> 0 | V32: =IF(T32<=S32,T32,S32) -> 0 | W32: =V32/$C$9 -> 
D33: =$D$141 -> Year 2: | E33: =$E$141 -> 0 | F33: =$I$141 ->  | I33: 0 | N33: 0 | P33: 0 | R33: 0 | S33: 0 | U33: 0 | V33: 0
D34: =$D$142 -> Year 3: | E34: =$E$142 -> 0 | F34: =$I$142 ->  | I34: 0 | N34: 0 | P34: 0 | R34: 0 | S34: 0 | U34: 0 | V34: 0
B35: Person 6
D36: =$D$140 -> Year 1: | E36: =$E$140 -> 1900 | F36: =$I$140 ->  | I36: =SUM(G36:H36) -> 0 | N36: =L36/12*K36*M36 -> 0 | P36: =(IFERROR(I36/L36,0)) -> 0 | R36: =(IFERROR((Q36/L36)*12,0)) -> 0 | S36: =P36*Q36 -> 0 | U36: =S36-T36 -> 0 | V36: =IF(T36<=S36,T36,S36) -> 0 | W36: =V36/$C$9 -> 
D37: =$D$141 -> Year 2: | E37: =$E$141 -> 0 | F37: =$I$141 ->  | I37: 0 | N37: 0 | P37: 0 | R37: 0 | S37: 0 | U37: 0 | V37: 0
D38: =$D$142 -> Year 3: | E38: =$E$142 -> 0 | F38: =$I$142 ->  | I38: 0 | N38: 0 | P38: 0 | R38: 0 | S38: 0 | U38: 0 | V38: 0
B39: Person 7
D40: =$D$140 -> Year 1: | E40: =$E$140 -> 1900 | F40: =$I$140 ->  | I40: =SUM(G40:H40) -> 0 | N40: =L40/12*K40*M40 -> 0 | P40: =(IFERROR(I40/L40,0)) -> 0 | R40: =(IFERROR((Q40/L40)*12,0)) -> 0 | S40: =P40*Q40 -> 0 | U40: =S40-T40 -> 0 | V40: =IF(T40<=S40,T40,S40) -> 0 | W40: =V40/$C$9 -> 
D41: =$D$141 -> Year 2: | E41: =$E$141 -> 0 | F41: =$I$141 ->  | I41: 0 | N41: 0 | P41: 0 | R41: 0 | S41: 0 | U41: 0 | V41: 0
D42: =$D$142 -> Year 3: | E42: =$E$142 -> 0 | F42: =$I$142 ->  | I42: 0 | N42: 0 | P42: 0 | R42: 0 | S42: 0 | U42: 0 | V42: 0
B43: Person 8
D44: =$D$140 -> Year 1: | E44: =$E$140 -> 1900 | F44: =$I$140 ->  | I44: =SUM(G44:H44) -> 0 | N44: =L44/12*K44*M44 -> 0 | P44: =(IFERROR(I44/L44,0)) -> 0 | R44: =(IFERROR((Q44/L44)*12,0)) -> 0 | S44: =P44*Q44 -> 0 | U44: =S44-T44 -> 0 | V44: =IF(T44<=S44,T44,S44) -> 0 | W44: =V44/$C$9 -> 
D45: =$D$141 -> Year 2: | E45: =$E$141 -> 0 | F45: =$I$141 ->  | I45: 0 | N45: 0 | P45: 0 | R45: 0 | S45: 0 | U45: 0 | V45: 0
D46: =$D$142 -> Year 3: | E46: =$E$142 -> 0 | F46: =$I$142 ->  | I46: 0 | N46: 0 | P46: 0 | R46: 0 | S46: 0 | U46: 0 | V46: 0
B47: Person 9
D48: =$D$140 -> Year 1: | E48: =$E$140 -> 1900 | F48: =$I$140 ->  | I48: =SUM(G48:H48) -> 0 | N48: =L48/12*K48*M48 -> 0 | P48: =(IFERROR(I48/L48,0)) -> 0 | R48: =(IFERROR((Q48/L48)*12,0)) -> 0 | S48: =P48*Q48 -> 0 | U48: =S48-T48 -> 0 | V48: =IF(T48<=S48,T48,S48) -> 0 | W48: =V48/$C$9 -> 
D49: =$D$141 -> Year 2: | E49: =$E$141 -> 0 | F49: =$I$141 ->  | I49: 0 | N49: 0 | P49: 0 | R49: 0 | S49: 0 | U49: 0 | V49: 0
D50: =$D$142 -> Year 3: | E50: =$E$142 -> 0 | F50: =$I$142 ->  | I50: 0 | N50: 0 | P50: 0 | R50: 0 | S50: 0 | U50: 0 | V50: 0
B51: Person 10
D52: =$D$140 -> Year 1: | E52: =$E$140 -> 1900 | F52: =$I$140 ->  | I52: =SUM(G52:H52) -> 0 | N52: =L52/12*K52*M52 -> 0 | P52: =(IFERROR(I52/L52,0)) -> 0 | R52: =(IFERROR((Q52/L52)*12,0)) -> 0 | S52: =P52*Q52 -> 0 | U52: =S52-T52 -> 0 | V52: =IF(T52<=S52,T52,S52) -> 0 | W52: =V52/$C$9 -> 
D53: =$D$141 -> Year 2: | E53: =$E$141 -> 0 | F53: =$I$141 ->  | I53: 0 | N53: 0 | P53: 0 | R53: 0 | S53: 0 | U53: 0 | V53: 0
D54: =$D$142 -> Year 3: | E54: =$E$142 -> 0 | F54: =$I$142 ->  | I54: 0 | N54: 0 | P54: 0 | R54: 0 | S54: 0 | U54: 0 | V54: 0
B55: Person 11
D56: =$D$140 -> Year 1: | E56: =$E$140 -> 1900 | F56: =$I$140 ->  | I56: =SUM(G56:H56) -> 0 | N56: =L56/12*K56*M56 -> 0 | P56: =(IFERROR(I56/L56,0)) -> 0 | R56: =(IFERROR((Q56/L56)*12,0)) -> 0 | S56: =P56*Q56 -> 0 | U56: =S56-T56 -> 0 | V56: =IF(T56<=S56,T56,S56) -> 0 | W56: =V56/$C$9 -> 
D57: =$D$141 -> Year 2: | E57: =$E$141 -> 0 | F57: =$I$141 ->  | I57: 0 | N57: 0 | P57: 0 | R57: 0 | S57: 0 | U57: 0 | V57: 0
D58: =$D$142 -> Year 3: | E58: =$E$142 -> 0 | F58: =$I$142 ->  | I58: 0 | N58: 0 | P58: 0 | R58: 0 | S58: 0 | U58: 0 | V58: 0
B59: Person 12
D60: =$D$140 -> Year 1: | E60: =$E$140 -> 1900 | F60: =$I$140 ->  | I60: =SUM(G60:H60) -> 0 | N60: =L60/12*K60*M60 -> 0 | P60: =(IFERROR(I60/L60,0)) -> 0 | R60: =(IFERROR((Q60/L60)*12,0)) -> 0 | S60: =P60*Q60 -> 0 | U60: =S60-T60 -> 0 | V60: =IF(T60<=S60,T60,S60) -> 0 | W60: =V60/$C$9 -> 
D61: =$D$141 -> Year 2: | E61: =$E$141 -> 0 | F61: =$I$141 ->  | I61: 0 | N61: 0 | P61: 0 | R61: 0 | S61: 0 | U61: 0 | V61: 0
D62: =$D$142 -> Year 3: | E62: =$E$142 -> 0 | F62: =$I$142 ->  | I62: 0 | N62: 0 | P62: 0 | R62: 0 | S62: 0 | U62: 0 | V62: 0
B63: Person 13
D64: =$D$140 -> Year 1: | E64: =$E$140 -> 1900 | F64: =$I$140 ->  | I64: =SUM(G64:H64) -> 0 | N64: =L64/12*K64*M64 -> 0 | P64: =(IFERROR(I64/L64,0)) -> 0 | R64: =(IFERROR((Q64/L64)*12,0)) -> 0 | S64: =P64*Q64 -> 0 | U64: =S64-T64 -> 0 | V64: =IF(T64<=S64,T64,S64) -> 0 | W64: =V64/$C$9 -> 
D65: =$D$141 -> Year 2: | E65: =$E$141 -> 0 | F65: =$I$141 ->  | I65: 0 | N65: 0 | P65: 0 | R65: 0 | S65: 0 | U65: 0 | V65: 0
D66: =$D$142 -> Year 3: | E66: =$E$142 -> 0 | F66: =$I$142 ->  | I66: 0 | N66: 0 | P66: 0 | R66: 0 | S66: 0 | U66: 0 | V66: 0
B67: Person 14
D68: =$D$140 -> Year 1: | E68: =$E$140 -> 1900 | F68: =$I$140 ->  | I68: =SUM(G68:H68) -> 0 | N68: =L68/12*K68*M68 -> 0 | P68: =(IFERROR(I68/L68,0)) -> 0 | R68: =(IFERROR((Q68/L68)*12,0)) -> 0 | S68: =P68*Q68 -> 0 | U68: =S68-T68 -> 0 | V68: =IF(T68<=S68,T68,S68) -> 0 | W68: =V68/$C$9 -> 
D69: =$D$141 -> Year 2: | E69: =$E$141 -> 0 | F69: =$I$141 ->  | I69: 0 | N69: 0 | P69: 0 | R69: 0 | S69: 0 | U69: 0 | V69: 0
D70: =$D$142 -> Year 3: | E70: =$E$142 -> 0 | F70: =$I$142 ->  | I70: 0 | N70: 0 | P70: 0 | R70: 0 | S70: 0 | U70: 0 | V70: 0
B71: Person 15
D72: =$D$140 -> Year 1: | E72: =$E$140 -> 1900 | F72: =$I$140 ->  | I72: =SUM(G72:H72) -> 0 | N72: =L72/12*K72*M72 -> 0 | P72: =(IFERROR(I72/L72,0)) -> 0 | R72: =(IFERROR((Q72/L72)*12,0)) -> 0 | S72: =P72*Q72 -> 0 | U72: =S72-T72 -> 0 | V72: =IF(T72<=S72,T72,S72) -> 0 | W72: =V72/$C$9 -> 
D73: =$D$141 -> Year 2: | E73: =$E$141 -> 0 | F73: =$I$141 ->  | I73: 0 | N73: 0 | P73: 0 | R73: 0 | S73: 0 | U73: 0 | V73: 0
D74: =$D$142 -> Year 3: | E74: =$E$142 -> 0 | F74: =$I$142 ->  | I74: 0 | N74: 0 | P74: 0 | R74: 0 | S74: 0 | U74: 0 | V74: 0
B75: Person 16
D76: =$D$140 -> Year 1: | E76: =$E$140 -> 1900 | F76: =$I$140 ->  | I76: =SUM(G76:H76) -> 0 | N76: =L76/12*K76*M76 -> 0 | P76: =(IFERROR(I76/L76,0)) -> 0 | R76: =(IFERROR((Q76/L76)*12,0)) -> 0 | S76: =P76*Q76 -> 0 | U76: =S76-T76 -> 0 | V76: =IF(T76<=S76,T76,S76) -> 0 | W76: =V76/$C$9 -> 
D77: =$D$141 -> Year 2: | E77: =$E$141 -> 0 | F77: =$I$141 ->  | I77: 0 | N77: 0 | P77: 0 | R77: 0 | S77: 0 | U77: 0 | V77: 0
D78: =$D$142 -> Year 3: | E78: =$E$142 -> 0 | F78: =$I$142 ->  | I78: 0 | N78: 0 | P78: 0 | R78: 0 | S78: 0 | U78: 0 | V78: 0
B79: Person 17
D80: =$D$140 -> Year 1: | E80: =$E$140 -> 1900 | F80: =$I$140 ->  | I80: =SUM(G80:H80) -> 0 | N80: =L80/12*K80*M80 -> 0 | P80: =(IFERROR(I80/L80,0)) -> 0 | R80: =(IFERROR((Q80/L80)*12,0)) -> 0 | S80: =P80*Q80 -> 0 | U80: =S80-T80 -> 0 | V80: =IF(T80<=S80,T80,S80) -> 0 | W80: =V80/$C$9 -> 
D81: =$D$141 -> Year 2: | E81: =$E$141 -> 0 | F81: =$I$141 ->  | I81: 0 | N81: 0 | P81: 0 | R81: 0 | S81: 0 | U81: 0 | V81: 0
D82: =$D$142 -> Year 3: | E82: =$E$142 -> 0 | F82: =$I$142 ->  | I82: 0 | N82: 0 | P82: 0 | R82: 0 | S82: 0 | U82: 0 | V82: 0
B83: Person 18
D84: =$D$140 -> Year 1: | E84: =$E$140 -> 1900 | F84: =$I$140 ->  | I84: =SUM(G84:H84) -> 0 | N84: =L84/12*K84*M84 -> 0 | P84: =(IFERROR(I84/L84,0)) -> 0 | R84: =(IFERROR((Q84/L84)*12,0)) -> 0 | S84: =P84*Q84 -> 0 | U84: =S84-T84 -> 0 | V84: =IF(T84<=S84,T84,S84) -> 0 | W84: =V84/$C$9 -> 
D85: =$D$141 -> Year 2: | E85: =$E$141 -> 0 | F85: =$I$141 ->  | I85: 0 | N85: 0 | P85: 0 | R85: 0 | S85: 0 | U85: 0 | V85: 0
D86: =$D$142 -> Year 3: | E86: =$E$142 -> 0 | F86: =$I$142 ->  | I86: 0 | N86: 0 | P86: 0 | R86: 0 | S86: 0 | U86: 0 | V86: 0
B87: Person 19
D88: =$D$140 -> Year 1: | E88: =$E$140 -> 1900 | F88: =$I$140 ->  | I88: =SUM(G88:H88) -> 0 | N88: =L88/12*K88*M88 -> 0 | P88: =(IFERROR(I88/L88,0)) -> 0 | R88: =(IFERROR((Q88/L88)*12,0)) -> 0 | S88: =P88*Q88 -> 0 | U88: =S88-T88 -> 0 | V88: =IF(T88<=S88,T88,S88) -> 0 | W88: =V88/$C$9 -> 
D89: =$D$141 -> Year 2: | E89: =$E$141 -> 0 | F89: =$I$141 ->  | I89: 0 | N89: 0 | P89: 0 | R89: 0 | S89: 0 | U89: 0 | V89: 0
D90: =$D$142 -> Year 3: | E90: =$E$142 -> 0 | F90: =$I$142 ->  | I90: 0 | N90: 0 | P90: 0 | R90: 0 | S90: 0 | U90: 0 | V90: 0
B91: Person 20
D92: =$D$140 -> Year 1: | E92: =$E$140 -> 1900 | F92: =$I$140 ->  | I92: =SUM(G92:H92) -> 0 | N92: =L92/12*K92*M92 -> 0 | P92: =(IFERROR(I92/L92,0)) -> 0 | R92: =(IFERROR((Q92/L92)*12,0)) -> 0 | S92: =P92*Q92 -> 0 | U92: =S92-T92 -> 0 | V92: =IF(T92<=S92,T92,S92) -> 0 | W92: =V92/$C$9 -> 
D93: =$D$141 -> Year 2: | E93: =$E$141 -> 0 | F93: =$I$141 ->  | I93: 0 | N93: 0 | P93: 0 | R93: 0 | S93: 0 | U93: 0 | V93: 0
D94: =$D$142 -> Year 3: | E94: =$E$142 -> 0 | F94: =$I$142 ->  | I94: 0 | N94: 0 | P94: 0 | R94: 0 | S94: 0 | U94: 0 | V94: 0
B95: Person 21
D96: =$D$140 -> Year 1: | E96: =$E$140 -> 1900 | F96: =$I$140 ->  | I96: =SUM(G96:H96) -> 0 | N96: =L96/12*K96*M96 -> 0 | P96: =(IFERROR(I96/L96,0)) -> 0 | R96: =(IFERROR((Q96/L96)*12,0)) -> 0 | S96: =P96*Q96 -> 0 | U96: =S96-T96 -> 0 | V96: =IF(T96<=S96,T96,S96) -> 0 | W96: =V96/$C$9 -> 
D97: =$D$141 -> Year 2: | E97: =$E$141 -> 0 | F97: =$I$141 ->  | I97: 0 | N97: 0 | P97: 0 | R97: 0 | S97: 0 | U97: 0 | V97: 0
D98: =$D$142 -> Year 3: | E98: =$E$142 -> 0 | F98: =$I$142 ->  | I98: 0 | N98: 0 | P98: 0 | R98: 0 | S98: 0 | U98: 0 | V98: 0
B99: Person 22
D100: =$D$140 -> Year 1: | E100: =$E$140 -> 1900 | F100: =$I$140 ->  | I100: =SUM(G100:H100) -> 0 | N100: =L100/12*K100*M100 -> 0 | P100: =(IFERROR(I100/L100,0)) -> 0 | R100: =(IFERROR((Q100/L100)*12,0)) -> 0 | S100: =P100*Q100 -> 0 | U100: =S100-T100 -> 0 | V100: =IF(T100<=S100,T100,S100) -> 0 | W100: =V100/$C$9 -> 
D101: =$D$141 -> Year 2: | E101: =$E$141 -> 0 | F101: =$I$141 ->  | I101: =SUM(G101:H101) -> 0 | N101: =L101/12*K101*M101 -> 0 | P101: 0 | R101: 0 | S101: =P101*Q101 -> 0 | U101: =S101-T101 -> 0 | V101: =IF(T101<=S101,T101,S101) -> 0 | W101: =V101/$C$9 -> 
D102: =$D$142 -> Year 3: | E102: =$E$142 -> 0 | F102: =$I$142 ->  | I102: =SUM(G102:H102) -> 0 | N102: =L102/12*K102*M102 -> 0 | P102: 0 | R102: 0 | S102: =P102*Q102 -> 0 | U102: =S102-T102 -> 0 | V102: =IF(T102<=S102,T102,S102) -> 0 | W102: =V102/$C$9 -> 
B103: Person 23
D104: =$D$140 -> Year 1: | E104: =$E$140 -> 1900 | F104: =$I$140 ->  | I104: =SUM(G104:H104) -> 0 | N104: =L104/12*K104*M104 -> 0 | P104: =(IFERROR(I104/L104,0)) -> 0 | R104: =(IFERROR((Q104/L104)*12,0)) -> 0 | S104: =P104*Q104 -> 0 | U104: =S104-T104 -> 0 | V104: =IF(T104<=S104,T104,S104) -> 0 | W104: =V104/$C$9 -> 
D105: =$D$141 -> Year 2: | E105: =$E$141 -> 0 | F105: =$I$141 ->  | I105: =SUM(G105:H105) -> 0 | N105: =L105/12*K105*M105 -> 0 | P105: 0 | R105: 0 | S105: =P105*Q105 -> 0 | U105: =S105-T105 -> 0 | V105: =IF(T105<=S105,T105,S105) -> 0 | W105: =V105/$C$9 -> 
D106: =$D$142 -> Year 3: | E106: =$E$142 -> 0 | F106: =$I$142 ->  | I106: =SUM(G106:H106) -> 0 | N106: =L106/12*K106*M106 -> 0 | P106: 0 | R106: 0 | S106: =P106*Q106 -> 0 | U106: =S106-T106 -> 0 | V106: =IF(T106<=S106,T106,S106) -> 0 | W106: =V106/$C$9 -> 
B107: Person 24
D108: =$D$140 -> Year 1: | E108: =$E$140 -> 1900 | F108: =$I$140 ->  | I108: =SUM(G108:H108) -> 0 | N108: =L108/12*K108*M108 -> 0 | P108: =(IFERROR(I108/L108,0)) -> 0 | R108: =(IFERROR((Q108/L108)*12,0)) -> 0 | S108: =P108*Q108 -> 0 | U108: =S108-T108 -> 0 | V108: =IF(T108<=S108,T108,S108) -> 0 | W108: =V108/$C$9 -> 
D109: =$D$141 -> Year 2: | E109: =$E$141 -> 0 | F109: =$I$141 ->  | I109: =SUM(G109:H109) -> 0 | N109: =L109/12*K109*M109 -> 0 | P109: =(IFERROR(I109/L109,0)) -> 0 | R109: 0 | S109: =P109*Q109 -> 0 | U109: =S109-T109 -> 0 | V109: =IF(T109<=S109,T109,S109) -> 0 | W109: =V109/$C$9 -> 
D110: =$D$142 -> Year 3: | E110: =$E$142 -> 0 | F110: =$I$142 ->  | I110: =SUM(G110:H110) -> 0 | N110: =L110/12*K110*M110 -> 0 | P110: 0 | R110: 0 | S110: =P110*Q110 -> 0 | U110: =S110-T110 -> 0 | V110: =IF(T110<=S110,T110,S110) -> 0 | W110: =V110/$C$9 -> 
B111: Person 25
D112: =$D$140 -> Year 1: | E112: =$E$140 -> 1900 | F112: =$I$140 ->  | I112: =SUM(G112:H112) -> 0 | N112: =L112/12*K112*M112 -> 0 | P112: =(IFERROR(I112/L112,0)) -> 0 | R112: =(IFERROR((Q112/L112)*12,0)) -> 0 | S112: =P112*Q112 -> 0 | U112: =S112-T112 -> 0 | V112: =IF(T112<=S112,T112,S112) -> 0 | W112: =V112/$C$9 -> 
D113: =$D$141 -> Year 2: | E113: =$E$141 -> 0 | F113: =$I$141 ->  | I113: =SUM(G113:H113) -> 0 | N113: =L113/12*K113*M113 -> 0 | P113: 0 | R113: 0 | S113: =P113*Q113 -> 0 | U113: =S113-T113 -> 0 | V113: =IF(T113<=S113,T113,S113) -> 0 | W113: =V113/$C$9 -> 
D114: =$D$142 -> Year 3: | E114: =$E$142 -> 0 | F114: =$I$142 ->  | I114: =SUM(G114:H114) -> 0 | N114: =L114/12*K114*M114 -> 0 | P114: 0 | R114: 0 | S114: =P114*Q114 -> 0 | U114: =S114-T114 -> 0 | V114: =IF(T114<=S114,T114,S114) -> 0 | W114: =V114/$C$9 -> 
B115: Person 26
D116: =$D$140 -> Year 1: | E116: =$E$140 -> 1900 | F116: =$I$140 ->  | I116: =SUM(G116:H116) -> 0 | N116: =L116/12*K116*M116 -> 0 | P116: =(IFERROR(I116/L116,0)) -> 0 | R116: =(IFERROR((Q116/L116)*12,0)) -> 0 | S116: =P116*Q116 -> 0 | U116: =S116-T116 -> 0 | V116: =IF(T116<=S116,T116,S116) -> 0 | W116: =V116/$C$9 -> 
D117: =$D$141 -> Year 2: | E117: =$E$141 -> 0 | F117: =$I$141 ->  | I117: =SUM(G117:H117) -> 0 | N117: =L117/12*K117*M117 -> 0 | P117: 0 | R117: 0 | S117: =P117*Q117 -> 0 | U117: =S117-T117 -> 0 | V117: =IF(T117<=S117,T117,S117) -> 0 | W117: =V117/$C$9 -> 
D118: =$D$142 -> Year 3: | E118: =$E$142 -> 0 | F118: =$I$142 ->  | I118: =SUM(G118:H118) -> 0 | N118: =L118/12*K118*M118 -> 0 | P118: 0 | R118: 0 | S118: =P118*Q118 -> 0 | U118: =S118-T118 -> 0 | V118: =IF(T118<=S118,T118,S118) -> 0 | W118: =V118/$C$9 -> 
B119: Person 27
D120: =$D$140 -> Year 1: | E120: =$E$140 -> 1900 | F120: =$I$140 ->  | I120: =SUM(G120:H120) -> 0 | N120: =L120/12*K120*M120 -> 0 | P120: =(IFERROR(I120/L120,0)) -> 0 | R120: =(IFERROR((Q120/L120)*12,0)) -> 0 | S120: =P120*Q120 -> 0 | U120: =S120-T120 -> 0 | V120: =IF(T120<=S120,T120,S120) -> 0 | W120: =V120/$C$9 -> 
D121: =$D$141 -> Year 2: | E121: =$E$141 -> 0 | F121: =$I$141 ->  | I121: =SUM(G121:H121) -> 0 | N121: =L121/12*K121*M121 -> 0 | P121: 0 | R121: 0 | S121: =P121*Q121 -> 0 | U121: =S121-T121 -> 0 | V121: =IF(T121<=S121,T121,S121) -> 0 | W121: =V121/$C$9 -> 
D122: =$D$142 -> Year 3: | E122: =$E$142 -> 0 | F122: =$I$142 ->  | I122: =SUM(G122:H122) -> 0 | N122: =L122/12*K122*M122 -> 0 | P122: 0 | R122: 0 | S122: =P122*Q122 -> 0 | U122: =S122-T122 -> 0 | V122: =IF(T122<=S122,T122,S122) -> 0 | W122: =V122/$C$9 -> 
B123: Person 28
D124: =$D$140 -> Year 1: | E124: =$E$140 -> 1900 | F124: =$I$140 ->  | I124: =SUM(G124:H124) -> 0 | N124: =L124/12*K124*M124 -> 0 | P124: =(IFERROR(I124/L124,0)) -> 0 | R124: =(IFERROR((Q124/L124)*12,0)) -> 0 | S124: =P124*Q124 -> 0 | U124: =S124-T124 -> 0 | V124: =IF(T124<=S124,T124,S124) -> 0 | W124: =V124/$C$9 -> 
D125: =$D$141 -> Year 2: | E125: =$E$141 -> 0 | F125: =$I$141 ->  | I125: =SUM(G125:H125) -> 0 | N125: =L125/12*K125*M125 -> 0 | P125: 0 | R125: 0 | S125: =P125*Q125 -> 0 | U125: =S125-T125 -> 0 | V125: =IF(T125<=S125,T125,S125) -> 0 | W125: =V125/$C$9 -> 
D126: =$D$142 -> Year 3: | E126: =$E$142 -> 0 | F126: =$I$142 ->  | I126: =SUM(G126:H126) -> 0 | N126: =L126/12*K126*M126 -> 0 | P126: 0 | R126: 0 | S126: =P126*Q126 -> 0 | U126: =S126-T126 -> 0 | V126: =IF(T126<=S126,T126,S126) -> 0 | W126: =V126/$C$9 -> 
B127: Person 29
D128: =$D$140 -> Year 1: | E128: =$E$140 -> 1900 | F128: =$I$140 ->  | I128: =SUM(G128:H128) -> 0 | N128: =L128/12*K128*M128 -> 0 | P128: =(IFERROR(I128/L128,0)) -> 0 | R128: =(IFERROR((Q128/L128)*12,0)) -> 0 | S128: =P128*Q128 -> 0 | U128: =S128-T128 -> 0 | V128: =IF(T128<=S128,T128,S128) -> 0 | W128: =V128/$C$9 -> 
D129: =$D$141 -> Year 2: | E129: =$E$141 -> 0 | F129: =$I$141 ->  | I129: =SUM(G129:H129) -> 0 | N129: =L129/12*K129*M129 -> 0 | P129: 0 | R129: 0 | S129: =P129*Q129 -> 0 | U129: =S129-T129 -> 0 | V129: =IF(T129<=S129,T129,S129) -> 0 | W129: =V129/$C$9 -> 
D130: =$D$142 -> Year 3: | E130: =$E$142 -> 0 | F130: =$I$142 ->  | I130: =SUM(G130:H130) -> 0 | N130: =L130/12*K130*M130 -> 0 | P130: 0 | R130: 0 | S130: =P130*Q130 -> 0 | U130: =S130-T130 -> 0 | V130: =IF(T130<=S130,T130,S130) -> 0 | W130: =V130/$C$9 -> 
B131: Person 30
D132: =$D$140 -> Year 1: | E132: =$E$140 -> 1900 | F132: =$I$140 ->  | I132: =SUM(G132:H132) -> 0 | N132: =L132/12*K132*M132 -> 0 | P132: =(IFERROR(I132/L132,0)) -> 0 | R132: =(IFERROR((Q132/L132)*12,0)) -> 0 | S132: =P132*Q132 -> 0 | U132: =S132-T132 -> 0 | V132: =IF(T132<=S132,T132,S132) -> 0 | W132: =V132/$C$9 -> 
D133: =$D$141 -> Year 2: | E133: =$E$141 -> 0 | F133: =$I$141 ->  | I133: =SUM(G133:H133) -> 0 | N133: =L133/12*K133*M133 -> 0 | P133: 0 | R133: 0 | S133: =P133*Q133 -> 0 | U133: =S133-T133 -> 0 | V133: =IF(T133<=S133,T133,S133) -> 0 | W133: =V133/$C$9 -> 
D134: =$D$142 -> Year 3: | E134: =$E$142 -> 0 | F134: =$I$142 ->  | I134: =SUM(G134:H134) -> 0 | N134: =L134/12*K134*M134 -> 0 | P134: 0 | R134: 0 | S134: =P134*Q134 -> 0 | U134: =S134-T134 -> 0 | V134: =IF(T134<=S134,T134,S134) -> 0 | W134: =V134/$C$9 -> 
W135: =SUM(W15:W134) -> 
D139: Number of reporting months per year this reporting period
D140: Year 1: | E140: =YEAR('Ekonomisk projektbeskrivning'!E24) -> 1900 | F140: =IF(MONTH(H140)-MONTH(G140)=0,0,MONTH(H140)-MONTH(G140)+1) -> 0 | G140: ='Ekonomisk projektbeskrivning'!E24 -> 00:00:00 | H140: =IF(YEAR('Ekonomisk projektbeskrivning'!F24)='Personnel costs RP4'!E140,'Ekonomisk projektbeskrivning'!F24,CONCATENATE(E140&"-12-31")) -> 0 | I140: =IF(F140<>0,IF(F140<12,IF(MONTH(G140)>(12-F140),E140,E140-1),E140),"") -> 
D141: Year 2: | E141: =IF(YEAR('Ekonomisk projektbeskrivning'!F24)>=('Personnel costs RP4'!E140+1),('Personnel costs RP4'!E140+1),0) -> 0 | F141: =IF(E141=0,0,IF(MONTH(G141)=1,IF(MONTH(H141)=1,1,(MONTH(H141)-MONTH(G141)+1)))) -> 0 | G141: =IF(E140=YEAR('Ekonomisk projektbeskrivning'!F24),0,CONCATENATE(E141&"-01-01")) -> 0 | H141: =IF(E140+1=YEAR('Ekonomisk projektbeskrivning'!F24),'Ekonomisk projektbeskrivning'!F24,IF(E140+1>YEAR('Ekonomisk projektbeskrivning'!F24),0,CONCATENATE(E141&"-12-31"))) -> 0
D142: Year 3: | E142: =IF(YEAR('Ekonomisk projektbeskrivning'!F24)>=('Personnel costs RP4'!E140+2),('Personnel costs RP4'!E141+1),0) -> 0 | F142: =IF(E142=0,0,IF(MONTH(G142)=1,IF(MONTH(H142)=1,1,(MONTH(H142)-MONTH(G142)+1)))) -> 0 | G142: =IF(E140+1>=YEAR('Ekonomisk projektbeskrivning'!F24),0,CONCATENATE(E140+2&"-01-01")) -> 0 | H142: =IF(E140+2=YEAR('Ekonomisk projektbeskrivning'!F24),'Ekonomisk projektbeskrivning'!F24,IF(E140+2>YEAR('Ekonomisk projektbeskrivning'!F24),0,CONCATENATE(E142&"-12-31"))) -> 0 | I142: =IF(F142<>0,IF(F142<12,IF(MONTH(G142)>(12-F142),E142,E142-1),E142),"") -> 

Sheet Project Transactions RP4
A1: sql SELECT dim_1, dim_2, voucher_no, period, trans_date, VERIFIKATIONER.account, VERIFIKATIONER.description AS VERTEXT, amount, KONTO.description AS KONTONAMN
A2: sql FROM agltransact AS VERIFIKATIONER
A3: sql FULL JOIN aglaccounts as KONTO
A4: sql ON VERIFIKATIONER.account = KONTO.account
A5: =C5 -> sql WHERE dim_1='0' | C5: =CONCATENATE("sql WHERE dim_1='"&E15&"'") -> sql WHERE dim_1='0'
A6: =C6 -> sql AND dim_2 LIKE '0%' | C6: =CONCATENATE("sql AND dim_2 LIKE '"&E16&"%'") -> sql AND dim_2 LIKE '0%'
A7: =C7 -> sql AND period >='' | C7: =CONCATENATE("sql AND period >='"&E17&"'") -> sql AND period >=''
A8: =C8 -> sql AND period <='' | C8: =CONCATENATE("sql AND period <='"&E18&"'") -> sql AND period <=''
A9: sql AND KONTO.client='BO'
A10: query
A11: sort account
A12: columns | B12: code account | C12: text dim_1 | D12: text dim_2 | E12: text voucher_no | F12: text Period | G12: trans_date | H12: text account | I12: KONTONAMN | J12: VERTEXT | K12: amount
C13: VERIFIKATIONSLISTA - RP4
C15: Orgenhet: | E15: ='Project Transactions RP1'!E15 -> 0
C16: Akt/Proj: | E16: ='Project Transactions RP1'!E16 -> 0 | F16: Rapporten söker automatiskt ut med * utan att detta anges.
C17: Från period: | F17: OBS: året börjar med period 00
C18: Till period: | F18: OBS: året slutar med period 15
C19: Reporting period: | E19: 4
C21: Orgenhet | D21: Akt/proj | E21: Vernr | F21: Period | G21: Ver.datum | H21: Konto | I21: Konto(T) | J21: Verifikationstext | K21: Belopp | L21: Korrigering belopp (-) | M21: Beskrivning | N21: RR (Om reseräkning) | P21: Kostnadsslag i Financial statement (välj i listan)
A22: detail | B22: 4* | G22: 00:00:00 | I22: 0 | J22: 0 | K22: 0 | N22: =IF(MID($J22,42,6)="RESEID",MID($J22,49,11),"") -> 
A23: detail | B23: 51* | G23: 00:00:00 | I23: 0 | J23: 0 | K23: 0
A24: detail | B24: 52* | G24: 00:00:00 | I24: 0 | J24: 0 | K24: 0
A25: detail | B25: 53* | G25: 00:00:00 | I25: 0 | J25: 0 | K25: 0
A26: detail | B26: 54* | G26: 00:00:00 | I26: 0 | J26: 0 | K26: 0
A27: detail | B27: 55* | G27: 00:00:00 | I27: 0 | J27: 0 | K27: 0
A28: detail | B28: 56* | G28: 00:00:00 | I28: 0 | J28: 0 | K28: 0
A29: detail | B29: 57* | G29: 00:00:00 | I29: 0 | J29: 0 | K29: 0
A30: detail | B30: 69* | G30: 00:00:00 | I30: 0 | J30: 0 | K30: 0
A31: detail | B31: 94* | G31: 00:00:00 | I31: 0 | J31: 0 | K31: 0
A32: detail | B32: 95* | G32: 00:00:00 | I32: 0 | J32: 0 | K32: 0
A33: detail | B33: 96* | G33: 00:00:00 | I33: 0 | J33: 0 | K33: 0
A34: detail | B34: 97* | G34: 00:00:00 | I34: 0 | J34: 0 | K34: 0
A35: detail | B35: 9941 | G35: 00:00:00 | I35: 0 | J35: 0 | K35: 0

Sheet Direct costs RP4
A1: DIRECT COSTS - RP4
C2: Project: | D2: ='Ekonomisk projektbeskrivning'!D5 -> 0
C3: GA: | D3: ='Ekonomisk projektbeskrivning'!D17 -> 0
C4: Exchange rate: | D4: ='Ekonomisk projektbeskrivning'!B24 -> 0 | I4: Reporting period: 4
A6: A.1 Employees (or equivalent) | B6: Beskrivning | C6: RR-nr | D6: Bokfört belopp (SEK) | E6: Korrigering bokfört belopp (SEK) | F6: Belopp att redovisa (SEK) | G6: Belopp att redovisa (EUR) | H6: Vernr | I6: WP | J6: Kommentar
A11: A.2 Natural persons working under direct contract | B11: Beskrivning | C11: RR-nr | D11: Bokfört belopp (SEK) | E11: Korrigering bokfört belopp (SEK) | F11: Belopp att redovisa (SEK) | G11: Belopp att redovisa (EUR) | H11: Vernr | I11: WP | J11: Kommentar
A16: A.3 Seconded persons | B16: Beskrivning | C16: RR-nr | D16: Bokfört belopp (SEK) | E16: Korrigering bokfört belopp (SEK) | F16: Belopp att redovisa (SEK) | G16: Belopp att redovisa (EUR) | H16: Vernr | I16: WP | J16: Kommentar
A21: A.6 Personnel for providing access to research infrastructure | B21: Beskrivning | C21: RR-nr | D21: Bokfört belopp (SEK) | E21: Korrigering bokfört belopp (SEK) | F21: Belopp att redovisa (SEK) | G21: Belopp att redovisa (EUR) | H21: Vernr | I21: WP | J21: Kommentar
A26: B.1 Subcontracting | B26: Beskrivning | C26: RR-nr | D26: Bokfört belopp (SEK) | E26: Korrigering bokfört belopp (SEK) | F26: Belopp att redovisa (SEK) | G26: Belopp att redovisa (EUR) | H26: Vernr | I26: WP | J26: Kommentar
A31: D.1 Travel | B31: Beskrivning | C31: RR-nr | D31: Bokfört belopp (SEK) | E31: Korrigering bokfört belopp (SEK) | F31: Belopp att redovisa (SEK) | G31: Belopp att redovisa (EUR) | H31: Vernr | I31: WP | J31: Kommentar
A36: D.2 Equipment | B36: Beskrivning | C36: RR-nr | D36: Bokfört belopp (SEK) | E36: Korrigering bokfört belopp (SEK) | F36: Belopp att redovisa (SEK) | G36: Belopp att redovisa (EUR) | H36: Vernr | I36: WP | J36: Kommentar
A41: D.3 Other goods and services | B41: Beskrivning | C41: RR-nr | D41: Bokfört belopp (SEK) | E41: Korrigering bokfört belopp (SEK) | F41: Belopp att redovisa (SEK) | G41: Belopp att redovisa (EUR) | H41: Vernr | I41: WP | J41: Kommentar
A46: D.5 Costs for internally invoiced goods and services | B46: Beskrivning | C46: RR-nr | D46: Bokfört belopp (SEK) | E46: Korrigering bokfört belopp (SEK) | F46: Belopp att redovisa (SEK) | G46: Belopp att redovisa (EUR) | H46: Vernr | I46: WP | J46: Kommentar

Sheet Financial Statement RP4
A1: FINANCIAL STATEMENT - RP4
A3: Project: | B3: ='Ekonomisk projektbeskrivning'!D5 -> 0
A4: GA: | B4: ='Ekonomisk projektbeskrivning'!D17 -> 0
A5: Reporting period: | B5: 4
A8: Cost Category | C8: Total EUR
A9: a) Direct personnel costs declared as actual costs | C9: 0
A10: b) Direct personnel costs declared as unit costs (average costs)
A11: d) Direct costs of subcontracting | C11: 0
A12: e) Direct costs of providing financial support to third parties
A13: f) Other direct costs | C13: 0
A14: h) Indirect costs (= 0.25 * (a + b + f - o)) | C14: =0.25*(SUM(CostCategory_A_RP4 + CostCategory_D_RP4 + CostCategory_F_RP4 - CostsInKindNotUsedInPremises_RP4)) -> 0
A15: j) Total costs (= a + b + d + e + f + h) | C15: =SUM(C9:C14) -> 0
A16: k) Receipts
A17: m) Maximum EU-contribution (100%) | C17: =((C15-C16)*100%) -> 0
A18: n) Requested EU-contribution
A21: o) Use of 'costs of in-kind contributions not used on premises'?

Sheet Adjustments RP4
A1: ADJUSTMENTS OF DIRECT COSTS - RP4
B2: Project: | C2: ='Ekonomisk projektbeskrivning'!D5 -> 0
B3: GA: | C3: ='Ekonomisk projektbeskrivning'!D17 -> 0
B4: Exchange rate: | C4: ='Ekonomisk projektbeskrivning'!B24 -> 0 | G4: Reporting period: 4
A6: A.1 Employees (or equivalent) | B6: Beskrivning | C6: RR (Om reseräkning) | D6: Belopp | E6: EUR | F6: Vernr | G6: WP | H6: Kommentar
E7: =IFERROR(D7/$C$4,"") -> 
E8: =IFERROR(D8/$C$4,"") -> 
E9: =IFERROR(D9/$C$4,"") -> 
J10: Inserted row
D11: =SUM(D7:D10) -> 0 | E11: =SUM(E7:E10) -> 0
A13: A.2 Natural persons working under direct contract | B13: Beskrivning | C13: RR (Om reseräkning) | D13: Belopp | E13: EUR | F13: Vernr | G13: WP | H13: Kommentar
E14: =IFERROR(D14/$C$4,"") -> 
E15: =IFERROR(D15/$C$4,"") -> 
E16: =IFERROR(D16/$C$4,"") -> 
J17: Inserted row
D18: =SUM(D14:D17) -> 0 | E18: =SUM(E14:E17) -> 0
A20: A.3 Seconded persons | B20: Beskrivning | C20: RR (Om reseräkning) | D20: Belopp | E20: EUR | F20: Vernr | G20: WP | H20: Kommentar
E21: =IFERROR(D21/$C$4,"") -> 
E22: =IFERROR(D22/$C$4,"") -> 
E23: =IFERROR(D23/$C$4,"") -> 
D25: =SUM(D21:D24) -> 0 | E25: =SUM(E21:E24) -> 0
A27: A.6 Personnel for providing access to research infrastructure | B27: Beskrivning | C27: RR (Om reseräkning) | D27: Belopp | E27: EUR | F27: Vernr | G27: WP | H27: Kommentar
E28: =IFERROR(D28/$C$4,"") -> 
E29: =IFERROR(D29/$C$4,"") -> 
E30: =IFERROR(D30/$C$4,"") -> 
J31: Inserted row
D32: =SUM(D28:D31) -> 0 | E32: =SUM(E28:E31) -> 0
A34: B.1 Subcontracting | B34: Beskrivning | C34: RR (Om reseräkning) | D34: Belopp | E34: EUR | F34: Vernr | G34: WP | H34: Kommentar
E35: =IFERROR(D35/$C$4,"") -> 
E36: =IFERROR(D36/$C$4,"") -> 
E37: =IFERROR(D37/$C$4,"") -> 
J38: Inserted row
D39: =SUM(D35:D38) -> 0 | E39: =SUM(E35:E38) -> 0
A41: D.1 Travel | B41: Beskrivning | C41: RR (Om reseräkning) | D41: Belopp | E41: EUR | F41: Vernr | G41: WP | H41: Kommentar
E42: =IFERROR(D42/$C$4,"") -> 
E43: =IFERROR(D43/$C$4,"") -> 
E44: =IFERROR(D44/$C$4,"") -> 
J45: Inserted row
D46: =SUM(D42:D45) -> 0 | E46: =SUM(E42:E45) -> 0
A48: D.2 Equipment | B48: Beskrivning | C48: RR (Om reseräkning) | D48: Belopp | E48: EUR | F48: Vernr | G48: WP | H48: Kommentar
E49: =IFERROR(D49/$C$4,"") -> 
E50: =IFERROR(D50/$C$4,"") -> 
E51: =IFERROR(D51/$C$4,"") -> 
J52: Inserted row
D53: =SUM(D49:D52) -> 0 | E53: =SUM(E49:E52) -> 0
A55: D.3 Other goods and services | B55: Beskrivning | C55: RR (Om reseräkning) | D55: Belopp | E55: EUR | F55: Vernr | G55: WP | H55: Kommentar
E56: =IFERROR(D56/$C$4,"") -> 
E57: =IFERROR(D57/$C$4,"") -> 
E58: =IFERROR(D58/$C$4,"") -> 
J59: Inserted row
D60: =SUM(D56:D59) -> 0 | E60: =SUM(E56:E59) -> 0
A62: D.5 Costs for internally invoiced goods and services | B62: Beskrivning | C62: RR (Om reseräkning) | D62: Belopp | E62: EUR | F62: Vernr | G62: WP | H62: Kommentar
E63: =IFERROR(D63/$C$4,"") -> 
E64: =IFERROR(D64/$C$4,"") -> 
E65: =IFERROR(D65/$C$4,"") -> 
J66: Inserted row
D67: =SUM(D63:D66) -> 0 | E67: =SUM(E63:E66) -> 0
A71: FINANCIAL STATEMENT (ADJUSTMENTS) - RP4
A73: Cost Category | C73: Total EUR
A74: a) Direct personnel costs declared as actual costs | C74: =E11+E18+E25+E32 -> 0
A75: b) Direct personnel costs declared as unit costs (average costs)
A76: d) Direct costs od subcontracting | C76: =E39 -> 0
A77: e) Direct costs of providing financial support to third parties
A78: f) Other direct costs | C78: =E46+E53+E60+E67 -> 0
A79: h) Indirect costs (= 0.25 * (a + b + f - o)) | C79: =(C74+C75+C78-C86)*0.25 -> 0
A80: j) Total costs (= a + b + d + e + f + h) | C80: =SUM(C74:C79) -> 0
A81: k) Receipts
A82: m) Maximum EU-contribution (100%) | C82: =((C80-C81)*100%) -> 0
A83: n) Requested EU-contribution
A86: o) Use of 'costs of in-kind contributions not used on premises'?

Sheet Personnel costs RP5
B1: PERSONNEL COSTS - RP5
B3: Project: | C3: ='Ekonomisk projektbeskrivning'!D5 -> 0 | G3: Grant Agreement No: | H3: ='Ekonomisk projektbeskrivning'!D17 -> 0
B5: Beneficiary: | C5: Hoegskolan i Boras / University of Borås
B7: Reporting period 5: | C7: ='Ekonomisk projektbeskrivning'!E25 -> 00:00:00 | D7: -- | E7: ='Ekonomisk projektbeskrivning'!F25 -> 00:00:00
B9: Exchange rate SEK-EUR: | C9: ='Ekonomisk projektbeskrivning'!B25 -> 0
B11: Option for calculating Hourly rate: | D11: Option 3: Standard annual productive hours (1700, 1732, 1756)
B14: Name | C14: WP | D14: Calender year | F14: Fiscal year | G14: Total salary cost in payroll (SEK) | H14: Salary costs for Additional remunerations that is not related to the project (SEK) | I14: Annual personnel costs (SEK) | K14: Employment monhts (according to time sheet summary) | L14: Annual productive hours | M14: Employment level (according to time sheet summary) | N14: Annual productive hours Pro-Rata | P14: Hourly rate (SEK) | Q14: Productive hours in the project | R14: PMs | S14: Calculated eligible personnel cost for the project (SEK) | T14: Total salary cost in payroll for the project (SEK) | U14: Difference (SEK) | V14: Personnel cost to claim in form C (SEK) | W14: Personnel cost to claim in form C (€)
B15: Person 1
D16: =$D$140 -> Year 1: | E16: =$E$140 -> 1900 | F16: =$I$140 ->  | I16: =SUM(G16:H16) -> 0 | N16: =L16/12*K16*M16 -> 0 | P16: =(IFERROR(I16/L16,0)) -> 0 | R16: =(IFERROR((Q16/L16)*12,0)) -> 0 | S16: =P16*Q16 -> 0 | U16: =S16-T16 -> 0 | V16: =IF(T16<=S16,T16,S16) -> 0 | W16: =V16/$C$9 -> 
D17: =$D$141 -> Year 2: | E17: =$E$141 -> 0 | F17: =$I$141 ->  | I17: =SUM(G17:H17) -> 0 | N17: =L17/12*K17*M17 -> 0 | P17: 0 | R17: =(IFERROR((Q17/L17)*12,0)) -> 0 | S17: =P17*Q17 -> 0 | U17: =S17-T17 -> 0 | V17: =IF(T17<=S17,T17,S17) -> 0 | W17: =V17/$C$9 -> 
D18: =$D$142 -> Year 3: | E18: =$E$142 -> 0 | F18: =$I$142 ->  | I18: =SUM(G18:H18) -> 0 | N18: =L18/12*K18*M18 -> 0 | P18: 0 | R18: 0 | S18: =P18*Q18 -> 0 | U18: =S18-T18 -> 0 | V18: =IF(T18<=S18,T18,S18) -> 0 | W18: =V18/$C$9 -> 
B19: Person 2
D20: =$D$140 -> Year 1: | E20: =$E$140 -> 1900 | F20: =$I$140 ->  | I20: =SUM(G20:H20) -> 0 | N20: =L20/12*K20*M20 -> 0 | P20: =(IFERROR(I20/L20,0)) -> 0 | R20: =(IFERROR((Q20/L20)*12,0)) -> 0 | S20: =P20*Q20 -> 0 | U20: =S20-T20 -> 0 | V20: =IF(T20<=S20,T20,S20) -> 0 | W20: =V20/$C$9 -> 
D21: =$D$141 -> Year 2: | E21: =$E$141 -> 0 | F21: =$I$141 ->  | I21: 0 | N21: 0 | P21: 0 | R21: 0 | S21: 0 | U21: 0 | V21: 0
D22: =$D$142 -> Year 3: | E22: =$E$142 -> 0 | F22: =$I$142 ->  | I22: 0 | N22: 0 | P22: 0 | R22: 0 | S22: 0 | U22: 0 | V22: 0
B23: Person 3
D24: =$D$140 -> Year 1: | E24: =$E$140 -> 1900 | F24: =$I$140 ->  | I24: =SUM(G24:H24) -> 0 | N24: =L24/12*K24*M24 -> 0 | P24: =(IFERROR(I24/L24,0)) -> 0 | R24: =(IFERROR((Q24/L24)*12,0)) -> 0 | S24: =P24*Q24 -> 0 | U24: =S24-T24 -> 0 | V24: =IF(T24<=S24,T24,S24) -> 0 | W24: =V24/$C$9 -> 
D25: =$D$141 -> Year 2: | E25: =$E$141 -> 0 | F25: =$I$141 ->  | I25: 0 | N25: 0 | P25: 0 | R25: 0 | S25: 0 | U25: 0 | V25: 0
D26: =$D$142 -> Year 3: | E26: =$E$142 -> 0 | F26: =$I$142 ->  | I26: 0 | N26: 0 | P26: 0 | R26: 0 | S26: 0 | U26: 0 | V26: 0
B27: Person 4
D28: =$D$140 -> Year 1: | E28: =$E$140 -> 1900 | F28: =$I$140 ->  | I28: =SUM(G28:H28) -> 0 | N28: =L28/12*K28*M28 -> 0 | P28: =(IFERROR(I28/L28,0)) -> 0 | R28: =(IFERROR((Q28/L28)*12,0)) -> 0 | S28: =P28*Q28 -> 0 | U28: =S28-T28 -> 0 | V28: =IF(T28<=S28,T28,S28) -> 0 | W28: =V28/$C$9 -> 
D29: =$D$141 -> Year 2: | E29: =$E$141 -> 0 | F29: =$I$141 ->  | I29: 0 | N29: 0 | P29: 0 | R29: 0 | S29: 0 | U29: 0 | V29: 0
D30: =$D$142 -> Year 3: | E30: =$E$142 -> 0 | F30: =$I$142 ->  | I30: 0 | N30: 0 | P30: 0 | R30: 0 | S30: 0 | U30: 0 | V30: 0
B31: Person 5
D32: =$D$140 -> Year 1: | E32: =$E$140 -> 1900 | F32: =$I$140 ->  | I32: =SUM(G32:H32) -> 0 | N32: =L32/12*K32*M32 -> 0 | P32: =(IFERROR(I32/L32,0)) -> 0 | R32: =(IFERROR((Q32/L32)*12,0)) -> 0 | S32: =P32*Q32 -> 0 | U32: =S32-T32 -> 0 | V32: =IF(T32<=S32,T32,S32) -> 0 | W32: =V32/$C$9 -> 
D33: =$D$141 -> Year 2: | E33: =$E$141 -> 0 | F33: =$I$141 ->  | I33: 0 | N33: 0 | P33: 0 | R33: 0 | S33: 0 | U33: 0 | V33: 0
D34: =$D$142 -> Year 3: | E34: =$E$142 -> 0 | F34: =$I$142 ->  | I34: 0 | N34: 0 | P34: 0 | R34: 0 | S34: 0 | U34: 0 | V34: 0
B35: Person 6
D36: =$D$140 -> Year 1: | E36: =$E$140 -> 1900 | F36: =$I$140 ->  | I36: =SUM(G36:H36) -> 0 | N36: =L36/12*K36*M36 -> 0 | P36: =(IFERROR(I36/L36,0)) -> 0 | R36: =(IFERROR((Q36/L36)*12,0)) -> 0 | S36: =P36*Q36 -> 0 | U36: =S36-T36 -> 0 | V36: =IF(T36<=S36,T36,S36) -> 0 | W36: =V36/$C$9 -> 
D37: =$D$141 -> Year 2: | E37: =$E$141 -> 0 | F37: =$I$141 ->  | I37: 0 | N37: 0 | P37: 0 | R37: 0 | S37: 0 | U37: 0 | V37: 0
D38: =$D$142 -> Year 3: | E38: =$E$142 -> 0 | F38: =$I$142 ->  | I38: 0 | N38: 0 | P38: 0 | R38: 0 | S38: 0 | U38: 0 | V38: 0
B39: Person 7
D40: =$D$140 -> Year 1: | E40: =$E$140 -> 1900 | F40: =$I$140 ->  | I40: =SUM(G40:H40) -> 0 | N40: =L40/12*K40*M40 -> 0 | P40: =(IFERROR(I40/L40,0)) -> 0 | R40: =(IFERROR((Q40/L40)*12,0)) -> 0 | S40: =P40*Q40 -> 0 | U40: =S40-T40 -> 0 | V40: =IF(T40<=S40,T40,S40) -> 0 | W40: =V40/$C$9 -> 
D41: =$D$141 -> Year 2: | E41: =$E$141 -> 0 | F41: =$I$141 ->  | I41: 0 | N41: 0 | P41: 0 | R41: 0 | S41: 0 | U41: 0 | V41: 0
D42: =$D$142 -> Year 3: | E42: =$E$142 -> 0 | F42: =$I$142 ->  | I42: 0 | N42: 0 | P42: 0 | R42: 0 | S42: 0 | U42: 0 | V42: 0
B43: Person 8
D44: =$D$140 -> Year 1: | E44: =$E$140 -> 1900 | F44: =$I$140 ->  | I44: =SUM(G44:H44) -> 0 | N44: =L44/12*K44*M44 -> 0 | P44: =(IFERROR(I44/L44,0)) -> 0 | R44: =(IFERROR((Q44/L44)*12,0)) -> 0 | S44: =P44*Q44 -> 0 | U44: =S44-T44 -> 0 | V44: =IF(T44<=S44,T44,S44) -> 0 | W44: =V44/$C$9 -> 
D45: =$D$141 -> Year 2: | E45: =$E$141 -> 0 | F45: =$I$141 ->  | I45: 0 | N45: 0 | P45: 0 | R45: 0 | S45: 0 | U45: 0 | V45: 0
D46: =$D$142 -> Year 3: | E46: =$E$142 -> 0 | F46: =$I$142 ->  | I46: 0 | N46: 0 | P46: 0 | R46: 0 | S46: 0 | U46: 0 | V46: 0
B47: Person 9
D48: =$D$140 -> Year 1: | E48: =$E$140 -> 1900 | F48: =$I$140 ->  | I48: =SUM(G48:H48) -> 0 | N48: =L48/12*K48*M48 -> 0 | P48: =(IFERROR(I48/L48,0)) -> 0 | R48: =(IFERROR((Q48/L48)*12,0)) -> 0 | S48: =P48*Q48 -> 0 | U48: =S48-T48 -> 0 | V48: =IF(T48<=S48,T48,S48) -> 0 | W48: =V48/$C$9 -> 
D49: =$D$141 -> Year 2: | E49: =$E$141 -> 0 | F49: =$I$141 ->  | I49: 0 | N49: 0 | P49: 0 | R49: 0 | S49: 0 | U49: 0 | V49: 0
D50: =$D$142 -> Year 3: | E50: =$E$142 -> 0 | F50: =$I$142 ->  | I50: 0 | N50: 0 | P50: 0 | R50: 0 | S50: 0 | U50: 0 | V50: 0
B51: Person 10
D52: =$D$140 -> Year 1: | E52: =$E$140 -> 1900 | F52: =$I$140 ->  | I52: =SUM(G52:H52) -> 0 | N52: =L52/12*K52*M52 -> 0 | P52: =(IFERROR(I52/L52,0)) -> 0 | R52: =(IFERROR((Q52/L52)*12,0)) -> 0 | S52: =P52*Q52 -> 0 | U52: =S52-T52 -> 0 | V52: =IF(T52<=S52,T52,S52) -> 0 | W52: =V52/$C$9 -> 
D53: =$D$141 -> Year 2: | E53: =$E$141 -> 0 | F53: =$I$141 ->  | I53: 0 | N53: 0 | P53: 0 | R53: 0 | S53: 0 | U53: 0 | V53: 0
D54: =$D$142 -> Year 3: | E54: =$E$142 -> 0 | F54: =$I$142 ->  | I54: 0 | N54: 0 | P54: 0 | R54: 0 | S54: 0 | U54: 0 | V54: 0
B55: Person 11
D56: =$D$140 -> Year 1: | E56: =$E$140 -> 1900 | F56: =$I$140 ->  | I56: =SUM(G56:H56) -> 0 | N56: =L56/12*K56*M56 -> 0 | P56: =(IFERROR(I56/L56,0)) -> 0 | R56: =(IFERROR((Q56/L56)*12,0)) -> 0 | S56: =P56*Q56 -> 0 | U56: =S56-T56 -> 0 | V56: =IF(T56<=S56,T56,S56) -> 0 | W56: =V56/$C$9 -> 
D57: =$D$141 -> Year 2: | E57: =$E$141 -> 0 | F57: =$I$141 ->  | I57: 0 | N57: 0 | P57: 0 | R57: 0 | S57: 0 | U57: 0 | V57: 0
D58: =$D$142 -> Year 3: | E58: =$E$142 -> 0 | F58: =$I$142 ->  | I58: 0 | N58: 0 | P58: 0 | R58: 0 | S58: 0 | U58: 0 | V58: 0
B59: Person 12
D60: =$D$140 -> Year 1: | E60: =$E$140 -> 1900 | F60: =$I$140 ->  | I60: =SUM(G60:H60) -> 0 | N60: =L60/12*K60*M60 -> 0 | P60: =(IFERROR(I60/L60,0)) -> 0 | R60: =(IFERROR((Q60/L60)*12,0)) -> 0 | S60: =P60*Q60 -> 0 | U60: =S60-T60 -> 0 | V60: =IF(T60<=S60,T60,S60) -> 0 | W60: =V60/$C$9 -> 
D61: =$D$141 -> Year 2: | E61: =$E$141 -> 0 | F61: =$I$141 ->  | I61: 0 | N61: 0 | P61: 0 | R61: 0 | S61: 0 | U61: 0 | V61: 0
D62: =$D$142 -> Year 3: | E62: =$E$142 -> 0 | F62: =$I$142 ->  | I62: 0 | N62: 0 | P62: 0 | R62: 0 | S62: 0 | U62: 0 | V62: 0
B63: Person 13
D64: =$D$140 -> Year 1: | E64: =$E$140 -> 1900 | F64: =$I$140 ->  | I64: =SUM(G64:H64) -> 0 | N64: =L64/12*K64*M64 -> 0 | P64: =(IFERROR(I64/L64,0)) -> 0 | R64: =(IFERROR((Q64/L64)*12,0)) -> 0 | S64: =P64*Q64 -> 0 | U64: =S64-T64 -> 0 | V64: =IF(T64<=S64,T64,S64) -> 0 | W64: =V64/$C$9 -> 
D65: =$D$141 -> Year 2: | E65: =$E$141 -> 0 | F65: =$I$141 ->  | I65: 0 | N65: 0 | P65: 0 | R65: 0 | S65: 0 | U65: 0 | V65: 0
D66: =$D$142 -> Year 3: | E66: =$E$142 -> 0 | F66: =$I$142 ->  | I66: 0 | N66: 0 | P66: 0 | R66: 0 | S66: 0 | U66: 0 | V66: 0
B67: Person 14
D68: =$D$140 -> Year 1: | E68: =$E$140 -> 1900 | F68: =$I$140 ->  | I68: =SUM(G68:H68) -> 0 | N68: =L68/12*K68*M68 -> 0 | P68: =(IFERROR(I68/L68,0)) -> 0 | R68: =(IFERROR((Q68/L68)*12,0)) -> 0 | S68: =P68*Q68 -> 0 | U68: =S68-T68 -> 0 | V68: =IF(T68<=S68,T68,S68) -> 0 | W68: =V68/$C$9 -> 
D69: =$D$141 -> Year 2: | E69: =$E$141 -> 0 | F69: =$I$141 ->  | I69: 0 | N69: 0 | P69: 0 | R69: 0 | S69: 0 | U69: 0 | V69: 0
D70: =$D$142 -> Year 3: | E70: =$E$142 -> 0 | F70: =$I$142 ->  | I70: 0 | N70: 0 | P70: 0 | R70: 0 | S70: 0 | U70: 0 | V70: 0
B71: Person 15
D72: =$D$140 -> Year 1: | E72: =$E$140 -> 1900 | F72: =$I$140 ->  | I72: =SUM(G72:H72) -> 0 | N72: =L72/12*K72*M72 -> 0 | P72: =(IFERROR(I72/L72,0)) -> 0 | R72: =(IFERROR((Q72/L72)*12,0)) -> 0 | S72: =P72*Q72 -> 0 | U72: =S72-T72 -> 0 | V72: =IF(T72<=S72,T72,S72) -> 0 | W72: =V72/$C$9 -> 
D73: =$D$141 -> Year 2: | E73: =$E$141 -> 0 | F73: =$I$141 ->  | I73: 0 | N73: 0 | P73: 0 | R73: 0 | S73: 0 | U73: 0 | V73: 0
D74: =$D$142 -> Year 3: | E74: =$E$142 -> 0 | F74: =$I$142 ->  | I74: 0 | N74: 0 | P74: 0 | R74: 0 | S74: 0 | U74: 0 | V74: 0
B75: Person 16
D76: =$D$140 -> Year 1: | E76: =$E$140 -> 1900 | F76: =$I$140 ->  | I76: =SUM(G76:H76) -> 0 | N76: =L76/12*K76*M76 -> 0 | P76: =(IFERROR(I76/L76,0)) -> 0 | R76: =(IFERROR((Q76/L76)*12,0)) -> 0 | S76: =P76*Q76 -> 0 | U76: =S76-T76 -> 0 | V76: =IF(T76<=S76,T76,S76) -> 0 | W76: =V76/$C$9 -> 
D77: =$D$141 -> Year 2: | E77: =$E$141 -> 0 | F77: =$I$141 ->  | I77: 0 | N77: 0 | P77: 0 | R77: 0 | S77: 0 | U77: 0 | V77: 0
D78: =$D$142 -> Year 3: | E78: =$E$142 -> 0 | F78: =$I$142 ->  | I78: 0 | N78: 0 | P78: 0 | R78: 0 | S78: 0 | U78: 0 | V78: 0
B79: Person 17
D80: =$D$140 -> Year 1: | E80: =$E$140 -> 1900 | F80: =$I$140 ->  | I80: =SUM(G80:H80) -> 0 | N80: =L80/12*K80*M80 -> 0 | P80: =(IFERROR(I80/L80,0)) -> 0 | R80: =(IFERROR((Q80/L80)*12,0)) -> 0 | S80: =P80*Q80 -> 0 | U80: =S80-T80 -> 0 | V80: =IF(T80<=S80,T80,S80) -> 0 | W80: =V80/$C$9 -> 
D81: =$D$141 -> Year 2: | E81: =$E$141 -> 0 | F81: =$I$141 ->  | I81: 0 | N81: 0 | P81: 0 | R81: 0 | S81: 0 | U81: 0 | V81: 0
D82: =$D$142 -> Year 3: | E82: =$E$142 -> 0 | F82: =$I$142 ->  | I82: 0 | N82: 0 | P82: 0 | R82: 0 | S82: 0 | U82: 0 | V82: 0
B83: Person 18
D84: =$D$140 -> Year 1: | E84: =$E$140 -> 1900 | F84: =$I$140 ->  | I84: =SUM(G84:H84) -> 0 | N84: =L84/12*K84*M84 -> 0 | P84: =(IFERROR(I84/L84,0)) -> 0 | R84: =(IFERROR((Q84/L84)*12,0)) -> 0 | S84: =P84*Q84 -> 0 | U84: =S84-T84 -> 0 | V84: =IF(T84<=S84,T84,S84) -> 0 | W84: =V84/$C$9 -> 
D85: =$D$141 -> Year 2: | E85: =$E$141 -> 0 | F85: =$I$141 ->  | I85: 0 | N85: 0 | P85: 0 | R85: 0 | S85: 0 | U85: 0 | V85: 0
D86: =$D$142 -> Year 3: | E86: =$E$142 -> 0 | F86: =$I$142 ->  | I86: 0 | N86: 0 | P86: 0 | R86: 0 | S86: 0 | U86: 0 | V86: 0
B87: Person 19
D88: =$D$140 -> Year 1: | E88: =$E$140 -> 1900 | F88: =$I$140 ->  | I88: =SUM(G88:H88) -> 0 | N88: =L88/12*K88*M88 -> 0 | P88: =(IFERROR(I88/L88,0)) -> 0 | R88: =(IFERROR((Q88/L88)*12,0)) -> 0 | S88: =P88*Q88 -> 0 | U88: =S88-T88 -> 0 | V88: =IF(T88<=S88,T88,S88) -> 0 | W88: =V88/$C$9 -> 
D89: =$D$141 -> Year 2: | E89: =$E$141 -> 0 | F89: =$I$141 ->  | I89: 0 | N89: 0 | P89: 0 | R89: 0 | S89: 0 | U89: 0 | V89: 0
D90: =$D$142 -> Year 3: | E90: =$E$142 -> 0 | F90: =$I$142 ->  | I90: 0 | N90: 0 | P90: 0 | R90: 0 | S90: 0 | U90: 0 | V90: 0
B91: Person 20
D92: =$D$140 -> Year 1: | E92: =$E$140 -> 1900 | F92: =$I$140 ->  | I92: =SUM(G92:H92) -> 0 | N92: =L92/12*K92*M92 -> 0 | P92: =(IFERROR(I92/L92,0)) -> 0 | R92: =(IFERROR((Q92/L92)*12,0)) -> 0 | S92: =P92*Q92 -> 0 | U92: =S92-T92 -> 0 | V92: =IF(T92<=S92,T92,S92) -> 0 | W92: =V92/$C$9 -> 
D93: =$D$141 -> Year 2: | E93: =$E$141 -> 0 | F93: =$I$141 ->  | I93: 0 | N93: 0 | P93: 0 | R93: 0 | S93: 0 | U93: 0 | V93: 0
D94: =$D$142 -> Year 3: | E94: =$E$142 -> 0 | F94: =$I$142 ->  | I94: 0 | N94: 0 | P94: 0 | R94: 0 | S94: 0 | U94: 0 | V94: 0
B95: Person 21
D96: =$D$140 -> Year 1: | E96: =$E$140 -> 1900 | F96: =$I$140 ->  | I96: =SUM(G96:H96) -> 0 | N96: =L96/12*K96*M96 -> 0 | P96: =(IFERROR(I96/L96,0)) -> 0 | R96: =(IFERROR((Q96/L96)*12,0)) -> 0 | S96: =P96*Q96 -> 0 | U96: =S96-T96 -> 0 | V96: =IF(T96<=S96,T96,S96) -> 0 | W96: =V96/$C$9 -> 
D97: =$D$141 -> Year 2: | E97: =$E$141 -> 0 | F97: =$I$141 ->  | I97: 0 | N97: 0 | P97: 0 | R97: 0 | S97: 0 | U97: 0 | V97: 0
D98: =$D$142 -> Year 3: | E98: =$E$142 -> 0 | F98: =$I$142 ->  | I98: 0 | N98: 0 | P98: 0 | R98: 0 | S98: 0 | U98: 0 | V98: 0
B99: Person 22
D100: =$D$140 -> Year 1: | E100: =$E$140 -> 1900 | F100: =$I$140 ->  | I100: =SUM(G100:H100) -> 0 | N100: =L100/12*K100*M100 -> 0 | P100: =(IFERROR(I100/L100,0)) -> 0 | R100: =(IFERROR((Q100/L100)*12,0)) -> 0 | S100: =P100*Q100 -> 0 | U100: =S100-T100 -> 0 | V100: =IF(T100<=S100,T100,S100) -> 0 | W100: =V100/$C$9 -> 
D101: =$D$141 -> Year 2: | E101: =$E$141 -> 0 | F101: =$I$141 ->  | I101: =SUM(G101:H101) -> 0 | N101: =L101/12*K101*M101 -> 0 | P101: 0 | R101: 0 | S101: =P101*Q101 -> 0 | U101: =S101-T101 -> 0 | V101: =IF(T101<=S101,T101,S101) -> 0 | W101: =V101/$C$9 -> 
D102: =$D$142 -> Year 3: | E102: =$E$142 -> 0 | F102: =$I$142 ->  | I102: =SUM(G102:H102) -> 0 | N102: =L102/12*K102*M102 -> 0 | P102: 0 | R102: 0 | S102: =P102*Q102 -> 0 | U102: =S102-T102 -> 0 | V102: =IF(T102<=S102,T102,S102) -> 0 | W102: =V102/$C$9 -> 
B103: Person 23
D104: =$D$140 -> Year 1: | E104: =$E$140 -> 1900 | F104: =$I$140 ->  | I104: =SUM(G104:H104) -> 0 | N104: =L104/12*K104*M104 -> 0 | P104: =(IFERROR(I104/L104,0)) -> 0 | R104: =(IFERROR((Q104/L104)*12,0)) -> 0 | S104: =P104*Q104 -> 0 | U104: =S104-T104 -> 0 | V104: =IF(T104<=S104,T104,S104) -> 0 | W104: =V104/$C$9 -> 
D105: =$D$141 -> Year 2: | E105: =$E$141 -> 0 | F105: =$I$141 ->  | I105: =SUM(G105:H105) -> 0 | N105: =L105/12*K105*M105 -> 0 | P105: 0 | R105: 0 | S105: =P105*Q105 -> 0 | U105: =S105-T105 -> 0 | V105: =IF(T105<=S105,T105,S105) -> 0 | W105: =V105/$C$9 -> 
D106: =$D$142 -> Year 3: | E106: =$E$142 -> 0 | F106: =$I$142 ->  | I106: =SUM(G106:H106) -> 0 | N106: =L106/12*K106*M106 -> 0 | P106: 0 | R106: 0 | S106: =P106*Q106 -> 0 | U106: =S106-T106 -> 0 | V106: =IF(T106<=S106,T106,S106) -> 0 | W106: =V106/$C$9 -> 
B107: Person 24
D108: =$D$140 -> Year 1: | E108: =$E$140 -> 1900 | F108: =$I$140 ->  | I108: =SUM(G108:H108) -> 0 | N108: =L108/12*K108*M108 -> 0 | P108: =(IFERROR(I108/L108,0)) -> 0 | R108: =(IFERROR((Q108/L108)*12,0)) -> 0 | S108: =P108*Q108 -> 0 | U108: =S108-T108 -> 0 | V108: =IF(T108<=S108,T108,S108) -> 0 | W108: =V108/$C$9 -> 
D109: =$D$141 -> Year 2: | E109: =$E$141 -> 0 | F109: =$I$141 ->  | I109: =SUM(G109:H109) -> 0 | N109: =L109/12*K109*M109 -> 0 | P109: =(IFERROR(I109/L109,0)) -> 0 | R109: 0 | S109: =P109*Q109 -> 0 | U109: =S109-T109 -> 0 | V109: =IF(T109<=S109,T109,S109) -> 0 | W109: =V109/$C$9 -> 
D110: =$D$142 -> Year 3: | E110: =$E$142 -> 0 | F110: =$I$142 ->  | I110: =SUM(G110:H110) -> 0 | N110: =L110/12*K110*M110 -> 0 | P110: 0 | R110: 0 | S110: =P110*Q110 -> 0 | U110: =S110-T110 -> 0 | V110: =IF(T110<=S110,T110,S110) -> 0 | W110: =V110/$C$9 -> 
B111: Person 25
D112: =$D$140 -> Year 1: | E112: =$E$140 -> 1900 | F112: =$I$140 ->  | I112: =SUM(G112:H112) -> 0 | N112: =L112/12*K112*M112 -> 0 | P112: =(IFERROR(I112/L112,0)) -> 0 | R112: =(IFERROR((Q112/L112)*12,0)) -> 0 | S112: =P112*Q112 -> 0 | U112: =S112-T112 -> 0 | V112: =IF(T112<=S112,T112,S112) -> 0 | W112: =V112/$C$9 -> 
D113: =$D$141 -> Year 2: | E113: =$E$141 -> 0 | F113: =$I$141 ->  | I113: =SUM(G113:H113) -> 0 | N113: =L113/12*K113*M113 -> 0 | P113: 0 | R113: 0 | S113: =P113*Q113 -> 0 | U113: =S113-T113 -> 0 | V113: =IF(T113<=S113,T113,S113) -> 0 | W113: =V113/$C$9 -> 
D114: =$D$142 -> Year 3: | E114: =$E$142 -> 0 | F114: =$I$142 ->  | I114: =SUM(G114:H114) -> 0 | N114: =L114/12*K114*M114 -> 0 | P114: 0 | R114: 0 | S114: =P114*Q114 -> 0 | U114: =S114-T114 -> 0 | V114: =IF(T114<=S114,T114,S114) -> 0 | W114: =V114/$C$9 -> 
B115: Person 26
D116: =$D$140 -> Year 1: | E116: =$E$140 -> 1900 | F116: =$I$140 ->  | I116: =SUM(G116:H116) -> 0 | N116: =L116/12*K116*M116 -> 0 | P116: =(IFERROR(I116/L116,0)) -> 0 | R116: =(IFERROR((Q116/L116)*12,0)) -> 0 | S116: =P116*Q116 -> 0 | U116: =S116-T116 -> 0 | V116: =IF(T116<=S116,T116,S116) -> 0 | W116: =V116/$C$9 -> 
D117: =$D$141 -> Year 2: | E117: =$E$141 -> 0 | F117: =$I$141 ->  | I117: =SUM(G117:H117) -> 0 | N117: =L117/12*K117*M117 -> 0 | P117: 0 | R117: 0 | S117: =P117*Q117 -> 0 | U117: =S117-T117 -> 0 | V117: =IF(T117<=S117,T117,S117) -> 0 | W117: =V117/$C$9 -> 
D118: =$D$142 -> Year 3: | E118: =$E$142 -> 0 | F118: =$I$142 ->  | I118: =SUM(G118:H118) -> 0 | N118: =L118/12*K118*M118 -> 0 | P118: 0 | R118: 0 | S118: =P118*Q118 -> 0 | U118: =S118-T118 -> 0 | V118: =IF(T118<=S118,T118,S118) -> 0 | W118: =V118/$C$9 -> 
B119: Person 27
D120: =$D$140 -> Year 1: | E120: =$E$140 -> 1900 | F120: =$I$140 ->  | I120: =SUM(G120:H120) -> 0 | N120: =L120/12*K120*M120 -> 0 | P120: =(IFERROR(I120/L120,0)) -> 0 | R120: =(IFERROR((Q120/L120)*12,0)) -> 0 | S120: =P120*Q120 -> 0 | U120: =S120-T120 -> 0 | V120: =IF(T120<=S120,T120,S120) -> 0 | W120: =V120/$C$9 -> 
D121: =$D$141 -> Year 2: | E121: =$E$141 -> 0 | F121: =$I$141 ->  | I121: =SUM(G121:H121) -> 0 | N121: =L121/12*K121*M121 -> 0 | P121: 0 | R121: 0 | S121: =P121*Q121 -> 0 | U121: =S121-T121 -> 0 | V121: =IF(T121<=S121,T121,S121) -> 0 | W121: =V121/$C$9 -> 
D122: =$D$142 -> Year 3: | E122: =$E$142 -> 0 | F122: =$I$142 ->  | I122: =SUM(G122:H122) -> 0 | N122: =L122/12*K122*M122 -> 0 | P122: 0 | R122: 0 | S122: =P122*Q122 -> 0 | U122: =S122-T122 -> 0 | V122: =IF(T122<=S122,T122,S122) -> 0 | W122: =V122/$C$9 -> 
B123: Person 28
D124: =$D$140 -> Year 1: | E124: =$E$140 -> 1900 | F124: =$I$140 ->  | I124: =SUM(G124:H124) -> 0 | N124: =L124/12*K124*M124 -> 0 | P124: =(IFERROR(I124/L124,0)) -> 0 | R124: =(IFERROR((Q124/L124)*12,0)) -> 0 | S124: =P124*Q124 -> 0 | U124: =S124-T124 -> 0 | V124: =IF(T124<=S124,T124,S124) -> 0 | W124: =V124/$C$9 -> 
D125: =$D$141 -> Year 2: | E125: =$E$141 -> 0 | F125: =$I$141 ->  | I125: =SUM(G125:H125) -> 0 | N125: =L125/12*K125*M125 -> 0 | P125: 0 | R125: 0 | S125: =P125*Q125 -> 0 | U125: =S125-T125 -> 0 | V125: =IF(T125<=S125,T125,S125) -> 0 | W125: =V125/$C$9 -> 
D126: =$D$142 -> Year 3: | E126: =$E$142 -> 0 | F126: =$I$142 ->  | I126: =SUM(G126:H126) -> 0 | N126: =L126/12*K126*M126 -> 0 | P126: 0 | R126: 0 | S126: =P126*Q126 -> 0 | U126: =S126-T126 -> 0 | V126: =IF(T126<=S126,T126,S126) -> 0 | W126: =V126/$C$9 -> 
B127: Person 29
D128: =$D$140 -> Year 1: | E128: =$E$140 -> 1900 | F128: =$I$140 ->  | I128: =SUM(G128:H128) -> 0 | N128: =L128/12*K128*M128 -> 0 | P128: =(IFERROR(I128/L128,0)) -> 0 | R128: =(IFERROR((Q128/L128)*12,0)) -> 0 | S128: =P128*Q128 -> 0 | U128: =S128-T128 -> 0 | V128: =IF(T128<=S128,T128,S128) -> 0 | W128: =V128/$C$9 -> 
D129: =$D$141 -> Year 2: | E129: =$E$141 -> 0 | F129: =$I$141 ->  | I129: =SUM(G129:H129) -> 0 | N129: =L129/12*K129*M129 -> 0 | P129: 0 | R129: 0 | S129: =P129*Q129 -> 0 | U129: =S129-T129 -> 0 | V129: =IF(T129<=S129,T129,S129) -> 0 | W129: =V129/$C$9 -> 
D130: =$D$142 -> Year 3: | E130: =$E$142 -> 0 | F130: =$I$142 ->  | I130: =SUM(G130:H130) -> 0 | N130: =L130/12*K130*M130 -> 0 | P130: 0 | R130: 0 | S130: =P130*Q130 -> 0 | U130: =S130-T130 -> 0 | V130: =IF(T130<=S130,T130,S130) -> 0 | W130: =V130/$C$9 -> 
B131: Person 30
D132: =$D$140 -> Year 1: | E132: =$E$140 -> 1900 | F132: =$I$140 ->  | I132: =SUM(G132:H132) -> 0 | N132: =L132/12*K132*M132 -> 0 | P132: =(IFERROR(I132/L132,0)) -> 0 | R132: =(IFERROR((Q132/L132)*12,0)) -> 0 | S132: =P132*Q132 -> 0 | U132: =S132-T132 -> 0 | V132: =IF(T132<=S132,T132,S132) -> 0 | W132: =V132/$C$9 -> 
D133: =$D$141 -> Year 2: | E133: =$E$141 -> 0 | F133: =$I$141 ->  | I133: =SUM(G133:H133) -> 0 | N133: =L133/12*K133*M133 -> 0 | P133: 0 | R133: 0 | S133: =P133*Q133 -> 0 | U133: =S133-T133 -> 0 | V133: =IF(T133<=S133,T133,S133) -> 0 | W133: =V133/$C$9 -> 
D134: =$D$142 -> Year 3: | E134: =$E$142 -> 0 | F134: =$I$142 ->  | I134: =SUM(G134:H134) -> 0 | N134: =L134/12*K134*M134 -> 0 | P134: 0 | R134: 0 | S134: =P134*Q134 -> 0 | U134: =S134-T134 -> 0 | V134: =IF(T134<=S134,T134,S134) -> 0 | W134: =V134/$C$9 -> 
V135: =SUM(W15:W134) -> 
D139: Number of reporting months per year this reporting period
D140: Year 1: | E140: =YEAR('Ekonomisk projektbeskrivning'!E25) -> 1900 | F140: =IF(MONTH(H140)-MONTH(G140)=0,0,MONTH(H140)-MONTH(G140)+1) -> 0 | G140: ='Ekonomisk projektbeskrivning'!E25 -> 00:00:00 | H140: =IF(YEAR('Ekonomisk projektbeskrivning'!F25)='Personnel costs RP5'!E140,'Ekonomisk projektbeskrivning'!F25,CONCATENATE(E140&"-12-31")) -> 0 | I140: =IF(F140<>0,IF(F140<12,IF(MONTH(G140)>(12-F140),E140,E140-1),E140),"") -> 
D141: Year 2: | E141: =IF(YEAR('Ekonomisk projektbeskrivning'!F25)>=('Personnel costs RP5'!E140+1),('Personnel costs RP5'!E140+1),0) -> 0 | F141: =IF(E141=0,0,IF(MONTH(G141)=1,IF(MONTH(H141)=1,1,(MONTH(H141)-MONTH(G141)+1)))) -> 0 | G141: =IF(E140=YEAR('Ekonomisk projektbeskrivning'!F25),0,CONCATENATE(E141&"-01-01")) -> 0 | H141: =IF(E140+1=YEAR('Ekonomisk projektbeskrivning'!F25),'Ekonomisk projektbeskrivning'!F25,IF(E140+1>YEAR('Ekonomisk projektbeskrivning'!F25),0,CONCATENATE(E141&"-12-31"))) -> 0 | I141: =IF(F141<>0,IF(F141<12,IF(MONTH(G141)>(12-F141),E141,E141-1),E141),"") -> 
D142: Year 3: | E142: =IF(YEAR('Ekonomisk projektbeskrivning'!F25)>=('Personnel costs RP5'!E140+2),('Personnel costs RP5'!E141+1),0) -> 0 | F142: =IF(E142=0,0,IF(MONTH(G142)=1,IF(MONTH(H142)=1,1,(MONTH(H142)-MONTH(G142)+1)))) -> 0 | G142: =IF(E140+1>=YEAR('Ekonomisk projektbeskrivning'!F25),0,CONCATENATE(E140+2&"-01-01")) -> 0 | H142: =IF(E140+2=YEAR('Ekonomisk projektbeskrivning'!F25),'Ekonomisk projektbeskrivning'!F25,IF(E140+2>YEAR('Ekonomisk projektbeskrivning'!F25),0,CONCATENATE(E142&"-12-31"))) -> 0

Sheet Project Transactions RP5
A1: sql SELECT dim_1, dim_2, voucher_no, period, trans_date, VERIFIKATIONER.account, VERIFIKATIONER.description AS VERTEXT, amount, KONTO.description AS KONTONAMN
A2: sql FROM agltransact AS VERIFIKATIONER
A3: sql FULL JOIN aglaccounts as KONTO
A4: sql ON VERIFIKATIONER.account = KONTO.account
A5: =C5 -> sql WHERE dim_1='0' | C5: =CONCATENATE("sql WHERE dim_1='"&E15&"'") -> sql WHERE dim_1='0'
A6: =C6 -> sql AND dim_2 LIKE '0%' | C6: =CONCATENATE("sql AND dim_2 LIKE '"&E16&"%'") -> sql AND dim_2 LIKE '0%'
A7: =C7 -> sql AND period >='' | C7: =CONCATENATE("sql AND period >='"&E17&"'") -> sql AND period >=''
A8: =C8 -> sql AND period <='' | C8: =CONCATENATE("sql AND period <='"&E18&"'") -> sql AND period <=''
A9: sql AND KONTO.client='BO'
A10: query
A11: sort account
A12: columns | B12: code account | C12: text dim_1 | D12: text dim_2 | E12: text voucher_no | F12: text Period | G12: trans_date | H12: text account | I12: KONTONAMN | J12: VERTEXT | K12: amount
C13: VERIFIKATIONSLISTA - RP5
C15: Orgenhet: | E15: ='Project Transactions RP1'!E15 -> 0
C16: Akt/Proj: | E16: ='Project Transactions RP1'!E16 -> 0 | F16: Rapporten söker automatiskt ut med * utan att detta anges.
C17: Från period: | F17: OBS: året börjar med period 00
C18: Till period: | F18: OBS: året slutar med period 15
C19: Reporting period: | E19: 5
C21: Orgenhet | D21: Akt/proj | E21: Vernr | F21: Period | G21: Ver.datum | H21: Konto | I21: Konto(T) | J21: Verifikationstext | K21: Belopp | L21: Korrigering belopp (-) | M21: Beskrivning | N21: RR (Om reseräkning) | P21: Kostnadsslag i Financial statement (välj i listan)
A22: detail | B22: 4* | G22: 00:00:00 | I22: 0 | J22: 0 | K22: 0 | N22: =IF(MID($J22,42,6)="RESEID",MID($J22,49,11),"") -> 
A23: detail | B23: 51* | G23: 00:00:00 | I23: 0 | J23: 0 | K23: 0
A24: detail | B24: 52* | G24: 00:00:00 | I24: 0 | J24: 0 | K24: 0
A25: detail | B25: 53* | G25: 00:00:00 | I25: 0 | J25: 0 | K25: 0
A26: detail | B26: 54* | G26: 00:00:00 | I26: 0 | J26: 0 | K26: 0
A27: detail | B27: 55* | G27: 00:00:00 | I27: 0 | J27: 0 | K27: 0
A28: detail | B28: 56* | G28: 00:00:00 | I28: 0 | J28: 0 | K28: 0
A29: detail | B29: 57* | G29: 00:00:00 | I29: 0 | J29: 0 | K29: 0
A30: detail | B30: 69* | G30: 00:00:00 | I30: 0 | J30: 0 | K30: 0
A31: detail | B31: 94* | G31: 00:00:00 | I31: 0 | J31: 0 | K31: 0
A32: detail | B32: 95* | G32: 00:00:00 | I32: 0 | J32: 0 | K32: 0
A33: detail | B33: 96* | G33: 00:00:00 | I33: 0 | J33: 0 | K33: 0
A34: detail | B34: 97* | G34: 00:00:00 | I34: 0 | J34: 0 | K34: 0
A35: detail | B35: 9941 | G35: 00:00:00 | I35: 0 | J35: 0 | K35: 0

Sheet Direct costs RP5
A1: DIRECT COSTS - RP5
C2: Project: | D2: ='Ekonomisk projektbeskrivning'!D5 -> 0
C3: GA: | D3: ='Ekonomisk projektbeskrivning'!D17 -> 0
C4: Exchange rate: | D4: ='Ekonomisk projektbeskrivning'!B25 -> 0 | I4: Reporting period: 5
A6: A.1 Employees (or equivalent) | B6: Beskrivning | C6: RR-nr | D6: Bokfört belopp (SEK) | E6: Korrigering bokfört belopp (SEK) | F6: Belopp att redovisa (SEK) | G6: Belopp att redovisa (EUR) | H6: Vernr | I6: WP | J6: Kommentar
A11: A.2 Natural persons working under direct contract | B11: Beskrivning | C11: RR-nr | D11: Bokfört belopp (SEK) | E11: Korrigering bokfört belopp (SEK) | F11: Belopp att redovisa (SEK) | G11: Belopp att redovisa (EUR) | H11: Vernr | I11: WP | J11: Kommentar
A16: A.3 Seconded persons | B16: Beskrivning | C16: RR-nr | D16: Bokfört belopp (SEK) | E16: Korrigering bokfört belopp (SEK) | F16: Belopp att redovisa (SEK) | G16: Belopp att redovisa (EUR) | H16: Vernr | I16: WP | J16: Kommentar
A21: A.6 Personnel for providing access to research infrastructure | B21: Beskrivning | C21: RR-nr | D21: Bokfört belopp (SEK) | E21: Korrigering bokfört belopp (SEK) | F21: Belopp att redovisa (SEK) | G21: Belopp att redovisa (EUR) | H21: Vernr | I21: WP | J21: Kommentar
A26: B.1 Subcontracting | B26: Beskrivning | C26: RR-nr | D26: Bokfört belopp (SEK) | E26: Korrigering bokfört belopp (SEK) | F26: Belopp att redovisa (SEK) | G26: Belopp att redovisa (EUR) | H26: Vernr | I26: WP | J26: Kommentar
A31: D.1 Travel | B31: Beskrivning | C31: RR-nr | D31: Bokfört belopp (SEK) | E31: Korrigering bokfört belopp (SEK) | F31: Belopp att redovisa (SEK) | G31: Belopp att redovisa (EUR) | H31: Vernr | I31: WP | J31: Kommentar
A36: D.2 Equipment | B36: Beskrivning | C36: RR-nr | D36: Bokfört belopp (SEK) | E36: Korrigering bokfört belopp (SEK) | F36: Belopp att redovisa (SEK) | G36: Belopp att redovisa (EUR) | H36: Vernr | I36: WP | J36: Kommentar
A41: D.3 Other goods and services | B41: Beskrivning | C41: RR-nr | D41: Bokfört belopp (SEK) | E41: Korrigering bokfört belopp (SEK) | F41: Belopp att redovisa (SEK) | G41: Belopp att redovisa (EUR) | H41: Vernr | I41: WP | J41: Kommentar
A46: D.5 Costs for internally invoiced goods and services | B46: Beskrivning | C46: RR-nr | D46: Bokfört belopp (SEK) | E46: Korrigering bokfört belopp (SEK) | F46: Belopp att redovisa (SEK) | G46: Belopp att redovisa (EUR) | H46: Vernr | I46: WP | J46: Kommentar

Sheet Financial Statement RP5
A1: FINANCIAL STATEMENT - RP5
A3: Project: | B3: ='Ekonomisk projektbeskrivning'!D5 -> 0
A4: GA: | B4: ='Ekonomisk projektbeskrivning'!D17 -> 0
A5: Reporting period: | B5: 5
A8: Cost Category | C8: Total EUR
A9: a) Direct personnel costs declared as actual costs | C9: 0
A10: b) Direct personnel costs declared as unit costs (average costs)
A11: d) Direct costs of subcontracting | C11: 0
A12: e) Direct costs of providing financial support to third parties
A13: f) Other direct costs | C13: 0
A14: h) Indirect costs (= 0.25 * (a + b + f - o)) | C14: =0.25*(SUM(CostCategory_A_RP5 + CostCategory_D_RP5 + CostCategory_F_RP5 - CostsInKindNotUsedInPremises_RP5)) -> 0
A15: j) Total costs (= a + b + d + e + f + h) | C15: =SUM(C9:C14) -> 0
A16: k) Receipts
A17: m) Maximum EU-contribution (100%) | C17: =((C15-C16)*100%) -> 0
A18: n) Requested EU-contribution
A21: o) Use of 'costs of in-kind contributions not used on premises'?

Sheet Adjustments RP5
A1: ADJUSTMENTS OF DIRECT COSTS - RP5
B2: Project: | C2: ='Ekonomisk projektbeskrivning'!D5 -> 0
B3: GA: | C3: ='Ekonomisk projektbeskrivning'!D17 -> 0
B4: Exchange rate: | C4: ='Ekonomisk projektbeskrivning'!B25 -> 0 | G4: Reporting period: 5
A6: A.1 Employees (or equivalent) | B6: Beskrivning | C6: RR (Om reseräkning) | D6: Belopp | E6: EUR | F6: Vernr | G6: WP | H6: Kommentar
E7: =IFERROR(D7/$C$4,"") -> 
E8: =IFERROR(D8/$C$4,"") -> 
E9: =IFERROR(D9/$C$4,"") -> 
J10: Inserted row
D11: =SUM(D7:D10) -> 0 | E11: =SUM(E7:E10) -> 0
A13: A.2 Natural persons working under direct contract | B13: Beskrivning | C13: RR (Om reseräkning) | D13: Belopp | E13: EUR | F13: Vernr | G13: WP | H13: Kommentar
E14: =IFERROR(D14/$C$4,"") -> 
E15: =IFERROR(D15/$C$4,"") -> 
E16: =IFERROR(D16/$C$4,"") -> 
J17: Inserted row
D18: =SUM(D14:D17) -> 0 | E18: =SUM(E14:E17) -> 0
A20: A.3 Seconded persons | B20: Beskrivning | C20: RR (Om reseräkning) | D20: Belopp | E20: EUR | F20: Vernr | G20: WP | H20: Kommentar
E21: =IFERROR(D21/$C$4,"") -> 
E22: =IFERROR(D22/$C$4,"") -> 
E23: =IFERROR(D23/$C$4,"") -> 
D25: =SUM(D21:D24) -> 0 | E25: =SUM(E21:E24) -> 0
A27: A.6 Personnel for providing access to research infrastructure | B27: Beskrivning | C27: RR (Om reseräkning) | D27: Belopp | E27: EUR | F27: Vernr | G27: WP | H27: Kommentar
E28: =IFERROR(D28/$C$4,"") -> 
E29: =IFERROR(D29/$C$4,"") -> 
E30: =IFERROR(D30/$C$4,"") -> 
J31: Inserted row
D32: =SUM(D28:D31) -> 0 | E32: =SUM(E28:E31) -> 0
A34: B.1 Subcontracting | B34: Beskrivning | C34: RR (Om reseräkning) | D34: Belopp | E34: EUR | F34: Vernr | G34: WP | H34: Kommentar
E35: =IFERROR(D35/$C$4,"") -> 
E36: =IFERROR(D36/$C$4,"") -> 
E37: =IFERROR(D37/$C$4,"") -> 
J38: Inserted row
D39: =SUM(D35:D38) -> 0 | E39: =SUM(E35:E38) -> 0
A41: D.1 Travel | B41: Beskrivning | C41: RR (Om reseräkning) | D41: Belopp | E41: EUR | F41: Vernr | G41: WP | H41: Kommentar
E42: =IFERROR(D42/$C$4,"") -> 
E43: =IFERROR(D43/$C$4,"") -> 
E44: =IFERROR(D44/$C$4,"") -> 
J45: Inserted row
D46: =SUM(D42:D45) -> 0 | E46: =SUM(E42:E45) -> 0
A48: D.2 Equipment | B48: Beskrivning | C48: RR (Om reseräkning) | D48: Belopp | E48: EUR | F48: Vernr | G48: WP | H48: Kommentar
E49: =IFERROR(D49/$C$4,"") -> 
E50: =IFERROR(D50/$C$4,"") -> 
E51: =IFERROR(D51/$C$4,"") -> 
J52: Inserted row
D53: =SUM(D49:D52) -> 0 | E53: =SUM(E49:E52) -> 0
A55: D.3 Other goods and services | B55: Beskrivning | C55: RR (Om reseräkning) | D55: Belopp | E55: EUR | F55: Vernr | G55: WP | H55: Kommentar
E56: =IFERROR(D56/$C$4,"") -> 
E57: =IFERROR(D57/$C$4,"") -> 
E58: =IFERROR(D58/$C$4,"") -> 
J59: Inserted row
D60: =SUM(D56:D59) -> 0 | E60: =SUM(E56:E59) -> 0
A62: D.5 Costs for internally invoiced goods and services | B62: Beskrivning | C62: RR (Om reseräkning) | D62: Belopp | E62: EUR | F62: Vernr | G62: WP | H62: Kommentar
E63: =IFERROR(D63/$C$4,"") -> 
E64: =IFERROR(D64/$C$4,"") -> 
E65: =IFERROR(D65/$C$4,"") -> 
J66: Inserted row
D67: =SUM(D63:D66) -> 0 | E67: =SUM(E63:E66) -> 0
A71: FINANCIAL STATEMENT (ADJUSTMENTS) - RP5
A73: Cost Category | C73: Total EUR
A74: a) Direct personnel costs declared as actual costs | C74: =E11+E18+E25+E32 -> 0
A75: b) Direct personnel costs declared as unit costs (average costs)
A76: d) Direct costs od subcontracting | C76: =E39 -> 0
A77: e) Direct costs of providing financial support to third parties
A78: f) Other direct costs | C78: =E46+E53+E60+E67 -> 0
A79: h) Indirect costs (= 0.25 * (a + b + f - o)) | C79: =(C74+C75+C78-C86)*0.25 -> 0
A80: j) Total costs (= a + b + d + e + f + h) | C80: =SUM(C74:C79) -> 0
A81: k) Receipts
A82: m) Maximum EU-contribution (100%) | C82: =((C80-C81)*100%) -> 0
A83: n) Requested EU-contribution
A86: o) Use of 'costs of in-kind contributions not used on premises'?

Sheet Blad1
